{"text_format":"1","workbook":"xlsx","n_sheets":6,"sheets":["Main","Procedure","Final Assessment Table","HP","Prelim Assessment Table","ModelParameters"],"not_rendered":{"charts":1,"images":11,"macros":1,"external_links":0,"defined_names":172,"comments":0,"pivot_tables":0},"unopened":[],"bounds":{"document_bytes":16777216,"sheet_cells":100000,"rows_first":2000,"rows_last":500,"rows_between":2000,"halvings":0,"cell_chars":16384,"cell_head_chars":4096},"cells_cut":0,"cells_raw":0,"read":"whole","date_system":"1900"}

{"sheet":"Main","index":0,"n_rows":38,"n_cols":15,"rows_kept":38,"cut":false,"hidden":false,"merged":[[16,3,16,5],[12,1,12,2],[10,1,10,2],[10,6,10,7],[10,8,10,11],[1,2,4,12],[16,14,26,23],[14,3,14,5],[32,0,36,7],[37,0,37,10],[12,3,12,5],[5,3,5,11],[10,3,10,5],[12,6,12,7],[12,8,12,11],[28,0,30,7],[14,8,18,11],[14,6,18,7],[8,0,9,13],[16,1,16,2],[14,1,14,2]]}
[]
[null,null,"Hydroplaning Analysis",null,null,null,null,null,null,null,null,null,null,null,"Designer Notes:"]
[]
[]
[]
[null,null,null,"Version 1.0"]
[]
[]
["Project Information"]
[]
[null,"TIP #",null,null,null,null,"Design Firm"]
[]
[null,"Date",null,{"$f":"TODAY()","v":"2022-08-05"},null,null,"Designer"]
[]
[null,"County",null,null,null,null,"Project Description",null,null,null,null,null,null,null,"Typical Section:"]
[]
[null,"Division",null,{"$f":"IF(D15=\"\",\"\",VLOOKUP(D15,ModelParameters!T2:U101,2))","v":""}]
[]
[]
[]
[]
[]
[]
[]
[]
[]
[]
[]
["Developed by NCDOT and Atkins. NCDOT gratefully acknowledges the work done by FDOT in 2020 to program the computational foundation of this computer program. "]
[]
[]
[]
["Notes: \n1. Please save the program prior to using to ensure macros are able to run.\n2. This program runs on macros and the 'Undo' button does not work on macros. \n3. If you run into any problems please report them to the NCDOT CLEAR portal, linked below. \n"]
[]
[]
[]
[]
["https://connect.ncdot.gov/projects/Value-Management/CLEAR-Program/Pages/ideas.aspx"]

{"sheet":"Procedure","index":1,"n_rows":2,"n_cols":22,"rows_kept":2,"cut":false,"hidden":false,"merged":[[0,0,3,8],[1,9,1,20],[1,21,1,29]]}
["Hydroplaning Analysis Tool Procedure"]
[null,null,null,null,null,null,null,null,null,"For further information on the NCDOT Hydroplaning Policy, refer to the Hydraulic Design Guidelines, Chapter 4: ",null,null,null,null,null,null,null,null,null,null,null,"https://connect.ncdot.gov/resources/hydro/Pages/DrainageStudiesGuidelines.aspx"]

{"sheet":"Final Assessment Table","index":2,"n_rows":38,"n_cols":17,"rows_kept":38,"cut":false,"hidden":false,"merged":[[34,1,34,6],[35,1,36,6],[37,1,37,6],[1,1,1,2],[2,1,2,2],[2,4,3,11],[3,1,3,2],[4,1,4,2]]}
[]
["Hydraulics Designer:"]
["Reviewer:",null,null,null,"Final Hydroplaning Assessment"]
["Date:"]
["Project TIP #:"]
[]
["Area of Concern","Analysis Description","Alignment","Station","Direction","Lane","Design \nSpeed\n(mph)","Rainfall \nIntensity\n(I, in/hr)","Long. \nSlope\n(%)","Cross \nSlope \n(ft/ft)","Pavement \nWidth \n(ft)","Pavement \nSurface Material ","Hydroplaning \nAverage\nWFT                    \n(in)","PAVDRN \nHydroplaning \nSpeed \n(mph)","Predicted\nDriver\nSpeed                                  \n(mph)","Analysis Notes","User-Defined\nPavement \nNotes"]
[null,null,null,null,null,null,null,null,null,null,null,null,null,null,null,null,""]
[]
[]
[]
[]
[]
[]
[]
[]
[]
[]
[]
[]
[]
[]
[]
[]
[]
[]
[]
[]
[]
[]
[null,"Possible Hydroplane Conditions"]
[null,"High ",null,"Low ",null,null,"None"]
[]
[]
[null,"High: HPS is ≥ 4 mph Below the Predicted Driver Speed. Mitigation methods required."]
[null,"Low: HPS is ≥ 2 mph Below The Predicted Driver Speed. More potential for adverse conditions. Evaluate Mitigation methods needed and provide engineering justification if none are required which may include driver responsibility. "]
[]
[null,"None: HPS is greater than Predicted Driver Speed"]

{"sheet":"HP","index":3,"n_rows":255,"n_cols":29,"rows_kept":255,"cut":false,"hidden":true,"merged":[[13,1,13,2],[13,3,13,5],[13,8,13,10],[13,11,13,13],[7,1,7,2],[7,3,7,5],[7,8,7,10],[7,11,7,13],[9,1,9,2],[9,3,9,13],[0,3,0,12],[3,12,3,13],[5,1,5,2],[5,3,5,5],[5,8,5,10],[5,11,5,13],[11,1,11,2],[11,3,11,5],[11,8,11,10],[11,11,11,13],[25,1,25,3],[25,4,25,6],[15,1,16,2],[15,3,16,5],[15,8,15,10],[15,11,15,13],[18,1,18,2],[20,1,20,2],[20,3,20,5],[24,4,24,6],[24,11,24,12],[30,4,30,7],[30,9,30,11],[41,16,45,21],[55,1,55,3],[55,4,55,5],[55,9,55,11],[31,1,31,2],[31,4,31,7],[34,4,34,7],[37,1,37,2],[38,1,38,2],[39,1,39,2],[36,1,36,2],[53,1,53,14],[34,9,34,11],[32,1,32,3],[32,9,32,11],[32,4,32,7],[33,9,33,11],[40,1,40,2],[31,9,31,14],[60,1,60,2],[60,4,60,6],[60,8,60,13],[61,1,61,2],[61,4,61,6],[75,1,75,2],[79,1,79,2],[79,4,79,6],[80,1,80,2],[80,4,80,6],[83,1,83,2],[64,1,64,2],[68,1,68,3],[69,1,69,2],[70,1,70,2],[71,1,71,2],[72,1,72,2],[84,1,84,2],[85,1,85,2],[86,1,86,2],[89,1,89,2],[192,1,192,9],[193,1,194,9],[195,1,195,9],[174,1,174,2],[174,16,178,19],[176,1,176,2],[177,1,177,2],[178,1,178,2],[179,1,179,14],[189,4,189,5],[175,1,175,2],[182,1,182,2],[183,1,183,2],[184,1,184,2],[185,1,185,2],[182,3,182,4],[183,3,183,4],[184,3,184,4],[185,3,185,4],[186,1,186,5],[181,1,181,4],[200,1,200,14],[202,1,202,2],[203,1,203,2],[204,1,204,2],[205,1,205,2],[206,1,206,2],[207,1,207,2],[208,1,208,2],[209,1,209,2],[210,1,210,2],[212,1,212,14],[213,1,213,2],[214,1,214,2],[215,1,215,2],[216,1,216,2],[217,1,217,2],[218,1,218,2],[219,1,219,2],[220,1,220,2],[221,1,221,2],[223,1,223,14],[225,1,225,2],[226,1,226,2],[227,1,227,2],[228,1,228,2],[229,1,229,2],[230,1,230,2],[250,1,250,2],[251,1,251,2],[252,1,252,2],[253,1,253,2],[254,1,254,2],[231,1,231,2],[232,1,232,2],[233,1,233,2],[239,1,239,14],[241,1,241,2],[242,1,242,2],[243,1,243,2],[244,1,244,2],[245,1,245,2],[246,1,246,2],[247,1,247,2],[248,1,248,2],[249,1,249,2]]}
[null,null,null,"Hydroplaning Analysis Tool"]
[]
[]
[null,"General Inputs",null,null,null,null,null,null,null,null,null,"Date"]
[]
[null,"TIP",null,null,null,null,null,null,"Designer"]
[]
[null,"County",null,null,null,null,null,null,"NCDOT Division No."]
[]
[null,"Project Description"]
[]
[null,"Typical Section/Area of Concern",null,null,null,null,null,null,"Alignment"]
[]
[null,"Assessment Type",null,null,null,null,null,null,"Station/Milepost Range"]
[]
[null,"Analysis Description",null,null,null,null,null,null,"Direction"]
[]
[]
[null,"Superelevation Transition",null,"# of lanes",null,"Factor",{"$f":"IF(OR(AnalysisType=\"Superelevation Transition\",AnalysisType=\"Superelevation Mitigation\"),IF(No.Lanes=2,1.8,IF(No.Lanes=3,1.5,IF(No.Lanes>=4,1.3,\"\"))),1)","v":1}]
[]
[null,"Analysis Notes"]
[]
[null,"Analysis Options"]
[]
[null,"Select Analysis Option",null,null,"Deterministic (Default)"]
[null,"Risk Analysis, per NCDOT rules",null,null,"Yes"]
[null,"Pavement Inputs"]
[]
[null,"Deterministic Analysis"]
[]
[null,"Longitudinal Grade (%)",null,null,null,null,null,null,null,"Mean Profile Depth (in.)"]
[null,"Surface Type",null,null,null,null,null,null,null,{"$f":"IF(OR(AnalysisType=\"Superelevation Transition\",AnalysisType=\"Superelevation Mitigation\"),\"Warning: The cross-slope for all lanes going through rollover needs to be 0.02 ft/ft when doing a Superelevation analysis to ensure equation accuracy.\",\"\")","v":""}]
[null,"User-Defined Type",null,null,null,null,null,null,null,"User-Defined Mean Profile Depth (in.)",null,null,0.05]
[null,null,null,null,null,null,null,null,null,"User-Defined Manning's n",null,null,0.03]
[null,"Permeability (in/hr)",null,null,0]
[]
[null,null,null,1,2,3,4,5,6,7,8,9,10,11,12]
[null,"Description"]
[null,"Design Speed (mph)"]
[null,"Cross Slope (ft/ft)"]
[null,"Width (ft.)"]
[]
[null,null,0,{"$f":"C43-D41*D40","v":0},0,0,0,0,0,0,0,0,0,0,0]
[null,null,0,{"$f":"D41","v":0},{"$f":"D44+E41","v":0},{"$f":"E44+F41","v":0},0,0,0,{"$f":"I44+J41","v":0},0,{"$f":"K44+L41","v":0},0,0,0]
[]
[null,null,{"$f":"MIN($C$43:$O$43)","v":0},{"$f":"MIN($C$43:$O$43)","v":0},0,0,0,0,0,0,0,0,0,0,0]
[null,null,0,{"$f":"C47+D41","v":0},{"$f":"D47+E41","v":0},{"$f":"E47+F41","v":0},0,0,0,0,0,0,0,0,0]
[]
[]
[]
[]
[]
[]
[null,"Scenario Roadway Typical"]
[]
[]
[null,"Environmental Inputs"]
[]
[null,"Deterministic Analysis"]
[]
[null,"Rainfall Intensity (in/hr)",null,null,2,null,null,null,"NCDOT Default Values: 2 in/hr and 32°F"]
[null,"Temperature (deg. F)",null,null,32,null,null,null,"<--  Note: Temperature is only needed for PAVDRN WFT Model"]
[]
[]
[null,"Analysis Results"]
[]
[null,"Deterministic Analysis"]
[]
[null,"Drainage Path Length (in feet)"]
[null,"Plane Number",null,1,2,3,4,5,6,7,8,9,10,11,12]
[null,"Param \\ Lane",null,{"$f":"IF(D38<>\"\",D38,\"\")","v":""},"","","","","","","","","","",""]
[null,"Total Slope (%)",null,{"$f":"IF(AND(D40<>\"\",D41<>\"\"),SQRT($E$31^2+(D40*100)^2),\"\")","v":""},"","","","","","","","","","",""]
[null,"DP / Lane (ft.)",null,{"$f":"IF(D72<>\"\",D41*SQRT(1+($E$31/(D40*100))^2),\"\")","v":""},"","","","","","","","","","",""]
[null,null,null,{"$f":"IF(D73<>\"\",IF(D40<0,E74+D73,0),0)","v":0},{"$f":"IF(E73<>\"\",IF(E40<0,F74+E73,0),0)","v":0},0,0,0,0,0,0,0,0,0,0]
[null,null,null,{"$f":"IF(D73<>\"\",IF(D40>0,D73+C75,0),0)","v":0},0,0,0,0,0,0,0,0,0,0,0]
[null,"Total DP (ft.)",null,{"$f":"IF(D73<>\"\",MAX(D74:D75),\"\")","v":""},{"$f":"IF(E73<>\"\",MAX(E74:E75),\"\")","v":""},"","","","","","","","","",""]
[]
[null,"Intermediate Variables"]
[]
[null,"Kin. Viscosity (ft2/s)",null,null,{"$f":"KVis.V0*EXP(KVis.a+KVis.b*273.16/(273.16+CONVERT(HP!$E$62,\"F\",\"C\"))+KVis.c*(273.16/(273.16+CONVERT(HP!$E$62,\"F\",\"C\")))^2)*CONVERT(1,\"m\",\"ft\")^2*10^(-6)","v":1.9250388163959543E-5},null,null,null,"<--  Note: Viscosity is only used by PAVDRN WFT Model"]
[null,"Mean Texture Depth (in.)",null,null,{"$f":"IF(AND(Deterministic.Texture=\"\",User.Defined.Texture=\"\"),\"\",IF($J$31=\"Mean Texture Depth (in.)\",Deterministic.Texture,IF(Deterministic.Surf.Type=\"Dense Graded Asphalt (DGAC)\",CONVERT(MPD.to.MTD.DGFC.a*(CONVERT(Deterministic.Texture,\"in\",\"mm\"))+MPD.to.MTD.DGFC.b,\"mm\",\"in\"),IF(Deterministic.Surf.Type=\"Open Graded Friction Course (OGFC)\",MPD.to.MTD.OGFC.a*Deterministic.Texture+MPD.to.MTD.OGFC.b,IF(Deterministic.Surf.Type=\"Concrete Pavement (PCC)\",MPD.to.MTD.LGD.a*Deterministic.Texture+MPD.to.MTD.LGD.b,IF(Deterministic.Surf.Type=\"Ultra-Thin Bonded Wearing Course\",CONVERT(MPD.to.MTD.DGFC.a*(CONVERT(Deterministic.Texture,\"in\",\"mm\"))+MPD.to.MTD.DGFC.b,\"mm\",\"in\"),IF(Deterministic.Surf.Type=\"User-Defined\",CONVERT(MPD.to.MTD.DGFC.a*(CONVERT(User.Defined.Texture,\"in\",\"mm\"))+MPD.to.MTD.DGFC.b,\"mm\",\"in\"))))))))","v":false}]
[]
[null,"Reynold's Number and Manning's Table",null,null,null,null,"<--  Note: Reynold's Number and Manning's N value are only used by PAVDRN WFT Model"]
[null,"Plane Number",null,1,2,3,4,5,6,7,8,9,10,11,12]
[null,"Param \\ Lane",null,{"$f":"IF(D38<>\"\",D38,\"\")","v":""},"","","","","","","","","","",""]
[null,"Reynold's No.",null,{"$f":"IF(D76<>\"\",D76*($E$61-$E$35)/12/3600/$E$80,\"\")","v":""},{"$f":"IF(E76<>\"\",E76*($E$61-$E$35)/12/3600/$E$80,\"\")","v":""},"","","","","","","","","",""]
[null,"Manning's N",null,{"$f":"IF(D86<>\"\",IF(OR(Deterministic.Surf.Type=\"Dense Graded Asphalt (DGAC)\",Deterministic.Surf.Type=\"User Defined Dense Graded Asphalt (DGAC)\"),Manning.DGFC.Const*HP!D86^Manning.DGFC.NR,IF(OR(Deterministic.Surf.Type=\"Open Graded Friction Course (OGFC)\",Deterministic.Surf.Type=\"User Defined Open Graded Friction Course (OGFC)\"),Manning.OGFC.Const*HP!D86^Manning.OGFC.NR*(HP!D72/100)^Manning.OGFC.Slope,IF(D86<240,Manning.PCC.NR.lt.240.Const*D86^Manning.PCC.NR.lt.240.NR,IF(D86<500,Manning.PCC.NR.lt.500.Const*HP!D86^Manning.PCC.NR.lt.500.NR,IF(HP!D86<1000,Manning.PCC.NR.lt.1000.Const*HP!D86^Manning.PCC.NR.lt.1000.NR,0.017))))),\"\")","v":""},{"$f":"IF(E86<>\"\",IF(OR(Deterministic.Surf.Type=\"Dense Graded Asphalt (DGAC)\",Deterministic.Surf.Type=\"User Defined Dense Graded Asphalt (DGAC)\"),Manning.DGFC.Const*HP!E86^Manning.DGFC.NR,IF(OR(Deterministic.Surf.Type=\"Open Graded Friction Course (OGFC)\",Deterministic.Surf.Type=\"User Defined Open Graded Friction Course (OGFC)\"),Manning.OGFC.Const*HP!E86^Manning.OGFC.NR*(HP!E72/100)^Manning.OGFC.Slope,IF(E86<240,Manning.PCC.NR.lt.240.Const*E86^Manning.PCC.NR.lt.240.NR,IF(E86<500,Manning.PCC.NR.lt.500.Const*HP!E86^Manning.PCC.NR.lt.500.NR,IF(HP!E86<1000,Manning.PCC.NR.lt.1000.Const*HP!E86^Manning.PCC.NR.lt.1000.NR,0.017))))),\"\")","v":""},{"$f":"IF(F86<>\"\",IF(OR(Deterministic.Surf.Type=\"Dense Graded Asphalt (DGAC)\",Deterministic.Surf.Type=\"User Defined Dense Graded Asphalt (DGAC)\"),Manning.DGFC.Const*HP!F86^Manning.DGFC.NR,IF(OR(Deterministic.Surf.Type=\"Open Graded Friction Course (OGFC)\",Deterministic.Surf.Type=\"User Defined Open Graded Friction Course (OGFC)\"),Manning.OGFC.Const*HP!F86^Manning.OGFC.NR*(HP!F72/100)^Manning.OGFC.Slope,IF(F86<240,Manning.PCC.NR.lt.240.Const*F86^Manning.PCC.NR.lt.240.NR,IF(F86<500,Manning.PCC.NR.lt.500.Const*HP!F86^Manning.PCC.NR.lt.500.NR,IF(HP!F86<1000,Manning.PCC.NR.lt.1000.Const*HP!F86^Manning.PCC.NR.lt.1000.NR,0.017))))),\"\")","v":""},{"$f":"IF(G86<>\"\",IF(OR(Deterministic.Surf.Type=\"Dense Graded Asphalt (DGAC)\",Deterministic.Surf.Type=\"User Defined Dense Graded Asphalt (DGAC)\"),Manning.DGFC.Const*HP!G86^Manning.DGFC.NR,IF(OR(Deterministic.Surf.Type=\"Open Graded Friction Course (OGFC)\",Deterministic.Surf.Type=\"User Defined Open Graded Friction Course (OGFC)\"),Manning.OGFC.Const*HP!G86^Manning.OGFC.NR*(HP!G72/100)^Manning.OGFC.Slope,IF(G86<240,Manning.PCC.NR.lt.240.Const*G86^Manning.PCC.NR.lt.240.NR,IF(G86<500,Manning.PCC.NR.lt.500.Const*HP!G86^Manning.PCC.NR.lt.500.NR,IF(HP!G86<1000,Manning.PCC.NR.lt.1000.Const*HP!G86^Manning.PCC.NR.lt.1000.NR,0.017))))),\"\")","v":""},{"$f":"IF(H86<>\"\",IF(OR(Deterministic.Surf.Type=\"Dense Graded Asphalt (DGAC)\",Deterministic.Surf.Type=\"User Defined Dense Graded Asphalt (DGAC)\"),Manning.DGFC.Const*HP!H86^Manning.DGFC.NR,IF(OR(Deterministic.Surf.Type=\"Open Graded Friction Course (OGFC)\",Deterministic.Surf.Type=\"User Defined Open Graded Friction Course (OGFC)\"),Manning.OGFC.Const*HP!H86^Manning.OGFC.NR*(HP!H72/100)^Manning.OGFC.Slope,IF(H86<240,Manning.PCC.NR.lt.240.Const*H86^Manning.PCC.NR.lt.240.NR,IF(H86<500,Manning.PCC.NR.lt.500.Const*HP!H86^Manning.PCC.NR.lt.500.NR,IF(HP!H86<1000,Manning.PCC.NR.lt.1000.Const*HP!H86^Manning.PCC.NR.lt.1000.NR,0.017))))),\"\")","v":""},{"$f":"IF(I86<>\"\",IF(OR(Deterministic.Surf.Type=\"Dense Graded Asphalt (DGAC)\",Deterministic.Surf.Type=\"User Defined Dense Graded Asphalt (DGAC)\"),Manning.DGFC.Const*HP!I86^Manning.DGFC.NR,IF(OR(Deterministic.Surf.Type=\"Open Graded Friction Course (OGFC)\",Deterministic.Surf.Type=\"User Defined Open Graded Friction Course (OGFC)\"),Manning.OGFC.Const*HP!I86^Manning.OGFC.NR*(HP!I72/100)^Manning.OGFC.Slope,IF(I86<240,Manning.PCC.NR.lt.240.Const*I86^Manning.PCC.NR.lt.240.NR,IF(I86<500,Manning.PCC.NR.lt.500.Const*HP!I86^Manning.PCC.NR.lt.500.NR,IF(HP!I86<1000,Manning.PCC.NR.lt.1000.Const*HP!I86^Manning.PCC.NR.lt.1000.NR,0.017))))),\"\")","v":""},{"$f":"IF(J86<>\"\",IF(OR(Deterministic.Surf.Type=\"Dense Graded Asphalt (DGAC)\",Deterministic.Surf.Type=\"User Defined Dense Graded Asphalt (DGAC)\"),Manning.DGFC.Const*HP!J86^Manning.DGFC.NR,IF(OR(Deterministic.Surf.Type=\"Open Graded Friction Course (OGFC)\",Deterministic.Surf.Type=\"User Defined Open Graded Friction Course (OGFC)\"),Manning.OGFC.Const*HP!J86^Manning.OGFC.NR*(HP!J72/100)^Manning.OGFC.Slope,IF(J86<240,Manning.PCC.NR.lt.240.Const*J86^Manning.PCC.NR.lt.240.NR,IF(J86<500,Manning.PCC.NR.lt.500.Const*HP!J86^Manning.PCC.NR.lt.500.NR,IF(HP!J86<1000,Manning.PCC.NR.lt.1000.Const*HP!J86^Manning.PCC.NR.lt.1000.NR,0.017))))),\"\")","v":""},{"$f":"IF(K86<>\"\",IF(OR(Deterministic.Surf.Type=\"Dense Graded Asphalt (DGAC)\",Deterministic.Surf.Type=\"User Defined Dense Graded Asphalt (DGAC)\"),Manning.DGFC.Const*HP!K86^Manning.DGFC.NR,IF(OR(Deterministic.Surf.Type=\"Open Graded Friction Course (OGFC)\",Deterministic.Surf.Type=\"User Defined Open Graded Friction Course (OGFC)\"),Manning.OGFC.Const*HP!K86^Manning.OGFC.NR*(HP!K72/100)^Manning.OGFC.Slope,IF(K86<240,Manning.PCC.NR.lt.240.Const*K86^Manning.PCC.NR.lt.240.NR,IF(K86<500,Manning.PCC.NR.lt.500.Const*HP!K86^Manning.PCC.NR.lt.500.NR,IF(HP!K86<1000,Manning.PCC.NR.lt.1000.Const*HP!K86^Manning.PCC.NR.lt.1000.NR,0.017))))),\"\")","v":""},{"$f":"IF(L86<>\"\",IF(OR(Deterministic.Surf.Type=\"Dense Graded Asphalt (DGAC)\",Deterministic.Surf.Type=\"User Defined Dense Graded Asphalt (DGAC)\"),Manning.DGFC.Const*HP!L86^Manning.DGFC.NR,IF(OR(Deterministic.Surf.Type=\"Open Graded Friction Course (OGFC)\",Deterministic.Surf.Type=\"User Defined Open Graded Friction Course (OGFC)\"),Manning.OGFC.Const*HP!L86^Manning.OGFC.NR*(HP!L72/100)^Manning.OGFC.Slope,IF(L86<240,Manning.PCC.NR.lt.240.Const*L86^Manning.PCC.NR.lt.240.NR,IF(L86<500,Manning.PCC.NR.lt.500.Const*HP!L86^Manning.PCC.NR.lt.500.NR,IF(HP!L86<1000,Manning.PCC.NR.lt.1000.Const*HP!L86^Manning.PCC.NR.lt.1000.NR,0.017))))),\"\")","v":""},{"$f":"IF(M86<>\"\",IF(OR(Deterministic.Surf.Type=\"Dense Graded Asphalt (DGAC)\",Deterministic.Surf.Type=\"User Defined Dense Graded Asphalt (DGAC)\"),Manning.DGFC.Const*HP!M86^Manning.DGFC.NR,IF(OR(Deterministic.Surf.Type=\"Open Graded Friction Course (OGFC)\",Deterministic.Surf.Type=\"User Defined Open Graded Friction Course (OGFC)\"),Manning.OGFC.Const*HP!M86^Manning.OGFC.NR*(HP!M72/100)^Manning.OGFC.Slope,IF(M86<240,Manning.PCC.NR.lt.240.Const*M86^Manning.PCC.NR.lt.240.NR,IF(M86<500,Manning.PCC.NR.lt.500.Const*HP!M86^Manning.PCC.NR.lt.500.NR,IF(HP!M86<1000,Manning.PCC.NR.lt.1000.Const*HP!M86^Manning.PCC.NR.lt.1000.NR,0.017))))),\"\")","v":""},{"$f":"IF(N86<>\"\",IF(OR(Deterministic.Surf.Type=\"Dense Graded Asphalt (DGAC)\",Deterministic.Surf.Type=\"User Defined Dense Graded Asphalt (DGAC)\"),Manning.DGFC.Const*HP!N86^Manning.DGFC.NR,IF(OR(Deterministic.Surf.Type=\"Open Graded Friction Course (OGFC)\",Deterministic.Surf.Type=\"User Defined Open Graded Friction Course (OGFC)\"),Manning.OGFC.Const*HP!N86^Manning.OGFC.NR*(HP!N72/100)^Manning.OGFC.Slope,IF(N86<240,Manning.PCC.NR.lt.240.Const*N86^Manning.PCC.NR.lt.240.NR,IF(N86<500,Manning.PCC.NR.lt.500.Const*HP!N86^Manning.PCC.NR.lt.500.NR,IF(HP!N86<1000,Manning.PCC.NR.lt.1000.Const*HP!N86^Manning.PCC.NR.lt.1000.NR,0.017))))),\"\")","v":""},{"$f":"IF(O86<>\"\",IF(OR(Deterministic.Surf.Type=\"Dense Graded Asphalt (DGAC)\",Deterministic.Surf.Type=\"User Defined Dense Graded Asphalt (DGAC)\"),Manning.DGFC.Const*HP!O86^Manning.DGFC.NR,IF(OR(Deterministic.Surf.Type=\"Open Graded Friction Course (OGFC)\",Deterministic.Surf.Type=\"User Defined Open Graded Friction Course (OGFC)\"),Manning.OGFC.Const*HP!O86^Manning.OGFC.NR*(HP!O72/100)^Manning.OGFC.Slope,IF(O86<240,Manning.PCC.NR.lt.240.Const*O86^Manning.PCC.NR.lt.240.NR,IF(O86<500,Manning.PCC.NR.lt.500.Const*HP!O86^Manning.PCC.NR.lt.500.NR,IF(HP!O86<1000,Manning.PCC.NR.lt.1000.Const*HP!O86^Manning.PCC.NR.lt.1000.NR,0.017))))),\"\")","v":""}]
[]
[]
[]
[]
[]
[]
[null,"PAVDRN Variables"]
[null,"Plane Number",null,1,2,3,4,5,6,7,8,9,10,11,12]
[null,"Intensity (in/hr)","Variable","Shoulder","Lane 1","Lane 2","Lane 3","Lane 4","Lane 5","Lane 6","Lane 7","Lane 8","Lane 9","Lane 10","Lane 11"]
[null,0.1,"Reynolds",{"$f":"IF(D76<>\"\",D76*($B$97-$E$35)/12/3600/$E$80,\"\")","v":""},{"$f":"IF(E76<>\"\",E76*($B$97-$E$35)/12/3600/$E$80,\"\")","v":""},"","","","","","","","","",""]
[null,null,"Manning's n",{"$f":"IF(D86<>\"\",IF(Deterministic.Surf.Type=\"Dense Graded Asphalt (DGAC)\",Manning.DGFC.Const*D97^Manning.DGFC.NR,IF(Deterministic.Surf.Type=\"Open Graded Friction Course (OGFC)\",Manning.OGFC.Const*D97^Manning.OGFC.NR*(HP!D72/100)^Manning.OGFC.Slope,IF(Deterministic.Surf.Type=\"User-Defined\",User.Defined.ManningValue,IF(D97<240,Manning.PCC.NR.lt.240.Const*D97^Manning.PCC.NR.lt.240.NR,IF(D97<500,Manning.PCC.NR.lt.500.Const*D97^Manning.PCC.NR.lt.500.NR,IF(D97<1000,Manning.PCC.NR.lt.1000.Const*D97^Manning.PCC.NR.lt.1000.NR,0.017)))))),\"\")","v":""},{"$f":"IF(E86<>\"\",IF(Deterministic.Surf.Type=\"Dense Graded Asphalt (DGAC)\",Manning.DGFC.Const*E97^Manning.DGFC.NR,IF(Deterministic.Surf.Type=\"Open Graded Friction Course (OGFC)\",Manning.OGFC.Const*E97^Manning.OGFC.NR*(HP!E72/100)^Manning.OGFC.Slope,IF(Deterministic.Surf.Type=\"User-Defined\",User.Defined.ManningValue,IF(E97<240,Manning.PCC.NR.lt.240.Const*E97^Manning.PCC.NR.lt.240.NR,IF(E97<500,Manning.PCC.NR.lt.500.Const*E97^Manning.PCC.NR.lt.500.NR,IF(E97<1000,Manning.PCC.NR.lt.1000.Const*E97^Manning.PCC.NR.lt.1000.NR,0.017)))))),\"\")","v":""},{"$f":"IF(F86<>\"\",IF(Deterministic.Surf.Type=\"Dense Graded Asphalt (DGAC)\",Manning.DGFC.Const*F97^Manning.DGFC.NR,IF(Deterministic.Surf.Type=\"Open Graded Friction Course (OGFC)\",Manning.OGFC.Const*F97^Manning.OGFC.NR*(HP!F72/100)^Manning.OGFC.Slope,IF(Deterministic.Surf.Type=\"User-Defined\",User.Defined.ManningValue,IF(F97<240,Manning.PCC.NR.lt.240.Const*F97^Manning.PCC.NR.lt.240.NR,IF(F97<500,Manning.PCC.NR.lt.500.Const*F97^Manning.PCC.NR.lt.500.NR,IF(F97<1000,Manning.PCC.NR.lt.1000.Const*F97^Manning.PCC.NR.lt.1000.NR,0.017)))))),\"\")","v":""},{"$f":"IF(G86<>\"\",IF(Deterministic.Surf.Type=\"Dense Graded Asphalt (DGAC)\",Manning.DGFC.Const*G97^Manning.DGFC.NR,IF(Deterministic.Surf.Type=\"Open Graded Friction Course (OGFC)\",Manning.OGFC.Const*G97^Manning.OGFC.NR*(HP!G72/100)^Manning.OGFC.Slope,IF(Deterministic.Surf.Type=\"User-Defined\",User.Defined.ManningValue,IF(G97<240,Manning.PCC.NR.lt.240.Const*G97^Manning.PCC.NR.lt.240.NR,IF(G97<500,Manning.PCC.NR.lt.500.Const*G97^Manning.PCC.NR.lt.500.NR,IF(G97<1000,Manning.PCC.NR.lt.1000.Const*G97^Manning.PCC.NR.lt.1000.NR,0.017)))))),\"\")","v":""},{"$f":"IF(H86<>\"\",IF(Deterministic.Surf.Type=\"Dense Graded Asphalt (DGAC)\",Manning.DGFC.Const*H97^Manning.DGFC.NR,IF(Deterministic.Surf.Type=\"Open Graded Friction Course (OGFC)\",Manning.OGFC.Const*H97^Manning.OGFC.NR*(HP!H72/100)^Manning.OGFC.Slope,IF(Deterministic.Surf.Type=\"User-Defined\",User.Defined.ManningValue,IF(H97<240,Manning.PCC.NR.lt.240.Const*H97^Manning.PCC.NR.lt.240.NR,IF(H97<500,Manning.PCC.NR.lt.500.Const*H97^Manning.PCC.NR.lt.500.NR,IF(H97<1000,Manning.PCC.NR.lt.1000.Const*H97^Manning.PCC.NR.lt.1000.NR,0.017)))))),\"\")","v":""},{"$f":"IF(I86<>\"\",IF(Deterministic.Surf.Type=\"Dense Graded Asphalt (DGAC)\",Manning.DGFC.Const*I97^Manning.DGFC.NR,IF(Deterministic.Surf.Type=\"Open Graded Friction Course (OGFC)\",Manning.OGFC.Const*I97^Manning.OGFC.NR*(HP!I72/100)^Manning.OGFC.Slope,IF(Deterministic.Surf.Type=\"User-Defined\",User.Defined.ManningValue,IF(I97<240,Manning.PCC.NR.lt.240.Const*I97^Manning.PCC.NR.lt.240.NR,IF(I97<500,Manning.PCC.NR.lt.500.Const*I97^Manning.PCC.NR.lt.500.NR,IF(I97<1000,Manning.PCC.NR.lt.1000.Const*I97^Manning.PCC.NR.lt.1000.NR,0.017)))))),\"\")","v":""},{"$f":"IF(J86<>\"\",IF(Deterministic.Surf.Type=\"Dense Graded Asphalt (DGAC)\",Manning.DGFC.Const*J97^Manning.DGFC.NR,IF(Deterministic.Surf.Type=\"Open Graded Friction Course (OGFC)\",Manning.OGFC.Const*J97^Manning.OGFC.NR*(HP!J72/100)^Manning.OGFC.Slope,IF(Deterministic.Surf.Type=\"User-Defined\",User.Defined.ManningValue,IF(J97<240,Manning.PCC.NR.lt.240.Const*J97^Manning.PCC.NR.lt.240.NR,IF(J97<500,Manning.PCC.NR.lt.500.Const*J97^Manning.PCC.NR.lt.500.NR,IF(J97<1000,Manning.PCC.NR.lt.1000.Const*J97^Manning.PCC.NR.lt.1000.NR,0.017)))))),\"\")","v":""},{"$f":"IF(K86<>\"\",IF(Deterministic.Surf.Type=\"Dense Graded Asphalt (DGAC)\",Manning.DGFC.Const*K97^Manning.DGFC.NR,IF(Deterministic.Surf.Type=\"Open Graded Friction Course (OGFC)\",Manning.OGFC.Const*K97^Manning.OGFC.NR*(HP!K72/100)^Manning.OGFC.Slope,IF(Deterministic.Surf.Type=\"User-Defined\",User.Defined.ManningValue,IF(K97<240,Manning.PCC.NR.lt.240.Const*K97^Manning.PCC.NR.lt.240.NR,IF(K97<500,Manning.PCC.NR.lt.500.Const*K97^Manning.PCC.NR.lt.500.NR,IF(K97<1000,Manning.PCC.NR.lt.1000.Const*K97^Manning.PCC.NR.lt.1000.NR,0.017)))))),\"\")","v":""},{"$f":"IF(L86<>\"\",IF(Deterministic.Surf.Type=\"Dense Graded Asphalt (DGAC)\",Manning.DGFC.Const*L97^Manning.DGFC.NR,IF(Deterministic.Surf.Type=\"Open Graded Friction Course (OGFC)\",Manning.OGFC.Const*L97^Manning.OGFC.NR*(HP!L72/100)^Manning.OGFC.Slope,IF(Deterministic.Surf.Type=\"User-Defined\",User.Defined.ManningValue,IF(L97<240,Manning.PCC.NR.lt.240.Const*L97^Manning.PCC.NR.lt.240.NR,IF(L97<500,Manning.PCC.NR.lt.500.Const*L97^Manning.PCC.NR.lt.500.NR,IF(L97<1000,Manning.PCC.NR.lt.1000.Const*L97^Manning.PCC.NR.lt.1000.NR,0.017)))))),\"\")","v":""},{"$f":"IF(M86<>\"\",IF(Deterministic.Surf.Type=\"Dense Graded Asphalt (DGAC)\",Manning.DGFC.Const*M97^Manning.DGFC.NR,IF(Deterministic.Surf.Type=\"Open Graded Friction Course (OGFC)\",Manning.OGFC.Const*M97^Manning.OGFC.NR*(HP!M72/100)^Manning.OGFC.Slope,IF(Deterministic.Surf.Type=\"User-Defined\",User.Defined.ManningValue,IF(M97<240,Manning.PCC.NR.lt.240.Const*M97^Manning.PCC.NR.lt.240.NR,IF(M97<500,Manning.PCC.NR.lt.500.Const*M97^Manning.PCC.NR.lt.500.NR,IF(M97<1000,Manning.PCC.NR.lt.1000.Const*M97^Manning.PCC.NR.lt.1000.NR,0.017)))))),\"\")","v":""},{"$f":"IF(N86<>\"\",IF(Deterministic.Surf.Type=\"Dense Graded Asphalt (DGAC)\",Manning.DGFC.Const*N97^Manning.DGFC.NR,IF(Deterministic.Surf.Type=\"Open Graded Friction Course (OGFC)\",Manning.OGFC.Const*N97^Manning.OGFC.NR*(HP!N72/100)^Manning.OGFC.Slope,IF(Deterministic.Surf.Type=\"User-Defined\",User.Defined.ManningValue,IF(N97<240,Manning.PCC.NR.lt.240.Const*N97^Manning.PCC.NR.lt.240.NR,IF(N97<500,Manning.PCC.NR.lt.500.Const*N97^Manning.PCC.NR.lt.500.NR,IF(N97<1000,Manning.PCC.NR.lt.1000.Const*N97^Manning.PCC.NR.lt.1000.NR,0.017)))))),\"\")","v":""},{"$f":"IF(O86<>\"\",IF(Deterministic.Surf.Type=\"Dense Graded Asphalt (DGAC)\",Manning.DGFC.Const*O97^Manning.DGFC.NR,IF(Deterministic.Surf.Type=\"Open Graded Friction Course (OGFC)\",Manning.OGFC.Const*O97^Manning.OGFC.NR*(HP!O72/100)^Manning.OGFC.Slope,IF(Deterministic.Surf.Type=\"User-Defined\",User.Defined.ManningValue,IF(O97<240,Manning.PCC.NR.lt.240.Const*O97^Manning.PCC.NR.lt.240.NR,IF(O97<500,Manning.PCC.NR.lt.500.Const*O97^Manning.PCC.NR.lt.500.NR,IF(O97<1000,Manning.PCC.NR.lt.1000.Const*O97^Manning.PCC.NR.lt.1000.NR,0.017)))))),\"\")","v":""}]
[null,0.25,"Reynolds",{"$f":"IF(D76<>\"\",D76*($B$99-$E$35)/12/3600/$E$80,\"\")","v":""},"","","","","","","","","","",""]
[null,null,"Manning's n",{"$f":"IF(D86<>\"\",IF(Deterministic.Surf.Type=\"Dense Graded Asphalt (DGAC)\",Manning.DGFC.Const*D99^Manning.DGFC.NR,IF(Deterministic.Surf.Type=\"Open Graded Friction Course (OGFC)\",Manning.OGFC.Const*D99^Manning.OGFC.NR*(HP!D72/100)^Manning.OGFC.Slope,IF(Deterministic.Surf.Type=\"User-Defined\",User.Defined.ManningValue,IF(D99<240,Manning.PCC.NR.lt.240.Const*D99^Manning.PCC.NR.lt.240.NR,IF(D99<500,Manning.PCC.NR.lt.500.Const*D99^Manning.PCC.NR.lt.500.NR,IF(D99<1000,Manning.PCC.NR.lt.1000.Const*D99^Manning.PCC.NR.lt.1000.NR,0.017)))))),\"\")","v":""},{"$f":"IF(E86<>\"\",IF(Deterministic.Surf.Type=\"Dense Graded Asphalt (DGAC)\",Manning.DGFC.Const*E99^Manning.DGFC.NR,IF(Deterministic.Surf.Type=\"Open Graded Friction Course (OGFC)\",Manning.OGFC.Const*E99^Manning.OGFC.NR*(HP!E72/100)^Manning.OGFC.Slope,IF(Deterministic.Surf.Type=\"User-Defined\",User.Defined.ManningValue,IF(E99<240,Manning.PCC.NR.lt.240.Const*E99^Manning.PCC.NR.lt.240.NR,IF(E99<500,Manning.PCC.NR.lt.500.Const*E99^Manning.PCC.NR.lt.500.NR,IF(E99<1000,Manning.PCC.NR.lt.1000.Const*E99^Manning.PCC.NR.lt.1000.NR,0.017)))))),\"\")","v":""},{"$f":"IF(F86<>\"\",IF(Deterministic.Surf.Type=\"Dense Graded Asphalt (DGAC)\",Manning.DGFC.Const*F99^Manning.DGFC.NR,IF(Deterministic.Surf.Type=\"Open Graded Friction Course (OGFC)\",Manning.OGFC.Const*F99^Manning.OGFC.NR*(HP!F72/100)^Manning.OGFC.Slope,IF(Deterministic.Surf.Type=\"User-Defined\",User.Defined.ManningValue,IF(F99<240,Manning.PCC.NR.lt.240.Const*F99^Manning.PCC.NR.lt.240.NR,IF(F99<500,Manning.PCC.NR.lt.500.Const*F99^Manning.PCC.NR.lt.500.NR,IF(F99<1000,Manning.PCC.NR.lt.1000.Const*F99^Manning.PCC.NR.lt.1000.NR,0.017)))))),\"\")","v":""},{"$f":"IF(G86<>\"\",IF(Deterministic.Surf.Type=\"Dense Graded Asphalt (DGAC)\",Manning.DGFC.Const*G99^Manning.DGFC.NR,IF(Deterministic.Surf.Type=\"Open Graded Friction Course (OGFC)\",Manning.OGFC.Const*G99^Manning.OGFC.NR*(HP!G72/100)^Manning.OGFC.Slope,IF(Deterministic.Surf.Type=\"User-Defined\",User.Defined.ManningValue,IF(G99<240,Manning.PCC.NR.lt.240.Const*G99^Manning.PCC.NR.lt.240.NR,IF(G99<500,Manning.PCC.NR.lt.500.Const*G99^Manning.PCC.NR.lt.500.NR,IF(G99<1000,Manning.PCC.NR.lt.1000.Const*G99^Manning.PCC.NR.lt.1000.NR,0.017)))))),\"\")","v":""},{"$f":"IF(H86<>\"\",IF(Deterministic.Surf.Type=\"Dense Graded Asphalt (DGAC)\",Manning.DGFC.Const*H99^Manning.DGFC.NR,IF(Deterministic.Surf.Type=\"Open Graded Friction Course (OGFC)\",Manning.OGFC.Const*H99^Manning.OGFC.NR*(HP!H72/100)^Manning.OGFC.Slope,IF(Deterministic.Surf.Type=\"User-Defined\",User.Defined.ManningValue,IF(H99<240,Manning.PCC.NR.lt.240.Const*H99^Manning.PCC.NR.lt.240.NR,IF(H99<500,Manning.PCC.NR.lt.500.Const*H99^Manning.PCC.NR.lt.500.NR,IF(H99<1000,Manning.PCC.NR.lt.1000.Const*H99^Manning.PCC.NR.lt.1000.NR,0.017)))))),\"\")","v":""},{"$f":"IF(I86<>\"\",IF(Deterministic.Surf.Type=\"Dense Graded Asphalt (DGAC)\",Manning.DGFC.Const*I99^Manning.DGFC.NR,IF(Deterministic.Surf.Type=\"Open Graded Friction Course (OGFC)\",Manning.OGFC.Const*I99^Manning.OGFC.NR*(HP!I72/100)^Manning.OGFC.Slope,IF(Deterministic.Surf.Type=\"User-Defined\",User.Defined.ManningValue,IF(I99<240,Manning.PCC.NR.lt.240.Const*I99^Manning.PCC.NR.lt.240.NR,IF(I99<500,Manning.PCC.NR.lt.500.Const*I99^Manning.PCC.NR.lt.500.NR,IF(I99<1000,Manning.PCC.NR.lt.1000.Const*I99^Manning.PCC.NR.lt.1000.NR,0.017)))))),\"\")","v":""},{"$f":"IF(J86<>\"\",IF(Deterministic.Surf.Type=\"Dense Graded Asphalt (DGAC)\",Manning.DGFC.Const*J99^Manning.DGFC.NR,IF(Deterministic.Surf.Type=\"Open Graded Friction Course (OGFC)\",Manning.OGFC.Const*J99^Manning.OGFC.NR*(HP!J72/100)^Manning.OGFC.Slope,IF(Deterministic.Surf.Type=\"User-Defined\",User.Defined.ManningValue,IF(J99<240,Manning.PCC.NR.lt.240.Const*J99^Manning.PCC.NR.lt.240.NR,IF(J99<500,Manning.PCC.NR.lt.500.Const*J99^Manning.PCC.NR.lt.500.NR,IF(J99<1000,Manning.PCC.NR.lt.1000.Const*J99^Manning.PCC.NR.lt.1000.NR,0.017)))))),\"\")","v":""},{"$f":"IF(K86<>\"\",IF(Deterministic.Surf.Type=\"Dense Graded Asphalt (DGAC)\",Manning.DGFC.Const*K99^Manning.DGFC.NR,IF(Deterministic.Surf.Type=\"Open Graded Friction Course (OGFC)\",Manning.OGFC.Const*K99^Manning.OGFC.NR*(HP!K72/100)^Manning.OGFC.Slope,IF(Deterministic.Surf.Type=\"User-Defined\",User.Defined.ManningValue,IF(K99<240,Manning.PCC.NR.lt.240.Const*K99^Manning.PCC.NR.lt.240.NR,IF(K99<500,Manning.PCC.NR.lt.500.Const*K99^Manning.PCC.NR.lt.500.NR,IF(K99<1000,Manning.PCC.NR.lt.1000.Const*K99^Manning.PCC.NR.lt.1000.NR,0.017)))))),\"\")","v":""},{"$f":"IF(L86<>\"\",IF(Deterministic.Surf.Type=\"Dense Graded Asphalt (DGAC)\",Manning.DGFC.Const*L99^Manning.DGFC.NR,IF(Deterministic.Surf.Type=\"Open Graded Friction Course (OGFC)\",Manning.OGFC.Const*L99^Manning.OGFC.NR*(HP!L72/100)^Manning.OGFC.Slope,IF(Deterministic.Surf.Type=\"User-Defined\",User.Defined.ManningValue,IF(L99<240,Manning.PCC.NR.lt.240.Const*L99^Manning.PCC.NR.lt.240.NR,IF(L99<500,Manning.PCC.NR.lt.500.Const*L99^Manning.PCC.NR.lt.500.NR,IF(L99<1000,Manning.PCC.NR.lt.1000.Const*L99^Manning.PCC.NR.lt.1000.NR,0.017)))))),\"\")","v":""},{"$f":"IF(M86<>\"\",IF(Deterministic.Surf.Type=\"Dense Graded Asphalt (DGAC)\",Manning.DGFC.Const*M99^Manning.DGFC.NR,IF(Deterministic.Surf.Type=\"Open Graded Friction Course (OGFC)\",Manning.OGFC.Const*M99^Manning.OGFC.NR*(HP!M72/100)^Manning.OGFC.Slope,IF(Deterministic.Surf.Type=\"User-Defined\",User.Defined.ManningValue,IF(M99<240,Manning.PCC.NR.lt.240.Const*M99^Manning.PCC.NR.lt.240.NR,IF(M99<500,Manning.PCC.NR.lt.500.Const*M99^Manning.PCC.NR.lt.500.NR,IF(M99<1000,Manning.PCC.NR.lt.1000.Const*M99^Manning.PCC.NR.lt.1000.NR,0.017)))))),\"\")","v":""},{"$f":"IF(N86<>\"\",IF(Deterministic.Surf.Type=\"Dense Graded Asphalt (DGAC)\",Manning.DGFC.Const*N99^Manning.DGFC.NR,IF(Deterministic.Surf.Type=\"Open Graded Friction Course (OGFC)\",Manning.OGFC.Const*N99^Manning.OGFC.NR*(HP!N72/100)^Manning.OGFC.Slope,IF(Deterministic.Surf.Type=\"User-Defined\",User.Defined.ManningValue,IF(N99<240,Manning.PCC.NR.lt.240.Const*N99^Manning.PCC.NR.lt.240.NR,IF(N99<500,Manning.PCC.NR.lt.500.Const*N99^Manning.PCC.NR.lt.500.NR,IF(N99<1000,Manning.PCC.NR.lt.1000.Const*N99^Manning.PCC.NR.lt.1000.NR,0.017)))))),\"\")","v":""},{"$f":"IF(O86<>\"\",IF(Deterministic.Surf.Type=\"Dense Graded Asphalt (DGAC)\",Manning.DGFC.Const*O99^Manning.DGFC.NR,IF(Deterministic.Surf.Type=\"Open Graded Friction Course (OGFC)\",Manning.OGFC.Const*O99^Manning.OGFC.NR*(HP!O72/100)^Manning.OGFC.Slope,IF(Deterministic.Surf.Type=\"User-Defined\",User.Defined.ManningValue,IF(O99<240,Manning.PCC.NR.lt.240.Const*O99^Manning.PCC.NR.lt.240.NR,IF(O99<500,Manning.PCC.NR.lt.500.Const*O99^Manning.PCC.NR.lt.500.NR,IF(O99<1000,Manning.PCC.NR.lt.1000.Const*O99^Manning.PCC.NR.lt.1000.NR,0.017)))))),\"\")","v":""}]
[null,0.5,"Reynolds",{"$f":"IF(D76<>\"\",D76*($B$101-$E$35)/12/3600/$E$80,\"\")","v":""},"","","","","","","","","","",""]
[null,null,"Manning's n",{"$f":"IF(D86<>\"\",IF(Deterministic.Surf.Type=\"Dense Graded Asphalt (DGAC)\",Manning.DGFC.Const*D101^Manning.DGFC.NR,IF(Deterministic.Surf.Type=\"Open Graded Friction Course (OGFC)\",Manning.OGFC.Const*D101^Manning.OGFC.NR*(HP!D72/100)^Manning.OGFC.Slope,IF(Deterministic.Surf.Type=\"User-Defined\",User.Defined.ManningValue,IF(D101<240,Manning.PCC.NR.lt.240.Const*D101^Manning.PCC.NR.lt.240.NR,IF(D101<500,Manning.PCC.NR.lt.500.Const*D101^Manning.PCC.NR.lt.500.NR,IF(D101<1000,Manning.PCC.NR.lt.1000.Const*D101^Manning.PCC.NR.lt.1000.NR,0.017)))))),\"\")","v":""},{"$f":"IF(E86<>\"\",IF(Deterministic.Surf.Type=\"Dense Graded Asphalt (DGAC)\",Manning.DGFC.Const*E101^Manning.DGFC.NR,IF(Deterministic.Surf.Type=\"Open Graded Friction Course (OGFC)\",Manning.OGFC.Const*E101^Manning.OGFC.NR*(HP!E72/100)^Manning.OGFC.Slope,IF(Deterministic.Surf.Type=\"User-Defined\",User.Defined.ManningValue,IF(E101<240,Manning.PCC.NR.lt.240.Const*E101^Manning.PCC.NR.lt.240.NR,IF(E101<500,Manning.PCC.NR.lt.500.Const*E101^Manning.PCC.NR.lt.500.NR,IF(E101<1000,Manning.PCC.NR.lt.1000.Const*E101^Manning.PCC.NR.lt.1000.NR,0.017)))))),\"\")","v":""},{"$f":"IF(F86<>\"\",IF(Deterministic.Surf.Type=\"Dense Graded Asphalt (DGAC)\",Manning.DGFC.Const*F101^Manning.DGFC.NR,IF(Deterministic.Surf.Type=\"Open Graded Friction Course (OGFC)\",Manning.OGFC.Const*F101^Manning.OGFC.NR*(HP!F72/100)^Manning.OGFC.Slope,IF(Deterministic.Surf.Type=\"User-Defined\",User.Defined.ManningValue,IF(F101<240,Manning.PCC.NR.lt.240.Const*F101^Manning.PCC.NR.lt.240.NR,IF(F101<500,Manning.PCC.NR.lt.500.Const*F101^Manning.PCC.NR.lt.500.NR,IF(F101<1000,Manning.PCC.NR.lt.1000.Const*F101^Manning.PCC.NR.lt.1000.NR,0.017)))))),\"\")","v":""},{"$f":"IF(G86<>\"\",IF(Deterministic.Surf.Type=\"Dense Graded Asphalt (DGAC)\",Manning.DGFC.Const*G101^Manning.DGFC.NR,IF(Deterministic.Surf.Type=\"Open Graded Friction Course (OGFC)\",Manning.OGFC.Const*G101^Manning.OGFC.NR*(HP!G72/100)^Manning.OGFC.Slope,IF(Deterministic.Surf.Type=\"User-Defined\",User.Defined.ManningValue,IF(G101<240,Manning.PCC.NR.lt.240.Const*G101^Manning.PCC.NR.lt.240.NR,IF(G101<500,Manning.PCC.NR.lt.500.Const*G101^Manning.PCC.NR.lt.500.NR,IF(G101<1000,Manning.PCC.NR.lt.1000.Const*G101^Manning.PCC.NR.lt.1000.NR,0.017)))))),\"\")","v":""},{"$f":"IF(H86<>\"\",IF(Deterministic.Surf.Type=\"Dense Graded Asphalt (DGAC)\",Manning.DGFC.Const*H101^Manning.DGFC.NR,IF(Deterministic.Surf.Type=\"Open Graded Friction Course (OGFC)\",Manning.OGFC.Const*H101^Manning.OGFC.NR*(HP!H72/100)^Manning.OGFC.Slope,IF(Deterministic.Surf.Type=\"User-Defined\",User.Defined.ManningValue,IF(H101<240,Manning.PCC.NR.lt.240.Const*H101^Manning.PCC.NR.lt.240.NR,IF(H101<500,Manning.PCC.NR.lt.500.Const*H101^Manning.PCC.NR.lt.500.NR,IF(H101<1000,Manning.PCC.NR.lt.1000.Const*H101^Manning.PCC.NR.lt.1000.NR,0.017)))))),\"\")","v":""},{"$f":"IF(I86<>\"\",IF(Deterministic.Surf.Type=\"Dense Graded Asphalt (DGAC)\",Manning.DGFC.Const*I101^Manning.DGFC.NR,IF(Deterministic.Surf.Type=\"Open Graded Friction Course (OGFC)\",Manning.OGFC.Const*I101^Manning.OGFC.NR*(HP!I72/100)^Manning.OGFC.Slope,IF(Deterministic.Surf.Type=\"User-Defined\",User.Defined.ManningValue,IF(I101<240,Manning.PCC.NR.lt.240.Const*I101^Manning.PCC.NR.lt.240.NR,IF(I101<500,Manning.PCC.NR.lt.500.Const*I101^Manning.PCC.NR.lt.500.NR,IF(I101<1000,Manning.PCC.NR.lt.1000.Const*I101^Manning.PCC.NR.lt.1000.NR,0.017)))))),\"\")","v":""},{"$f":"IF(J86<>\"\",IF(Deterministic.Surf.Type=\"Dense Graded Asphalt (DGAC)\",Manning.DGFC.Const*J101^Manning.DGFC.NR,IF(Deterministic.Surf.Type=\"Open Graded Friction Course (OGFC)\",Manning.OGFC.Const*J101^Manning.OGFC.NR*(HP!J72/100)^Manning.OGFC.Slope,IF(Deterministic.Surf.Type=\"User-Defined\",User.Defined.ManningValue,IF(J101<240,Manning.PCC.NR.lt.240.Const*J101^Manning.PCC.NR.lt.240.NR,IF(J101<500,Manning.PCC.NR.lt.500.Const*J101^Manning.PCC.NR.lt.500.NR,IF(J101<1000,Manning.PCC.NR.lt.1000.Const*J101^Manning.PCC.NR.lt.1000.NR,0.017)))))),\"\")","v":""},{"$f":"IF(K86<>\"\",IF(Deterministic.Surf.Type=\"Dense Graded Asphalt (DGAC)\",Manning.DGFC.Const*K101^Manning.DGFC.NR,IF(Deterministic.Surf.Type=\"Open Graded Friction Course (OGFC)\",Manning.OGFC.Const*K101^Manning.OGFC.NR*(HP!K72/100)^Manning.OGFC.Slope,IF(Deterministic.Surf.Type=\"User-Defined\",User.Defined.ManningValue,IF(K101<240,Manning.PCC.NR.lt.240.Const*K101^Manning.PCC.NR.lt.240.NR,IF(K101<500,Manning.PCC.NR.lt.500.Const*K101^Manning.PCC.NR.lt.500.NR,IF(K101<1000,Manning.PCC.NR.lt.1000.Const*K101^Manning.PCC.NR.lt.1000.NR,0.017)))))),\"\")","v":""},{"$f":"IF(L86<>\"\",IF(Deterministic.Surf.Type=\"Dense Graded Asphalt (DGAC)\",Manning.DGFC.Const*L101^Manning.DGFC.NR,IF(Deterministic.Surf.Type=\"Open Graded Friction Course (OGFC)\",Manning.OGFC.Const*L101^Manning.OGFC.NR*(HP!L72/100)^Manning.OGFC.Slope,IF(Deterministic.Surf.Type=\"User-Defined\",User.Defined.ManningValue,IF(L101<240,Manning.PCC.NR.lt.240.Const*L101^Manning.PCC.NR.lt.240.NR,IF(L101<500,Manning.PCC.NR.lt.500.Const*L101^Manning.PCC.NR.lt.500.NR,IF(L101<1000,Manning.PCC.NR.lt.1000.Const*L101^Manning.PCC.NR.lt.1000.NR,0.017)))))),\"\")","v":""},{"$f":"IF(M86<>\"\",IF(Deterministic.Surf.Type=\"Dense Graded Asphalt (DGAC)\",Manning.DGFC.Const*M101^Manning.DGFC.NR,IF(Deterministic.Surf.Type=\"Open Graded Friction Course (OGFC)\",Manning.OGFC.Const*M101^Manning.OGFC.NR*(HP!M72/100)^Manning.OGFC.Slope,IF(Deterministic.Surf.Type=\"User-Defined\",User.Defined.ManningValue,IF(M101<240,Manning.PCC.NR.lt.240.Const*M101^Manning.PCC.NR.lt.240.NR,IF(M101<500,Manning.PCC.NR.lt.500.Const*M101^Manning.PCC.NR.lt.500.NR,IF(M101<1000,Manning.PCC.NR.lt.1000.Const*M101^Manning.PCC.NR.lt.1000.NR,0.017)))))),\"\")","v":""},{"$f":"IF(N86<>\"\",IF(Deterministic.Surf.Type=\"Dense Graded Asphalt (DGAC)\",Manning.DGFC.Const*N101^Manning.DGFC.NR,IF(Deterministic.Surf.Type=\"Open Graded Friction Course (OGFC)\",Manning.OGFC.Const*N101^Manning.OGFC.NR*(HP!N72/100)^Manning.OGFC.Slope,IF(Deterministic.Surf.Type=\"User-Defined\",User.Defined.ManningValue,IF(N101<240,Manning.PCC.NR.lt.240.Const*N101^Manning.PCC.NR.lt.240.NR,IF(N101<500,Manning.PCC.NR.lt.500.Const*N101^Manning.PCC.NR.lt.500.NR,IF(N101<1000,Manning.PCC.NR.lt.1000.Const*N101^Manning.PCC.NR.lt.1000.NR,0.017)))))),\"\")","v":""},{"$f":"IF(O86<>\"\",IF(Deterministic.Surf.Type=\"Dense Graded Asphalt (DGAC)\",Manning.DGFC.Const*O101^Manning.DGFC.NR,IF(Deterministic.Surf.Type=\"Open Graded Friction Course (OGFC)\",Manning.OGFC.Const*O101^Manning.OGFC.NR*(HP!O72/100)^Manning.OGFC.Slope,IF(Deterministic.Surf.Type=\"User-Defined\",User.Defined.ManningValue,IF(O101<240,Manning.PCC.NR.lt.240.Const*O101^Manning.PCC.NR.lt.240.NR,IF(O101<500,Manning.PCC.NR.lt.500.Const*O101^Manning.PCC.NR.lt.500.NR,IF(O101<1000,Manning.PCC.NR.lt.1000.Const*O101^Manning.PCC.NR.lt.1000.NR,0.017)))))),\"\")","v":""}]
[null,1,"Reynolds",{"$f":"IF(D76<>\"\",D76*($B$103-$E$35)/12/3600/$E$80,\"\")","v":""},"","","","","","","","","","",""]
[null,null,"Manning's n",{"$f":"IF(D86<>\"\",IF(Deterministic.Surf.Type=\"Dense Graded Asphalt (DGAC)\",Manning.DGFC.Const*D103^Manning.DGFC.NR,IF(Deterministic.Surf.Type=\"Open Graded Friction Course (OGFC)\",Manning.OGFC.Const*D103^Manning.OGFC.NR*(HP!D72/100)^Manning.OGFC.Slope,IF(Deterministic.Surf.Type=\"User-Defined\",User.Defined.ManningValue,IF(D103<240,Manning.PCC.NR.lt.240.Const*D103^Manning.PCC.NR.lt.240.NR,IF(D103<500,Manning.PCC.NR.lt.500.Const*D103^Manning.PCC.NR.lt.500.NR,IF(D103<1000,Manning.PCC.NR.lt.1000.Const*D103^Manning.PCC.NR.lt.1000.NR,0.017)))))),\"\")","v":""},{"$f":"IF(E86<>\"\",IF(Deterministic.Surf.Type=\"Dense Graded Asphalt (DGAC)\",Manning.DGFC.Const*E103^Manning.DGFC.NR,IF(Deterministic.Surf.Type=\"Open Graded Friction Course (OGFC)\",Manning.OGFC.Const*E103^Manning.OGFC.NR*(HP!E72/100)^Manning.OGFC.Slope,IF(Deterministic.Surf.Type=\"User-Defined\",User.Defined.ManningValue,IF(E103<240,Manning.PCC.NR.lt.240.Const*E103^Manning.PCC.NR.lt.240.NR,IF(E103<500,Manning.PCC.NR.lt.500.Const*E103^Manning.PCC.NR.lt.500.NR,IF(E103<1000,Manning.PCC.NR.lt.1000.Const*E103^Manning.PCC.NR.lt.1000.NR,0.017)))))),\"\")","v":""},{"$f":"IF(F86<>\"\",IF(Deterministic.Surf.Type=\"Dense Graded Asphalt (DGAC)\",Manning.DGFC.Const*F103^Manning.DGFC.NR,IF(Deterministic.Surf.Type=\"Open Graded Friction Course (OGFC)\",Manning.OGFC.Const*F103^Manning.OGFC.NR*(HP!F72/100)^Manning.OGFC.Slope,IF(Deterministic.Surf.Type=\"User-Defined\",User.Defined.ManningValue,IF(F103<240,Manning.PCC.NR.lt.240.Const*F103^Manning.PCC.NR.lt.240.NR,IF(F103<500,Manning.PCC.NR.lt.500.Const*F103^Manning.PCC.NR.lt.500.NR,IF(F103<1000,Manning.PCC.NR.lt.1000.Const*F103^Manning.PCC.NR.lt.1000.NR,0.017)))))),\"\")","v":""},{"$f":"IF(G86<>\"\",IF(Deterministic.Surf.Type=\"Dense Graded Asphalt (DGAC)\",Manning.DGFC.Const*G103^Manning.DGFC.NR,IF(Deterministic.Surf.Type=\"Open Graded Friction Course (OGFC)\",Manning.OGFC.Const*G103^Manning.OGFC.NR*(HP!G72/100)^Manning.OGFC.Slope,IF(Deterministic.Surf.Type=\"User-Defined\",User.Defined.ManningValue,IF(G103<240,Manning.PCC.NR.lt.240.Const*G103^Manning.PCC.NR.lt.240.NR,IF(G103<500,Manning.PCC.NR.lt.500.Const*G103^Manning.PCC.NR.lt.500.NR,IF(G103<1000,Manning.PCC.NR.lt.1000.Const*G103^Manning.PCC.NR.lt.1000.NR,0.017)))))),\"\")","v":""},{"$f":"IF(H86<>\"\",IF(Deterministic.Surf.Type=\"Dense Graded Asphalt (DGAC)\",Manning.DGFC.Const*H103^Manning.DGFC.NR,IF(Deterministic.Surf.Type=\"Open Graded Friction Course (OGFC)\",Manning.OGFC.Const*H103^Manning.OGFC.NR*(HP!H72/100)^Manning.OGFC.Slope,IF(Deterministic.Surf.Type=\"User-Defined\",User.Defined.ManningValue,IF(H103<240,Manning.PCC.NR.lt.240.Const*H103^Manning.PCC.NR.lt.240.NR,IF(H103<500,Manning.PCC.NR.lt.500.Const*H103^Manning.PCC.NR.lt.500.NR,IF(H103<1000,Manning.PCC.NR.lt.1000.Const*H103^Manning.PCC.NR.lt.1000.NR,0.017)))))),\"\")","v":""},{"$f":"IF(I86<>\"\",IF(Deterministic.Surf.Type=\"Dense Graded Asphalt (DGAC)\",Manning.DGFC.Const*I103^Manning.DGFC.NR,IF(Deterministic.Surf.Type=\"Open Graded Friction Course (OGFC)\",Manning.OGFC.Const*I103^Manning.OGFC.NR*(HP!I72/100)^Manning.OGFC.Slope,IF(Deterministic.Surf.Type=\"User-Defined\",User.Defined.ManningValue,IF(I103<240,Manning.PCC.NR.lt.240.Const*I103^Manning.PCC.NR.lt.240.NR,IF(I103<500,Manning.PCC.NR.lt.500.Const*I103^Manning.PCC.NR.lt.500.NR,IF(I103<1000,Manning.PCC.NR.lt.1000.Const*I103^Manning.PCC.NR.lt.1000.NR,0.017)))))),\"\")","v":""},{"$f":"IF(J86<>\"\",IF(Deterministic.Surf.Type=\"Dense Graded Asphalt (DGAC)\",Manning.DGFC.Const*J103^Manning.DGFC.NR,IF(Deterministic.Surf.Type=\"Open Graded Friction Course (OGFC)\",Manning.OGFC.Const*J103^Manning.OGFC.NR*(HP!J72/100)^Manning.OGFC.Slope,IF(Deterministic.Surf.Type=\"User-Defined\",User.Defined.ManningValue,IF(J103<240,Manning.PCC.NR.lt.240.Const*J103^Manning.PCC.NR.lt.240.NR,IF(J103<500,Manning.PCC.NR.lt.500.Const*J103^Manning.PCC.NR.lt.500.NR,IF(J103<1000,Manning.PCC.NR.lt.1000.Const*J103^Manning.PCC.NR.lt.1000.NR,0.017)))))),\"\")","v":""},{"$f":"IF(K86<>\"\",IF(Deterministic.Surf.Type=\"Dense Graded Asphalt (DGAC)\",Manning.DGFC.Const*K103^Manning.DGFC.NR,IF(Deterministic.Surf.Type=\"Open Graded Friction Course (OGFC)\",Manning.OGFC.Const*K103^Manning.OGFC.NR*(HP!K72/100)^Manning.OGFC.Slope,IF(Deterministic.Surf.Type=\"User-Defined\",User.Defined.ManningValue,IF(K103<240,Manning.PCC.NR.lt.240.Const*K103^Manning.PCC.NR.lt.240.NR,IF(K103<500,Manning.PCC.NR.lt.500.Const*K103^Manning.PCC.NR.lt.500.NR,IF(K103<1000,Manning.PCC.NR.lt.1000.Const*K103^Manning.PCC.NR.lt.1000.NR,0.017)))))),\"\")","v":""},{"$f":"IF(L86<>\"\",IF(Deterministic.Surf.Type=\"Dense Graded Asphalt (DGAC)\",Manning.DGFC.Const*L103^Manning.DGFC.NR,IF(Deterministic.Surf.Type=\"Open Graded Friction Course (OGFC)\",Manning.OGFC.Const*L103^Manning.OGFC.NR*(HP!L72/100)^Manning.OGFC.Slope,IF(Deterministic.Surf.Type=\"User-Defined\",User.Defined.ManningValue,IF(L103<240,Manning.PCC.NR.lt.240.Const*L103^Manning.PCC.NR.lt.240.NR,IF(L103<500,Manning.PCC.NR.lt.500.Const*L103^Manning.PCC.NR.lt.500.NR,IF(L103<1000,Manning.PCC.NR.lt.1000.Const*L103^Manning.PCC.NR.lt.1000.NR,0.017)))))),\"\")","v":""},{"$f":"IF(M86<>\"\",IF(Deterministic.Surf.Type=\"Dense Graded Asphalt (DGAC)\",Manning.DGFC.Const*M103^Manning.DGFC.NR,IF(Deterministic.Surf.Type=\"Open Graded Friction Course (OGFC)\",Manning.OGFC.Const*M103^Manning.OGFC.NR*(HP!M72/100)^Manning.OGFC.Slope,IF(Deterministic.Surf.Type=\"User-Defined\",User.Defined.ManningValue,IF(M103<240,Manning.PCC.NR.lt.240.Const*M103^Manning.PCC.NR.lt.240.NR,IF(M103<500,Manning.PCC.NR.lt.500.Const*M103^Manning.PCC.NR.lt.500.NR,IF(M103<1000,Manning.PCC.NR.lt.1000.Const*M103^Manning.PCC.NR.lt.1000.NR,0.017)))))),\"\")","v":""},{"$f":"IF(N86<>\"\",IF(Deterministic.Surf.Type=\"Dense Graded Asphalt (DGAC)\",Manning.DGFC.Const*N103^Manning.DGFC.NR,IF(Deterministic.Surf.Type=\"Open Graded Friction Course (OGFC)\",Manning.OGFC.Const*N103^Manning.OGFC.NR*(HP!N72/100)^Manning.OGFC.Slope,IF(Deterministic.Surf.Type=\"User-Defined\",User.Defined.ManningValue,IF(N103<240,Manning.PCC.NR.lt.240.Const*N103^Manning.PCC.NR.lt.240.NR,IF(N103<500,Manning.PCC.NR.lt.500.Const*N103^Manning.PCC.NR.lt.500.NR,IF(N103<1000,Manning.PCC.NR.lt.1000.Const*N103^Manning.PCC.NR.lt.1000.NR,0.017)))))),\"\")","v":""},{"$f":"IF(O86<>\"\",IF(Deterministic.Surf.Type=\"Dense Graded Asphalt (DGAC)\",Manning.DGFC.Const*O103^Manning.DGFC.NR,IF(Deterministic.Surf.Type=\"Open Graded Friction Course (OGFC)\",Manning.OGFC.Const*O103^Manning.OGFC.NR*(HP!O72/100)^Manning.OGFC.Slope,IF(Deterministic.Surf.Type=\"User-Defined\",User.Defined.ManningValue,IF(O103<240,Manning.PCC.NR.lt.240.Const*O103^Manning.PCC.NR.lt.240.NR,IF(O103<500,Manning.PCC.NR.lt.500.Const*O103^Manning.PCC.NR.lt.500.NR,IF(O103<1000,Manning.PCC.NR.lt.1000.Const*O103^Manning.PCC.NR.lt.1000.NR,0.017)))))),\"\")","v":""}]
[null,2,"Reynolds",{"$f":"IF(D76<>\"\",D76*($B$105-$E$35)/12/3600/$E$80,\"\")","v":""},"","","","","","","","","","",""]
[null,null,"Manning's n",{"$f":"IF(D86<>\"\",IF(Deterministic.Surf.Type=\"Dense Graded Asphalt (DGAC)\",Manning.DGFC.Const*D105^Manning.DGFC.NR,IF(Deterministic.Surf.Type=\"Open Graded Friction Course (OGFC)\",Manning.OGFC.Const*D105^Manning.OGFC.NR*(HP!D72/100)^Manning.OGFC.Slope,IF(Deterministic.Surf.Type=\"User-Defined\",User.Defined.ManningValue,IF(D105<240,Manning.PCC.NR.lt.240.Const*D105^Manning.PCC.NR.lt.240.NR,IF(D105<500,Manning.PCC.NR.lt.500.Const*D105^Manning.PCC.NR.lt.500.NR,IF(D105<1000,Manning.PCC.NR.lt.1000.Const*D105^Manning.PCC.NR.lt.1000.NR,0.017)))))),\"\")","v":""},{"$f":"IF(E86<>\"\",IF(Deterministic.Surf.Type=\"Dense Graded Asphalt (DGAC)\",Manning.DGFC.Const*E105^Manning.DGFC.NR,IF(Deterministic.Surf.Type=\"Open Graded Friction Course (OGFC)\",Manning.OGFC.Const*E105^Manning.OGFC.NR*(HP!E72/100)^Manning.OGFC.Slope,IF(Deterministic.Surf.Type=\"User-Defined\",User.Defined.ManningValue,IF(E105<240,Manning.PCC.NR.lt.240.Const*E105^Manning.PCC.NR.lt.240.NR,IF(E105<500,Manning.PCC.NR.lt.500.Const*E105^Manning.PCC.NR.lt.500.NR,IF(E105<1000,Manning.PCC.NR.lt.1000.Const*E105^Manning.PCC.NR.lt.1000.NR,0.017)))))),\"\")","v":""},{"$f":"IF(F86<>\"\",IF(Deterministic.Surf.Type=\"Dense Graded Asphalt (DGAC)\",Manning.DGFC.Const*F105^Manning.DGFC.NR,IF(Deterministic.Surf.Type=\"Open Graded Friction Course (OGFC)\",Manning.OGFC.Const*F105^Manning.OGFC.NR*(HP!F72/100)^Manning.OGFC.Slope,IF(Deterministic.Surf.Type=\"User-Defined\",User.Defined.ManningValue,IF(F105<240,Manning.PCC.NR.lt.240.Const*F105^Manning.PCC.NR.lt.240.NR,IF(F105<500,Manning.PCC.NR.lt.500.Const*F105^Manning.PCC.NR.lt.500.NR,IF(F105<1000,Manning.PCC.NR.lt.1000.Const*F105^Manning.PCC.NR.lt.1000.NR,0.017)))))),\"\")","v":""},{"$f":"IF(G86<>\"\",IF(Deterministic.Surf.Type=\"Dense Graded Asphalt (DGAC)\",Manning.DGFC.Const*G105^Manning.DGFC.NR,IF(Deterministic.Surf.Type=\"Open Graded Friction Course (OGFC)\",Manning.OGFC.Const*G105^Manning.OGFC.NR*(HP!G72/100)^Manning.OGFC.Slope,IF(Deterministic.Surf.Type=\"User-Defined\",User.Defined.ManningValue,IF(G105<240,Manning.PCC.NR.lt.240.Const*G105^Manning.PCC.NR.lt.240.NR,IF(G105<500,Manning.PCC.NR.lt.500.Const*G105^Manning.PCC.NR.lt.500.NR,IF(G105<1000,Manning.PCC.NR.lt.1000.Const*G105^Manning.PCC.NR.lt.1000.NR,0.017)))))),\"\")","v":""},{"$f":"IF(H86<>\"\",IF(Deterministic.Surf.Type=\"Dense Graded Asphalt (DGAC)\",Manning.DGFC.Const*H105^Manning.DGFC.NR,IF(Deterministic.Surf.Type=\"Open Graded Friction Course (OGFC)\",Manning.OGFC.Const*H105^Manning.OGFC.NR*(HP!H72/100)^Manning.OGFC.Slope,IF(Deterministic.Surf.Type=\"User-Defined\",User.Defined.ManningValue,IF(H105<240,Manning.PCC.NR.lt.240.Const*H105^Manning.PCC.NR.lt.240.NR,IF(H105<500,Manning.PCC.NR.lt.500.Const*H105^Manning.PCC.NR.lt.500.NR,IF(H105<1000,Manning.PCC.NR.lt.1000.Const*H105^Manning.PCC.NR.lt.1000.NR,0.017)))))),\"\")","v":""},{"$f":"IF(I86<>\"\",IF(Deterministic.Surf.Type=\"Dense Graded Asphalt (DGAC)\",Manning.DGFC.Const*I105^Manning.DGFC.NR,IF(Deterministic.Surf.Type=\"Open Graded Friction Course (OGFC)\",Manning.OGFC.Const*I105^Manning.OGFC.NR*(HP!I72/100)^Manning.OGFC.Slope,IF(Deterministic.Surf.Type=\"User-Defined\",User.Defined.ManningValue,IF(I105<240,Manning.PCC.NR.lt.240.Const*I105^Manning.PCC.NR.lt.240.NR,IF(I105<500,Manning.PCC.NR.lt.500.Const*I105^Manning.PCC.NR.lt.500.NR,IF(I105<1000,Manning.PCC.NR.lt.1000.Const*I105^Manning.PCC.NR.lt.1000.NR,0.017)))))),\"\")","v":""},{"$f":"IF(J86<>\"\",IF(Deterministic.Surf.Type=\"Dense Graded Asphalt (DGAC)\",Manning.DGFC.Const*J105^Manning.DGFC.NR,IF(Deterministic.Surf.Type=\"Open Graded Friction Course (OGFC)\",Manning.OGFC.Const*J105^Manning.OGFC.NR*(HP!J72/100)^Manning.OGFC.Slope,IF(Deterministic.Surf.Type=\"User-Defined\",User.Defined.ManningValue,IF(J105<240,Manning.PCC.NR.lt.240.Const*J105^Manning.PCC.NR.lt.240.NR,IF(J105<500,Manning.PCC.NR.lt.500.Const*J105^Manning.PCC.NR.lt.500.NR,IF(J105<1000,Manning.PCC.NR.lt.1000.Const*J105^Manning.PCC.NR.lt.1000.NR,0.017)))))),\"\")","v":""},{"$f":"IF(K86<>\"\",IF(Deterministic.Surf.Type=\"Dense Graded Asphalt (DGAC)\",Manning.DGFC.Const*K105^Manning.DGFC.NR,IF(Deterministic.Surf.Type=\"Open Graded Friction Course (OGFC)\",Manning.OGFC.Const*K105^Manning.OGFC.NR*(HP!K72/100)^Manning.OGFC.Slope,IF(Deterministic.Surf.Type=\"User-Defined\",User.Defined.ManningValue,IF(K105<240,Manning.PCC.NR.lt.240.Const*K105^Manning.PCC.NR.lt.240.NR,IF(K105<500,Manning.PCC.NR.lt.500.Const*K105^Manning.PCC.NR.lt.500.NR,IF(K105<1000,Manning.PCC.NR.lt.1000.Const*K105^Manning.PCC.NR.lt.1000.NR,0.017)))))),\"\")","v":""},{"$f":"IF(L86<>\"\",IF(Deterministic.Surf.Type=\"Dense Graded Asphalt (DGAC)\",Manning.DGFC.Const*L105^Manning.DGFC.NR,IF(Deterministic.Surf.Type=\"Open Graded Friction Course (OGFC)\",Manning.OGFC.Const*L105^Manning.OGFC.NR*(HP!L72/100)^Manning.OGFC.Slope,IF(Deterministic.Surf.Type=\"User-Defined\",User.Defined.ManningValue,IF(L105<240,Manning.PCC.NR.lt.240.Const*L105^Manning.PCC.NR.lt.240.NR,IF(L105<500,Manning.PCC.NR.lt.500.Const*L105^Manning.PCC.NR.lt.500.NR,IF(L105<1000,Manning.PCC.NR.lt.1000.Const*L105^Manning.PCC.NR.lt.1000.NR,0.017)))))),\"\")","v":""},{"$f":"IF(M86<>\"\",IF(Deterministic.Surf.Type=\"Dense Graded Asphalt (DGAC)\",Manning.DGFC.Const*M105^Manning.DGFC.NR,IF(Deterministic.Surf.Type=\"Open Graded Friction Course (OGFC)\",Manning.OGFC.Const*M105^Manning.OGFC.NR*(HP!M72/100)^Manning.OGFC.Slope,IF(Deterministic.Surf.Type=\"User-Defined\",User.Defined.ManningValue,IF(M105<240,Manning.PCC.NR.lt.240.Const*M105^Manning.PCC.NR.lt.240.NR,IF(M105<500,Manning.PCC.NR.lt.500.Const*M105^Manning.PCC.NR.lt.500.NR,IF(M105<1000,Manning.PCC.NR.lt.1000.Const*M105^Manning.PCC.NR.lt.1000.NR,0.017)))))),\"\")","v":""},{"$f":"IF(N86<>\"\",IF(Deterministic.Surf.Type=\"Dense Graded Asphalt (DGAC)\",Manning.DGFC.Const*N105^Manning.DGFC.NR,IF(Deterministic.Surf.Type=\"Open Graded Friction Course (OGFC)\",Manning.OGFC.Const*N105^Manning.OGFC.NR*(HP!N72/100)^Manning.OGFC.Slope,IF(Deterministic.Surf.Type=\"User-Defined\",User.Defined.ManningValue,IF(N105<240,Manning.PCC.NR.lt.240.Const*N105^Manning.PCC.NR.lt.240.NR,IF(N105<500,Manning.PCC.NR.lt.500.Const*N105^Manning.PCC.NR.lt.500.NR,IF(N105<1000,Manning.PCC.NR.lt.1000.Const*N105^Manning.PCC.NR.lt.1000.NR,0.017)))))),\"\")","v":""},{"$f":"IF(O86<>\"\",IF(Deterministic.Surf.Type=\"Dense Graded Asphalt (DGAC)\",Manning.DGFC.Const*O105^Manning.DGFC.NR,IF(Deterministic.Surf.Type=\"Open Graded Friction Course (OGFC)\",Manning.OGFC.Const*O105^Manning.OGFC.NR*(HP!O72/100)^Manning.OGFC.Slope,IF(Deterministic.Surf.Type=\"User-Defined\",User.Defined.ManningValue,IF(O105<240,Manning.PCC.NR.lt.240.Const*O105^Manning.PCC.NR.lt.240.NR,IF(O105<500,Manning.PCC.NR.lt.500.Const*O105^Manning.PCC.NR.lt.500.NR,IF(O105<1000,Manning.PCC.NR.lt.1000.Const*O105^Manning.PCC.NR.lt.1000.NR,0.017)))))),\"\")","v":""}]
[null,3,"Reynolds",{"$f":"IF(D76<>\"\",D76*($B$107-$E$35)/12/3600/$E$80,\"\")","v":""},"","","","","","","","","","",""]
[null,null,"Manning's n",{"$f":"IF(D86<>\"\",IF(Deterministic.Surf.Type=\"Dense Graded Asphalt (DGAC)\",Manning.DGFC.Const*D107^Manning.DGFC.NR,IF(Deterministic.Surf.Type=\"Open Graded Friction Course (OGFC)\",Manning.OGFC.Const*D107^Manning.OGFC.NR*(HP!D72/100)^Manning.OGFC.Slope,IF(Deterministic.Surf.Type=\"User-Defined\",User.Defined.ManningValue,IF(D107<240,Manning.PCC.NR.lt.240.Const*D107^Manning.PCC.NR.lt.240.NR,IF(D107<500,Manning.PCC.NR.lt.500.Const*D107^Manning.PCC.NR.lt.500.NR,IF(D107<1000,Manning.PCC.NR.lt.1000.Const*D107^Manning.PCC.NR.lt.1000.NR,0.017)))))),\"\")","v":""},{"$f":"IF(E86<>\"\",IF(Deterministic.Surf.Type=\"Dense Graded Asphalt (DGAC)\",Manning.DGFC.Const*E107^Manning.DGFC.NR,IF(Deterministic.Surf.Type=\"Open Graded Friction Course (OGFC)\",Manning.OGFC.Const*E107^Manning.OGFC.NR*(HP!E72/100)^Manning.OGFC.Slope,IF(Deterministic.Surf.Type=\"User-Defined\",User.Defined.ManningValue,IF(E107<240,Manning.PCC.NR.lt.240.Const*E107^Manning.PCC.NR.lt.240.NR,IF(E107<500,Manning.PCC.NR.lt.500.Const*E107^Manning.PCC.NR.lt.500.NR,IF(E107<1000,Manning.PCC.NR.lt.1000.Const*E107^Manning.PCC.NR.lt.1000.NR,0.017)))))),\"\")","v":""},{"$f":"IF(F86<>\"\",IF(Deterministic.Surf.Type=\"Dense Graded Asphalt (DGAC)\",Manning.DGFC.Const*F107^Manning.DGFC.NR,IF(Deterministic.Surf.Type=\"Open Graded Friction Course (OGFC)\",Manning.OGFC.Const*F107^Manning.OGFC.NR*(HP!F72/100)^Manning.OGFC.Slope,IF(Deterministic.Surf.Type=\"User-Defined\",User.Defined.ManningValue,IF(F107<240,Manning.PCC.NR.lt.240.Const*F107^Manning.PCC.NR.lt.240.NR,IF(F107<500,Manning.PCC.NR.lt.500.Const*F107^Manning.PCC.NR.lt.500.NR,IF(F107<1000,Manning.PCC.NR.lt.1000.Const*F107^Manning.PCC.NR.lt.1000.NR,0.017)))))),\"\")","v":""},{"$f":"IF(G86<>\"\",IF(Deterministic.Surf.Type=\"Dense Graded Asphalt (DGAC)\",Manning.DGFC.Const*G107^Manning.DGFC.NR,IF(Deterministic.Surf.Type=\"Open Graded Friction Course (OGFC)\",Manning.OGFC.Const*G107^Manning.OGFC.NR*(HP!G72/100)^Manning.OGFC.Slope,IF(Deterministic.Surf.Type=\"User-Defined\",User.Defined.ManningValue,IF(G107<240,Manning.PCC.NR.lt.240.Const*G107^Manning.PCC.NR.lt.240.NR,IF(G107<500,Manning.PCC.NR.lt.500.Const*G107^Manning.PCC.NR.lt.500.NR,IF(G107<1000,Manning.PCC.NR.lt.1000.Const*G107^Manning.PCC.NR.lt.1000.NR,0.017)))))),\"\")","v":""},{"$f":"IF(H86<>\"\",IF(Deterministic.Surf.Type=\"Dense Graded Asphalt (DGAC)\",Manning.DGFC.Const*H107^Manning.DGFC.NR,IF(Deterministic.Surf.Type=\"Open Graded Friction Course (OGFC)\",Manning.OGFC.Const*H107^Manning.OGFC.NR*(HP!H72/100)^Manning.OGFC.Slope,IF(Deterministic.Surf.Type=\"User-Defined\",User.Defined.ManningValue,IF(H107<240,Manning.PCC.NR.lt.240.Const*H107^Manning.PCC.NR.lt.240.NR,IF(H107<500,Manning.PCC.NR.lt.500.Const*H107^Manning.PCC.NR.lt.500.NR,IF(H107<1000,Manning.PCC.NR.lt.1000.Const*H107^Manning.PCC.NR.lt.1000.NR,0.017)))))),\"\")","v":""},{"$f":"IF(I86<>\"\",IF(Deterministic.Surf.Type=\"Dense Graded Asphalt (DGAC)\",Manning.DGFC.Const*I107^Manning.DGFC.NR,IF(Deterministic.Surf.Type=\"Open Graded Friction Course (OGFC)\",Manning.OGFC.Const*I107^Manning.OGFC.NR*(HP!I72/100)^Manning.OGFC.Slope,IF(Deterministic.Surf.Type=\"User-Defined\",User.Defined.ManningValue,IF(I107<240,Manning.PCC.NR.lt.240.Const*I107^Manning.PCC.NR.lt.240.NR,IF(I107<500,Manning.PCC.NR.lt.500.Const*I107^Manning.PCC.NR.lt.500.NR,IF(I107<1000,Manning.PCC.NR.lt.1000.Const*I107^Manning.PCC.NR.lt.1000.NR,0.017)))))),\"\")","v":""},{"$f":"IF(J86<>\"\",IF(Deterministic.Surf.Type=\"Dense Graded Asphalt (DGAC)\",Manning.DGFC.Const*J107^Manning.DGFC.NR,IF(Deterministic.Surf.Type=\"Open Graded Friction Course (OGFC)\",Manning.OGFC.Const*J107^Manning.OGFC.NR*(HP!J72/100)^Manning.OGFC.Slope,IF(Deterministic.Surf.Type=\"User-Defined\",User.Defined.ManningValue,IF(J107<240,Manning.PCC.NR.lt.240.Const*J107^Manning.PCC.NR.lt.240.NR,IF(J107<500,Manning.PCC.NR.lt.500.Const*J107^Manning.PCC.NR.lt.500.NR,IF(J107<1000,Manning.PCC.NR.lt.1000.Const*J107^Manning.PCC.NR.lt.1000.NR,0.017)))))),\"\")","v":""},{"$f":"IF(K86<>\"\",IF(Deterministic.Surf.Type=\"Dense Graded Asphalt (DGAC)\",Manning.DGFC.Const*K107^Manning.DGFC.NR,IF(Deterministic.Surf.Type=\"Open Graded Friction Course (OGFC)\",Manning.OGFC.Const*K107^Manning.OGFC.NR*(HP!K72/100)^Manning.OGFC.Slope,IF(Deterministic.Surf.Type=\"User-Defined\",User.Defined.ManningValue,IF(K107<240,Manning.PCC.NR.lt.240.Const*K107^Manning.PCC.NR.lt.240.NR,IF(K107<500,Manning.PCC.NR.lt.500.Const*K107^Manning.PCC.NR.lt.500.NR,IF(K107<1000,Manning.PCC.NR.lt.1000.Const*K107^Manning.PCC.NR.lt.1000.NR,0.017)))))),\"\")","v":""},{"$f":"IF(L86<>\"\",IF(Deterministic.Surf.Type=\"Dense Graded Asphalt (DGAC)\",Manning.DGFC.Const*L107^Manning.DGFC.NR,IF(Deterministic.Surf.Type=\"Open Graded Friction Course (OGFC)\",Manning.OGFC.Const*L107^Manning.OGFC.NR*(HP!L72/100)^Manning.OGFC.Slope,IF(Deterministic.Surf.Type=\"User-Defined\",User.Defined.ManningValue,IF(L107<240,Manning.PCC.NR.lt.240.Const*L107^Manning.PCC.NR.lt.240.NR,IF(L107<500,Manning.PCC.NR.lt.500.Const*L107^Manning.PCC.NR.lt.500.NR,IF(L107<1000,Manning.PCC.NR.lt.1000.Const*L107^Manning.PCC.NR.lt.1000.NR,0.017)))))),\"\")","v":""},{"$f":"IF(M86<>\"\",IF(Deterministic.Surf.Type=\"Dense Graded Asphalt (DGAC)\",Manning.DGFC.Const*M107^Manning.DGFC.NR,IF(Deterministic.Surf.Type=\"Open Graded Friction Course (OGFC)\",Manning.OGFC.Const*M107^Manning.OGFC.NR*(HP!M72/100)^Manning.OGFC.Slope,IF(Deterministic.Surf.Type=\"User-Defined\",User.Defined.ManningValue,IF(M107<240,Manning.PCC.NR.lt.240.Const*M107^Manning.PCC.NR.lt.240.NR,IF(M107<500,Manning.PCC.NR.lt.500.Const*M107^Manning.PCC.NR.lt.500.NR,IF(M107<1000,Manning.PCC.NR.lt.1000.Const*M107^Manning.PCC.NR.lt.1000.NR,0.017)))))),\"\")","v":""},{"$f":"IF(N86<>\"\",IF(Deterministic.Surf.Type=\"Dense Graded Asphalt (DGAC)\",Manning.DGFC.Const*N107^Manning.DGFC.NR,IF(Deterministic.Surf.Type=\"Open Graded Friction Course (OGFC)\",Manning.OGFC.Const*N107^Manning.OGFC.NR*(HP!N72/100)^Manning.OGFC.Slope,IF(Deterministic.Surf.Type=\"User-Defined\",User.Defined.ManningValue,IF(N107<240,Manning.PCC.NR.lt.240.Const*N107^Manning.PCC.NR.lt.240.NR,IF(N107<500,Manning.PCC.NR.lt.500.Const*N107^Manning.PCC.NR.lt.500.NR,IF(N107<1000,Manning.PCC.NR.lt.1000.Const*N107^Manning.PCC.NR.lt.1000.NR,0.017)))))),\"\")","v":""},{"$f":"IF(O86<>\"\",IF(Deterministic.Surf.Type=\"Dense Graded Asphalt (DGAC)\",Manning.DGFC.Const*O107^Manning.DGFC.NR,IF(Deterministic.Surf.Type=\"Open Graded Friction Course (OGFC)\",Manning.OGFC.Const*O107^Manning.OGFC.NR*(HP!O72/100)^Manning.OGFC.Slope,IF(Deterministic.Surf.Type=\"User-Defined\",User.Defined.ManningValue,IF(O107<240,Manning.PCC.NR.lt.240.Const*O107^Manning.PCC.NR.lt.240.NR,IF(O107<500,Manning.PCC.NR.lt.500.Const*O107^Manning.PCC.NR.lt.500.NR,IF(O107<1000,Manning.PCC.NR.lt.1000.Const*O107^Manning.PCC.NR.lt.1000.NR,0.017)))))),\"\")","v":""}]
[null,4,"Reynolds",{"$f":"IF(D76<>\"\",D76*($B$109-$E$35)/12/3600/$E$80,\"\")","v":""},"","","","","","","","","","",""]
[null,null,"Manning's n",{"$f":"IF(D86<>\"\",IF(Deterministic.Surf.Type=\"Dense Graded Asphalt (DGAC)\",Manning.DGFC.Const*D109^Manning.DGFC.NR,IF(Deterministic.Surf.Type=\"Open Graded Friction Course (OGFC)\",Manning.OGFC.Const*D109^Manning.OGFC.NR*(HP!D72/100)^Manning.OGFC.Slope,IF(Deterministic.Surf.Type=\"User-Defined\",User.Defined.ManningValue,IF(D109<240,Manning.PCC.NR.lt.240.Const*D109^Manning.PCC.NR.lt.240.NR,IF(D109<500,Manning.PCC.NR.lt.500.Const*D109^Manning.PCC.NR.lt.500.NR,IF(D109<1000,Manning.PCC.NR.lt.1000.Const*D109^Manning.PCC.NR.lt.1000.NR,0.017)))))),\"\")","v":""},{"$f":"IF(E86<>\"\",IF(Deterministic.Surf.Type=\"Dense Graded Asphalt (DGAC)\",Manning.DGFC.Const*E109^Manning.DGFC.NR,IF(Deterministic.Surf.Type=\"Open Graded Friction Course (OGFC)\",Manning.OGFC.Const*E109^Manning.OGFC.NR*(HP!E72/100)^Manning.OGFC.Slope,IF(Deterministic.Surf.Type=\"User-Defined\",User.Defined.ManningValue,IF(E109<240,Manning.PCC.NR.lt.240.Const*E109^Manning.PCC.NR.lt.240.NR,IF(E109<500,Manning.PCC.NR.lt.500.Const*E109^Manning.PCC.NR.lt.500.NR,IF(E109<1000,Manning.PCC.NR.lt.1000.Const*E109^Manning.PCC.NR.lt.1000.NR,0.017)))))),\"\")","v":""},{"$f":"IF(F86<>\"\",IF(Deterministic.Surf.Type=\"Dense Graded Asphalt (DGAC)\",Manning.DGFC.Const*F109^Manning.DGFC.NR,IF(Deterministic.Surf.Type=\"Open Graded Friction Course (OGFC)\",Manning.OGFC.Const*F109^Manning.OGFC.NR*(HP!F72/100)^Manning.OGFC.Slope,IF(Deterministic.Surf.Type=\"User-Defined\",User.Defined.ManningValue,IF(F109<240,Manning.PCC.NR.lt.240.Const*F109^Manning.PCC.NR.lt.240.NR,IF(F109<500,Manning.PCC.NR.lt.500.Const*F109^Manning.PCC.NR.lt.500.NR,IF(F109<1000,Manning.PCC.NR.lt.1000.Const*F109^Manning.PCC.NR.lt.1000.NR,0.017)))))),\"\")","v":""},{"$f":"IF(G86<>\"\",IF(Deterministic.Surf.Type=\"Dense Graded Asphalt (DGAC)\",Manning.DGFC.Const*G109^Manning.DGFC.NR,IF(Deterministic.Surf.Type=\"Open Graded Friction Course (OGFC)\",Manning.OGFC.Const*G109^Manning.OGFC.NR*(HP!G72/100)^Manning.OGFC.Slope,IF(Deterministic.Surf.Type=\"User-Defined\",User.Defined.ManningValue,IF(G109<240,Manning.PCC.NR.lt.240.Const*G109^Manning.PCC.NR.lt.240.NR,IF(G109<500,Manning.PCC.NR.lt.500.Const*G109^Manning.PCC.NR.lt.500.NR,IF(G109<1000,Manning.PCC.NR.lt.1000.Const*G109^Manning.PCC.NR.lt.1000.NR,0.017)))))),\"\")","v":""},{"$f":"IF(H86<>\"\",IF(Deterministic.Surf.Type=\"Dense Graded Asphalt (DGAC)\",Manning.DGFC.Const*H109^Manning.DGFC.NR,IF(Deterministic.Surf.Type=\"Open Graded Friction Course (OGFC)\",Manning.OGFC.Const*H109^Manning.OGFC.NR*(HP!H72/100)^Manning.OGFC.Slope,IF(Deterministic.Surf.Type=\"User-Defined\",User.Defined.ManningValue,IF(H109<240,Manning.PCC.NR.lt.240.Const*H109^Manning.PCC.NR.lt.240.NR,IF(H109<500,Manning.PCC.NR.lt.500.Const*H109^Manning.PCC.NR.lt.500.NR,IF(H109<1000,Manning.PCC.NR.lt.1000.Const*H109^Manning.PCC.NR.lt.1000.NR,0.017)))))),\"\")","v":""},{"$f":"IF(I86<>\"\",IF(Deterministic.Surf.Type=\"Dense Graded Asphalt (DGAC)\",Manning.DGFC.Const*I109^Manning.DGFC.NR,IF(Deterministic.Surf.Type=\"Open Graded Friction Course (OGFC)\",Manning.OGFC.Const*I109^Manning.OGFC.NR*(HP!I72/100)^Manning.OGFC.Slope,IF(Deterministic.Surf.Type=\"User-Defined\",User.Defined.ManningValue,IF(I109<240,Manning.PCC.NR.lt.240.Const*I109^Manning.PCC.NR.lt.240.NR,IF(I109<500,Manning.PCC.NR.lt.500.Const*I109^Manning.PCC.NR.lt.500.NR,IF(I109<1000,Manning.PCC.NR.lt.1000.Const*I109^Manning.PCC.NR.lt.1000.NR,0.017)))))),\"\")","v":""},{"$f":"IF(J86<>\"\",IF(Deterministic.Surf.Type=\"Dense Graded Asphalt (DGAC)\",Manning.DGFC.Const*J109^Manning.DGFC.NR,IF(Deterministic.Surf.Type=\"Open Graded Friction Course (OGFC)\",Manning.OGFC.Const*J109^Manning.OGFC.NR*(HP!J72/100)^Manning.OGFC.Slope,IF(Deterministic.Surf.Type=\"User-Defined\",User.Defined.ManningValue,IF(J109<240,Manning.PCC.NR.lt.240.Const*J109^Manning.PCC.NR.lt.240.NR,IF(J109<500,Manning.PCC.NR.lt.500.Const*J109^Manning.PCC.NR.lt.500.NR,IF(J109<1000,Manning.PCC.NR.lt.1000.Const*J109^Manning.PCC.NR.lt.1000.NR,0.017)))))),\"\")","v":""},{"$f":"IF(K86<>\"\",IF(Deterministic.Surf.Type=\"Dense Graded Asphalt (DGAC)\",Manning.DGFC.Const*K109^Manning.DGFC.NR,IF(Deterministic.Surf.Type=\"Open Graded Friction Course (OGFC)\",Manning.OGFC.Const*K109^Manning.OGFC.NR*(HP!K72/100)^Manning.OGFC.Slope,IF(Deterministic.Surf.Type=\"User-Defined\",User.Defined.ManningValue,IF(K109<240,Manning.PCC.NR.lt.240.Const*K109^Manning.PCC.NR.lt.240.NR,IF(K109<500,Manning.PCC.NR.lt.500.Const*K109^Manning.PCC.NR.lt.500.NR,IF(K109<1000,Manning.PCC.NR.lt.1000.Const*K109^Manning.PCC.NR.lt.1000.NR,0.017)))))),\"\")","v":""},{"$f":"IF(L86<>\"\",IF(Deterministic.Surf.Type=\"Dense Graded Asphalt (DGAC)\",Manning.DGFC.Const*L109^Manning.DGFC.NR,IF(Deterministic.Surf.Type=\"Open Graded Friction Course (OGFC)\",Manning.OGFC.Const*L109^Manning.OGFC.NR*(HP!L72/100)^Manning.OGFC.Slope,IF(Deterministic.Surf.Type=\"User-Defined\",User.Defined.ManningValue,IF(L109<240,Manning.PCC.NR.lt.240.Const*L109^Manning.PCC.NR.lt.240.NR,IF(L109<500,Manning.PCC.NR.lt.500.Const*L109^Manning.PCC.NR.lt.500.NR,IF(L109<1000,Manning.PCC.NR.lt.1000.Const*L109^Manning.PCC.NR.lt.1000.NR,0.017)))))),\"\")","v":""},{"$f":"IF(M86<>\"\",IF(Deterministic.Surf.Type=\"Dense Graded Asphalt (DGAC)\",Manning.DGFC.Const*M109^Manning.DGFC.NR,IF(Deterministic.Surf.Type=\"Open Graded Friction Course (OGFC)\",Manning.OGFC.Const*M109^Manning.OGFC.NR*(HP!M72/100)^Manning.OGFC.Slope,IF(Deterministic.Surf.Type=\"User-Defined\",User.Defined.ManningValue,IF(M109<240,Manning.PCC.NR.lt.240.Const*M109^Manning.PCC.NR.lt.240.NR,IF(M109<500,Manning.PCC.NR.lt.500.Const*M109^Manning.PCC.NR.lt.500.NR,IF(M109<1000,Manning.PCC.NR.lt.1000.Const*M109^Manning.PCC.NR.lt.1000.NR,0.017)))))),\"\")","v":""},{"$f":"IF(N86<>\"\",IF(Deterministic.Surf.Type=\"Dense Graded Asphalt (DGAC)\",Manning.DGFC.Const*N109^Manning.DGFC.NR,IF(Deterministic.Surf.Type=\"Open Graded Friction Course (OGFC)\",Manning.OGFC.Const*N109^Manning.OGFC.NR*(HP!N72/100)^Manning.OGFC.Slope,IF(Deterministic.Surf.Type=\"User-Defined\",User.Defined.ManningValue,IF(N109<240,Manning.PCC.NR.lt.240.Const*N109^Manning.PCC.NR.lt.240.NR,IF(N109<500,Manning.PCC.NR.lt.500.Const*N109^Manning.PCC.NR.lt.500.NR,IF(N109<1000,Manning.PCC.NR.lt.1000.Const*N109^Manning.PCC.NR.lt.1000.NR,0.017)))))),\"\")","v":""},{"$f":"IF(O86<>\"\",IF(Deterministic.Surf.Type=\"Dense Graded Asphalt (DGAC)\",Manning.DGFC.Const*O109^Manning.DGFC.NR,IF(Deterministic.Surf.Type=\"Open Graded Friction Course (OGFC)\",Manning.OGFC.Const*O109^Manning.OGFC.NR*(HP!O72/100)^Manning.OGFC.Slope,IF(Deterministic.Surf.Type=\"User-Defined\",User.Defined.ManningValue,IF(O109<240,Manning.PCC.NR.lt.240.Const*O109^Manning.PCC.NR.lt.240.NR,IF(O109<500,Manning.PCC.NR.lt.500.Const*O109^Manning.PCC.NR.lt.500.NR,IF(O109<1000,Manning.PCC.NR.lt.1000.Const*O109^Manning.PCC.NR.lt.1000.NR,0.017)))))),\"\")","v":""}]
[]
[]
[]
[]
["Gallaway",null,null,null,null,null,null,null,null,null,null,null,null,null,null,null,"NZ Mod"]
["Plane Number",1,2,3,4,5,6,7,8,9,10,11,12,null,null,null,"Plane Number",1,2,3,4,5,6,7,8,9,10,11,12]
["Intensity (in/hr)","Shoulder","Lane 1","Lane 2","Lane 3","Lane 4","Lane 5","Lane 6","Lane 7","Lane 8","Lane 9","Lane 10","Lane 11",null,null,null,"Intensity (in/hr)","Shoulder","Lane 1","Lane 2","Lane 3","Lane 4","Lane 5","Lane 6","Lane 7","Lane 8","Lane 9","Lane 10","Lane 11"]
[0.1,{"$f":"IF(AND(HP!D$72<>\"\",HP!D$39<>\"\"),(WFT.G.Const*HP!$E$81^WFT.G.MTD*HP!D$76^WFT.G.DP*$A$118^WFT.G.Int*(HP!D$72/100)^WFT.G.Slope-HP!$E$81)*HP!$G$19,\"\")","v":""},{"$f":"IF(AND(HP!E$72<>\"\",HP!E$39<>\"\"),(WFT.G.Const*HP!$E$81^WFT.G.MTD*HP!E$76^WFT.G.DP*$A$118^WFT.G.Int*(HP!E$72/100)^WFT.G.Slope-HP!$E$81)*HP!$G$19,\"\")","v":""},{"$f":"IF(AND(HP!F$72<>\"\",HP!F$39<>\"\"),(WFT.G.Const*HP!$E$81^WFT.G.MTD*HP!F$76^WFT.G.DP*$A$118^WFT.G.Int*(HP!F$72/100)^WFT.G.Slope-HP!$E$81)*HP!$G$19,\"\")","v":""},{"$f":"IF(AND(HP!G$72<>\"\",HP!G$39<>\"\"),(WFT.G.Const*HP!$E$81^WFT.G.MTD*HP!G$76^WFT.G.DP*$A$118^WFT.G.Int*(HP!G$72/100)^WFT.G.Slope-HP!$E$81)*HP!$G$19,\"\")","v":""},{"$f":"IF(AND(HP!H$72<>\"\",HP!H$39<>\"\"),(WFT.G.Const*HP!$E$81^WFT.G.MTD*HP!H$76^WFT.G.DP*$A$118^WFT.G.Int*(HP!H$72/100)^WFT.G.Slope-HP!$E$81)*HP!$G$19,\"\")","v":""},{"$f":"IF(AND(HP!I$72<>\"\",HP!I$39<>\"\"),(WFT.G.Const*HP!$E$81^WFT.G.MTD*HP!I$76^WFT.G.DP*$A$118^WFT.G.Int*(HP!I$72/100)^WFT.G.Slope-HP!$E$81)*HP!$G$19,\"\")","v":""},{"$f":"IF(AND(HP!J$72<>\"\",HP!J$39<>\"\"),(WFT.G.Const*HP!$E$81^WFT.G.MTD*HP!J$76^WFT.G.DP*$A$118^WFT.G.Int*(HP!J$72/100)^WFT.G.Slope-HP!$E$81)*HP!$G$19,\"\")","v":""},{"$f":"IF(AND(HP!K$72<>\"\",HP!K$39<>\"\"),(WFT.G.Const*HP!$E$81^WFT.G.MTD*HP!K$76^WFT.G.DP*$A$118^WFT.G.Int*(HP!K$72/100)^WFT.G.Slope-HP!$E$81)*HP!$G$19,\"\")","v":""},{"$f":"IF(AND(HP!L$72<>\"\",HP!L$39<>\"\"),(WFT.G.Const*HP!$E$81^WFT.G.MTD*HP!L$76^WFT.G.DP*$A$118^WFT.G.Int*(HP!L$72/100)^WFT.G.Slope-HP!$E$81)*HP!$G$19,\"\")","v":""},{"$f":"IF(AND(HP!M$72<>\"\",HP!M$39<>\"\"),(WFT.G.Const*HP!$E$81^WFT.G.MTD*HP!M$76^WFT.G.DP*$A$118^WFT.G.Int*(HP!M$72/100)^WFT.G.Slope-HP!$E$81)*HP!$G$19,\"\")","v":""},{"$f":"IF(AND(HP!N$72<>\"\",HP!N$39<>\"\"),(WFT.G.Const*HP!$E$81^WFT.G.MTD*HP!N$76^WFT.G.DP*$A$118^WFT.G.Int*(HP!N$72/100)^WFT.G.Slope-HP!$E$81)*HP!$G$19,\"\")","v":""},{"$f":"IF(AND(HP!O$72<>\"\",HP!O$39<>\"\"),(WFT.G.Const*HP!$E$81^WFT.G.MTD*HP!O$76^WFT.G.DP*$A$118^WFT.G.Int*(HP!O$72/100)^WFT.G.Slope-HP!$E$81)*HP!$G$19,\"\")","v":""},null,null,null,0.1,{"$f":"IF(AND(HP!D$72<>\"\",HP!D$39<>\"\"),(CONVERT(WFT.N.Const*CONVERT(HP!$E$81,\"in\",\"mm\")^WFT.N.MTD*CONVERT(HP!D$76,\"ft\",\"m\")^WFT.N.DP*CONVERT(($Q$118),\"in\",\"mm\")^WFT.N.Int*(HP!D$72/100)^WFT.N.Slope,\"mm\",\"in\")-HP!$E$81)*HP!$G$19,\"\")","v":""},{"$f":"IF(AND(HP!E$72<>\"\",HP!E$39<>\"\"),(CONVERT(WFT.N.Const*CONVERT(HP!$E$81,\"in\",\"mm\")^WFT.N.MTD*CONVERT(HP!E$76,\"ft\",\"m\")^WFT.N.DP*CONVERT(($Q$118),\"in\",\"mm\")^WFT.N.Int*(HP!E$72/100)^WFT.N.Slope,\"mm\",\"in\")-HP!$E$81)*HP!$G$19,\"\")","v":""},{"$f":"IF(AND(HP!F$72<>\"\",HP!F$39<>\"\"),(CONVERT(WFT.N.Const*CONVERT(HP!$E$81,\"in\",\"mm\")^WFT.N.MTD*CONVERT(HP!F$76,\"ft\",\"m\")^WFT.N.DP*CONVERT(($Q$118),\"in\",\"mm\")^WFT.N.Int*(HP!F$72/100)^WFT.N.Slope,\"mm\",\"in\")-HP!$E$81)*HP!$G$19,\"\")","v":""},{"$f":"IF(AND(HP!G$72<>\"\",HP!G$39<>\"\"),(CONVERT(WFT.N.Const*CONVERT(HP!$E$81,\"in\",\"mm\")^WFT.N.MTD*CONVERT(HP!G$76,\"ft\",\"m\")^WFT.N.DP*CONVERT(($Q$118),\"in\",\"mm\")^WFT.N.Int*(HP!G$72/100)^WFT.N.Slope,\"mm\",\"in\")-HP!$E$81)*HP!$G$19,\"\")","v":""},{"$f":"IF(AND(HP!H$72<>\"\",HP!H$39<>\"\"),(CONVERT(WFT.N.Const*CONVERT(HP!$E$81,\"in\",\"mm\")^WFT.N.MTD*CONVERT(HP!H$76,\"ft\",\"m\")^WFT.N.DP*CONVERT(($Q$118),\"in\",\"mm\")^WFT.N.Int*(HP!H$72/100)^WFT.N.Slope,\"mm\",\"in\")-HP!$E$81)*HP!$G$19,\"\")","v":""},{"$f":"IF(AND(HP!I$72<>\"\",HP!I$39<>\"\"),(CONVERT(WFT.N.Const*CONVERT(HP!$E$81,\"in\",\"mm\")^WFT.N.MTD*CONVERT(HP!I$76,\"ft\",\"m\")^WFT.N.DP*CONVERT(($Q$118),\"in\",\"mm\")^WFT.N.Int*(HP!I$72/100)^WFT.N.Slope,\"mm\",\"in\")-HP!$E$81)*HP!$G$19,\"\")","v":""},{"$f":"IF(AND(HP!J$72<>\"\",HP!J$39<>\"\"),(CONVERT(WFT.N.Const*CONVERT(HP!$E$81,\"in\",\"mm\")^WFT.N.MTD*CONVERT(HP!J$76,\"ft\",\"m\")^WFT.N.DP*CONVERT(($Q$118),\"in\",\"mm\")^WFT.N.Int*(HP!J$72/100)^WFT.N.Slope,\"mm\",\"in\")-HP!$E$81)*HP!$G$19,\"\")","v":""},{"$f":"IF(AND(HP!K$72<>\"\",HP!K$39<>\"\"),(CONVERT(WFT.N.Const*CONVERT(HP!$E$81,\"in\",\"mm\")^WFT.N.MTD*CONVERT(HP!K$76,\"ft\",\"m\")^WFT.N.DP*CONVERT(($Q$118),\"in\",\"mm\")^WFT.N.Int*(HP!K$72/100)^WFT.N.Slope,\"mm\",\"in\")-HP!$E$81)*HP!$G$19,\"\")","v":""},{"$f":"IF(AND(HP!L$72<>\"\",HP!L$39<>\"\"),(CONVERT(WFT.N.Const*CONVERT(HP!$E$81,\"in\",\"mm\")^WFT.N.MTD*CONVERT(HP!L$76,\"ft\",\"m\")^WFT.N.DP*CONVERT(($Q$118),\"in\",\"mm\")^WFT.N.Int*(HP!L$72/100)^WFT.N.Slope,\"mm\",\"in\")-HP!$E$81)*HP!$G$19,\"\")","v":""},{"$f":"IF(AND(HP!M$72<>\"\",HP!M$39<>\"\"),(CONVERT(WFT.N.Const*CONVERT(HP!$E$81,\"in\",\"mm\")^WFT.N.MTD*CONVERT(HP!M$76,\"ft\",\"m\")^WFT.N.DP*CONVERT(($Q$118),\"in\",\"mm\")^WFT.N.Int*(HP!M$72/100)^WFT.N.Slope,\"mm\",\"in\")-HP!$E$81)*HP!$G$19,\"\")","v":""},{"$f":"IF(AND(HP!N$72<>\"\",HP!N$39<>\"\"),(CONVERT(WFT.N.Const*CONVERT(HP!$E$81,\"in\",\"mm\")^WFT.N.MTD*CONVERT(HP!N$76,\"ft\",\"m\")^WFT.N.DP*CONVERT(($Q$118),\"in\",\"mm\")^WFT.N.Int*(HP!N$72/100)^WFT.N.Slope,\"mm\",\"in\")-HP!$E$81)*HP!$G$19,\"\")","v":""},{"$f":"IF(AND(HP!O$72<>\"\",HP!O$39<>\"\"),(CONVERT(WFT.N.Const*CONVERT(HP!$E$81,\"in\",\"mm\")^WFT.N.MTD*CONVERT(HP!O$76,\"ft\",\"m\")^WFT.N.DP*CONVERT(($Q$118),\"in\",\"mm\")^WFT.N.Int*(HP!O$72/100)^WFT.N.Slope,\"mm\",\"in\")-HP!$E$81)*HP!$G$19,\"\")","v":""}]
[0.25,{"$f":"IF(AND(HP!D$72<>\"\",HP!D$39<>\"\"),(WFT.G.Const*HP!$E$81^WFT.G.MTD*HP!D$76^WFT.G.DP*$A$119^WFT.G.Int*(HP!D$72/100)^WFT.G.Slope-HP!$E$81)*HP!$G$19,\"\")","v":""},{"$f":"IF(AND(HP!E$72<>\"\",HP!E$39<>\"\"),(WFT.G.Const*HP!$E$81^WFT.G.MTD*HP!E$76^WFT.G.DP*$A$119^WFT.G.Int*(HP!E$72/100)^WFT.G.Slope-HP!$E$81)*HP!$G$19,\"\")","v":""},{"$f":"IF(AND(HP!F$72<>\"\",HP!F$39<>\"\"),(WFT.G.Const*HP!$E$81^WFT.G.MTD*HP!F$76^WFT.G.DP*$A$119^WFT.G.Int*(HP!F$72/100)^WFT.G.Slope-HP!$E$81)*HP!$G$19,\"\")","v":""},{"$f":"IF(AND(HP!G$72<>\"\",HP!G$39<>\"\"),(WFT.G.Const*HP!$E$81^WFT.G.MTD*HP!G$76^WFT.G.DP*$A$119^WFT.G.Int*(HP!G$72/100)^WFT.G.Slope-HP!$E$81)*HP!$G$19,\"\")","v":""},{"$f":"IF(AND(HP!H$72<>\"\",HP!H$39<>\"\"),(WFT.G.Const*HP!$E$81^WFT.G.MTD*HP!H$76^WFT.G.DP*$A$119^WFT.G.Int*(HP!H$72/100)^WFT.G.Slope-HP!$E$81)*HP!$G$19,\"\")","v":""},{"$f":"IF(AND(HP!I$72<>\"\",HP!I$39<>\"\"),(WFT.G.Const*HP!$E$81^WFT.G.MTD*HP!I$76^WFT.G.DP*$A$119^WFT.G.Int*(HP!I$72/100)^WFT.G.Slope-HP!$E$81)*HP!$G$19,\"\")","v":""},{"$f":"IF(AND(HP!J$72<>\"\",HP!J$39<>\"\"),(WFT.G.Const*HP!$E$81^WFT.G.MTD*HP!J$76^WFT.G.DP*$A$119^WFT.G.Int*(HP!J$72/100)^WFT.G.Slope-HP!$E$81)*HP!$G$19,\"\")","v":""},{"$f":"IF(AND(HP!K$72<>\"\",HP!K$39<>\"\"),(WFT.G.Const*HP!$E$81^WFT.G.MTD*HP!K$76^WFT.G.DP*$A$119^WFT.G.Int*(HP!K$72/100)^WFT.G.Slope-HP!$E$81)*HP!$G$19,\"\")","v":""},{"$f":"IF(AND(HP!L$72<>\"\",HP!L$39<>\"\"),(WFT.G.Const*HP!$E$81^WFT.G.MTD*HP!L$76^WFT.G.DP*$A$119^WFT.G.Int*(HP!L$72/100)^WFT.G.Slope-HP!$E$81)*HP!$G$19,\"\")","v":""},{"$f":"IF(AND(HP!M$72<>\"\",HP!M$39<>\"\"),(WFT.G.Const*HP!$E$81^WFT.G.MTD*HP!M$76^WFT.G.DP*$A$119^WFT.G.Int*(HP!M$72/100)^WFT.G.Slope-HP!$E$81)*HP!$G$19,\"\")","v":""},{"$f":"IF(AND(HP!N$72<>\"\",HP!N$39<>\"\"),(WFT.G.Const*HP!$E$81^WFT.G.MTD*HP!N$76^WFT.G.DP*$A$119^WFT.G.Int*(HP!N$72/100)^WFT.G.Slope-HP!$E$81)*HP!$G$19,\"\")","v":""},{"$f":"IF(AND(HP!O$72<>\"\",HP!O$39<>\"\"),(WFT.G.Const*HP!$E$81^WFT.G.MTD*HP!O$76^WFT.G.DP*$A$119^WFT.G.Int*(HP!O$72/100)^WFT.G.Slope-HP!$E$81)*HP!$G$19,\"\")","v":""},null,null,null,0.25,{"$f":"IF(AND(HP!D$72<>\"\",HP!D$39<>\"\"),(CONVERT(WFT.N.Const*CONVERT(HP!$E$81,\"in\",\"mm\")^WFT.N.MTD*CONVERT(HP!D$76,\"ft\",\"m\")^WFT.N.DP*CONVERT(($Q$119),\"in\",\"mm\")^WFT.N.Int*(HP!D$72/100)^WFT.N.Slope,\"mm\",\"in\")-HP!$E$81)*HP!$G$19,\"\")","v":""},{"$f":"IF(AND(HP!E$72<>\"\",HP!E$39<>\"\"),(CONVERT(WFT.N.Const*CONVERT(HP!$E$81,\"in\",\"mm\")^WFT.N.MTD*CONVERT(HP!E$76,\"ft\",\"m\")^WFT.N.DP*CONVERT(($Q$119),\"in\",\"mm\")^WFT.N.Int*(HP!E$72/100)^WFT.N.Slope,\"mm\",\"in\")-HP!$E$81)*HP!$G$19,\"\")","v":""},{"$f":"IF(AND(HP!F$72<>\"\",HP!F$39<>\"\"),(CONVERT(WFT.N.Const*CONVERT(HP!$E$81,\"in\",\"mm\")^WFT.N.MTD*CONVERT(HP!F$76,\"ft\",\"m\")^WFT.N.DP*CONVERT(($Q$119),\"in\",\"mm\")^WFT.N.Int*(HP!F$72/100)^WFT.N.Slope,\"mm\",\"in\")-HP!$E$81)*HP!$G$19,\"\")","v":""},{"$f":"IF(AND(HP!G$72<>\"\",HP!G$39<>\"\"),(CONVERT(WFT.N.Const*CONVERT(HP!$E$81,\"in\",\"mm\")^WFT.N.MTD*CONVERT(HP!G$76,\"ft\",\"m\")^WFT.N.DP*CONVERT(($Q$119),\"in\",\"mm\")^WFT.N.Int*(HP!G$72/100)^WFT.N.Slope,\"mm\",\"in\")-HP!$E$81)*HP!$G$19,\"\")","v":""},{"$f":"IF(AND(HP!H$72<>\"\",HP!H$39<>\"\"),(CONVERT(WFT.N.Const*CONVERT(HP!$E$81,\"in\",\"mm\")^WFT.N.MTD*CONVERT(HP!H$76,\"ft\",\"m\")^WFT.N.DP*CONVERT(($Q$119),\"in\",\"mm\")^WFT.N.Int*(HP!H$72/100)^WFT.N.Slope,\"mm\",\"in\")-HP!$E$81)*HP!$G$19,\"\")","v":""},{"$f":"IF(AND(HP!I$72<>\"\",HP!I$39<>\"\"),(CONVERT(WFT.N.Const*CONVERT(HP!$E$81,\"in\",\"mm\")^WFT.N.MTD*CONVERT(HP!I$76,\"ft\",\"m\")^WFT.N.DP*CONVERT(($Q$119),\"in\",\"mm\")^WFT.N.Int*(HP!I$72/100)^WFT.N.Slope,\"mm\",\"in\")-HP!$E$81)*HP!$G$19,\"\")","v":""},{"$f":"IF(AND(HP!J$72<>\"\",HP!J$39<>\"\"),(CONVERT(WFT.N.Const*CONVERT(HP!$E$81,\"in\",\"mm\")^WFT.N.MTD*CONVERT(HP!J$76,\"ft\",\"m\")^WFT.N.DP*CONVERT(($Q$119),\"in\",\"mm\")^WFT.N.Int*(HP!J$72/100)^WFT.N.Slope,\"mm\",\"in\")-HP!$E$81)*HP!$G$19,\"\")","v":""},{"$f":"IF(AND(HP!K$72<>\"\",HP!K$39<>\"\"),(CONVERT(WFT.N.Const*CONVERT(HP!$E$81,\"in\",\"mm\")^WFT.N.MTD*CONVERT(HP!K$76,\"ft\",\"m\")^WFT.N.DP*CONVERT(($Q$119),\"in\",\"mm\")^WFT.N.Int*(HP!K$72/100)^WFT.N.Slope,\"mm\",\"in\")-HP!$E$81)*HP!$G$19,\"\")","v":""},{"$f":"IF(AND(HP!L$72<>\"\",HP!L$39<>\"\"),(CONVERT(WFT.N.Const*CONVERT(HP!$E$81,\"in\",\"mm\")^WFT.N.MTD*CONVERT(HP!L$76,\"ft\",\"m\")^WFT.N.DP*CONVERT(($Q$119),\"in\",\"mm\")^WFT.N.Int*(HP!L$72/100)^WFT.N.Slope,\"mm\",\"in\")-HP!$E$81)*HP!$G$19,\"\")","v":""},{"$f":"IF(AND(HP!M$72<>\"\",HP!M$39<>\"\"),(CONVERT(WFT.N.Const*CONVERT(HP!$E$81,\"in\",\"mm\")^WFT.N.MTD*CONVERT(HP!M$76,\"ft\",\"m\")^WFT.N.DP*CONVERT(($Q$119),\"in\",\"mm\")^WFT.N.Int*(HP!M$72/100)^WFT.N.Slope,\"mm\",\"in\")-HP!$E$81)*HP!$G$19,\"\")","v":""},{"$f":"IF(AND(HP!N$72<>\"\",HP!N$39<>\"\"),(CONVERT(WFT.N.Const*CONVERT(HP!$E$81,\"in\",\"mm\")^WFT.N.MTD*CONVERT(HP!N$76,\"ft\",\"m\")^WFT.N.DP*CONVERT(($Q$119),\"in\",\"mm\")^WFT.N.Int*(HP!N$72/100)^WFT.N.Slope,\"mm\",\"in\")-HP!$E$81)*HP!$G$19,\"\")","v":""},{"$f":"IF(AND(HP!O$72<>\"\",HP!O$39<>\"\"),(CONVERT(WFT.N.Const*CONVERT(HP!$E$81,\"in\",\"mm\")^WFT.N.MTD*CONVERT(HP!O$76,\"ft\",\"m\")^WFT.N.DP*CONVERT(($Q$119),\"in\",\"mm\")^WFT.N.Int*(HP!O$72/100)^WFT.N.Slope,\"mm\",\"in\")-HP!$E$81)*HP!$G$19,\"\")","v":""}]
[0.5,{"$f":"IF(AND(HP!D$72<>\"\",HP!D$39<>\"\"),(WFT.G.Const*HP!$E$81^WFT.G.MTD*HP!D$76^WFT.G.DP*$A$120^WFT.G.Int*(HP!D$72/100)^WFT.G.Slope-HP!$E$81)*HP!$G$19,\"\")","v":""},{"$f":"IF(AND(HP!E$72<>\"\",HP!E$39<>\"\"),(WFT.G.Const*HP!$E$81^WFT.G.MTD*HP!E$76^WFT.G.DP*$A$120^WFT.G.Int*(HP!E$72/100)^WFT.G.Slope-HP!$E$81)*HP!$G$19,\"\")","v":""},{"$f":"IF(AND(HP!F$72<>\"\",HP!F$39<>\"\"),(WFT.G.Const*HP!$E$81^WFT.G.MTD*HP!F$76^WFT.G.DP*$A$120^WFT.G.Int*(HP!F$72/100)^WFT.G.Slope-HP!$E$81)*HP!$G$19,\"\")","v":""},{"$f":"IF(AND(HP!G$72<>\"\",HP!G$39<>\"\"),(WFT.G.Const*HP!$E$81^WFT.G.MTD*HP!G$76^WFT.G.DP*$A$120^WFT.G.Int*(HP!G$72/100)^WFT.G.Slope-HP!$E$81)*HP!$G$19,\"\")","v":""},{"$f":"IF(AND(HP!H$72<>\"\",HP!H$39<>\"\"),(WFT.G.Const*HP!$E$81^WFT.G.MTD*HP!H$76^WFT.G.DP*$A$120^WFT.G.Int*(HP!H$72/100)^WFT.G.Slope-HP!$E$81)*HP!$G$19,\"\")","v":""},{"$f":"IF(AND(HP!I$72<>\"\",HP!I$39<>\"\"),(WFT.G.Const*HP!$E$81^WFT.G.MTD*HP!I$76^WFT.G.DP*$A$120^WFT.G.Int*(HP!I$72/100)^WFT.G.Slope-HP!$E$81)*HP!$G$19,\"\")","v":""},{"$f":"IF(AND(HP!J$72<>\"\",HP!J$39<>\"\"),(WFT.G.Const*HP!$E$81^WFT.G.MTD*HP!J$76^WFT.G.DP*$A$120^WFT.G.Int*(HP!J$72/100)^WFT.G.Slope-HP!$E$81)*HP!$G$19,\"\")","v":""},{"$f":"IF(AND(HP!K$72<>\"\",HP!K$39<>\"\"),(WFT.G.Const*HP!$E$81^WFT.G.MTD*HP!K$76^WFT.G.DP*$A$120^WFT.G.Int*(HP!K$72/100)^WFT.G.Slope-HP!$E$81)*HP!$G$19,\"\")","v":""},{"$f":"IF(AND(HP!L$72<>\"\",HP!L$39<>\"\"),(WFT.G.Const*HP!$E$81^WFT.G.MTD*HP!L$76^WFT.G.DP*$A$120^WFT.G.Int*(HP!L$72/100)^WFT.G.Slope-HP!$E$81)*HP!$G$19,\"\")","v":""},{"$f":"IF(AND(HP!M$72<>\"\",HP!M$39<>\"\"),(WFT.G.Const*HP!$E$81^WFT.G.MTD*HP!M$76^WFT.G.DP*$A$120^WFT.G.Int*(HP!M$72/100)^WFT.G.Slope-HP!$E$81)*HP!$G$19,\"\")","v":""},{"$f":"IF(AND(HP!N$72<>\"\",HP!N$39<>\"\"),(WFT.G.Const*HP!$E$81^WFT.G.MTD*HP!N$76^WFT.G.DP*$A$120^WFT.G.Int*(HP!N$72/100)^WFT.G.Slope-HP!$E$81)*HP!$G$19,\"\")","v":""},{"$f":"IF(AND(HP!O$72<>\"\",HP!O$39<>\"\"),(WFT.G.Const*HP!$E$81^WFT.G.MTD*HP!O$76^WFT.G.DP*$A$120^WFT.G.Int*(HP!O$72/100)^WFT.G.Slope-HP!$E$81)*HP!$G$19,\"\")","v":""},null,null,null,0.5,{"$f":"IF(AND(HP!D$72<>\"\",HP!D$39<>\"\"),(CONVERT(WFT.N.Const*CONVERT(HP!$E$81,\"in\",\"mm\")^WFT.N.MTD*CONVERT(HP!D$76,\"ft\",\"m\")^WFT.N.DP*CONVERT(($Q$120),\"in\",\"mm\")^WFT.N.Int*(HP!D$72/100)^WFT.N.Slope,\"mm\",\"in\")-HP!$E$81)*HP!$G$19,\"\")","v":""},{"$f":"IF(AND(HP!E$72<>\"\",HP!E$39<>\"\"),(CONVERT(WFT.N.Const*CONVERT(HP!$E$81,\"in\",\"mm\")^WFT.N.MTD*CONVERT(HP!E$76,\"ft\",\"m\")^WFT.N.DP*CONVERT(($Q$120),\"in\",\"mm\")^WFT.N.Int*(HP!E$72/100)^WFT.N.Slope,\"mm\",\"in\")-HP!$E$81)*HP!$G$19,\"\")","v":""},{"$f":"IF(AND(HP!F$72<>\"\",HP!F$39<>\"\"),(CONVERT(WFT.N.Const*CONVERT(HP!$E$81,\"in\",\"mm\")^WFT.N.MTD*CONVERT(HP!F$76,\"ft\",\"m\")^WFT.N.DP*CONVERT(($Q$120),\"in\",\"mm\")^WFT.N.Int*(HP!F$72/100)^WFT.N.Slope,\"mm\",\"in\")-HP!$E$81)*HP!$G$19,\"\")","v":""},{"$f":"IF(AND(HP!G$72<>\"\",HP!G$39<>\"\"),(CONVERT(WFT.N.Const*CONVERT(HP!$E$81,\"in\",\"mm\")^WFT.N.MTD*CONVERT(HP!G$76,\"ft\",\"m\")^WFT.N.DP*CONVERT(($Q$120),\"in\",\"mm\")^WFT.N.Int*(HP!G$72/100)^WFT.N.Slope,\"mm\",\"in\")-HP!$E$81)*HP!$G$19,\"\")","v":""},{"$f":"IF(AND(HP!H$72<>\"\",HP!H$39<>\"\"),(CONVERT(WFT.N.Const*CONVERT(HP!$E$81,\"in\",\"mm\")^WFT.N.MTD*CONVERT(HP!H$76,\"ft\",\"m\")^WFT.N.DP*CONVERT(($Q$120),\"in\",\"mm\")^WFT.N.Int*(HP!H$72/100)^WFT.N.Slope,\"mm\",\"in\")-HP!$E$81)*HP!$G$19,\"\")","v":""},{"$f":"IF(AND(HP!I$72<>\"\",HP!I$39<>\"\"),(CONVERT(WFT.N.Const*CONVERT(HP!$E$81,\"in\",\"mm\")^WFT.N.MTD*CONVERT(HP!I$76,\"ft\",\"m\")^WFT.N.DP*CONVERT(($Q$120),\"in\",\"mm\")^WFT.N.Int*(HP!I$72/100)^WFT.N.Slope,\"mm\",\"in\")-HP!$E$81)*HP!$G$19,\"\")","v":""},{"$f":"IF(AND(HP!J$72<>\"\",HP!J$39<>\"\"),(CONVERT(WFT.N.Const*CONVERT(HP!$E$81,\"in\",\"mm\")^WFT.N.MTD*CONVERT(HP!J$76,\"ft\",\"m\")^WFT.N.DP*CONVERT(($Q$120),\"in\",\"mm\")^WFT.N.Int*(HP!J$72/100)^WFT.N.Slope,\"mm\",\"in\")-HP!$E$81)*HP!$G$19,\"\")","v":""},{"$f":"IF(AND(HP!K$72<>\"\",HP!K$39<>\"\"),(CONVERT(WFT.N.Const*CONVERT(HP!$E$81,\"in\",\"mm\")^WFT.N.MTD*CONVERT(HP!K$76,\"ft\",\"m\")^WFT.N.DP*CONVERT(($Q$120),\"in\",\"mm\")^WFT.N.Int*(HP!K$72/100)^WFT.N.Slope,\"mm\",\"in\")-HP!$E$81)*HP!$G$19,\"\")","v":""},{"$f":"IF(AND(HP!L$72<>\"\",HP!L$39<>\"\"),(CONVERT(WFT.N.Const*CONVERT(HP!$E$81,\"in\",\"mm\")^WFT.N.MTD*CONVERT(HP!L$76,\"ft\",\"m\")^WFT.N.DP*CONVERT(($Q$120),\"in\",\"mm\")^WFT.N.Int*(HP!L$72/100)^WFT.N.Slope,\"mm\",\"in\")-HP!$E$81)*HP!$G$19,\"\")","v":""},{"$f":"IF(AND(HP!M$72<>\"\",HP!M$39<>\"\"),(CONVERT(WFT.N.Const*CONVERT(HP!$E$81,\"in\",\"mm\")^WFT.N.MTD*CONVERT(HP!M$76,\"ft\",\"m\")^WFT.N.DP*CONVERT(($Q$120),\"in\",\"mm\")^WFT.N.Int*(HP!M$72/100)^WFT.N.Slope,\"mm\",\"in\")-HP!$E$81)*HP!$G$19,\"\")","v":""},{"$f":"IF(AND(HP!N$72<>\"\",HP!N$39<>\"\"),(CONVERT(WFT.N.Const*CONVERT(HP!$E$81,\"in\",\"mm\")^WFT.N.MTD*CONVERT(HP!N$76,\"ft\",\"m\")^WFT.N.DP*CONVERT(($Q$120),\"in\",\"mm\")^WFT.N.Int*(HP!N$72/100)^WFT.N.Slope,\"mm\",\"in\")-HP!$E$81)*HP!$G$19,\"\")","v":""},{"$f":"IF(AND(HP!O$72<>\"\",HP!O$39<>\"\"),(CONVERT(WFT.N.Const*CONVERT(HP!$E$81,\"in\",\"mm\")^WFT.N.MTD*CONVERT(HP!O$76,\"ft\",\"m\")^WFT.N.DP*CONVERT(($Q$120),\"in\",\"mm\")^WFT.N.Int*(HP!O$72/100)^WFT.N.Slope,\"mm\",\"in\")-HP!$E$81)*HP!$G$19,\"\")","v":""}]
[1,{"$f":"IF(AND(HP!D$72<>\"\",HP!D$39<>\"\"),(WFT.G.Const*HP!$E$81^WFT.G.MTD*HP!D$76^WFT.G.DP*$A$121^WFT.G.Int*(HP!D$72/100)^WFT.G.Slope-HP!$E$81)*HP!$G$19,\"\")","v":""},{"$f":"IF(AND(HP!E$72<>\"\",HP!E$39<>\"\"),(WFT.G.Const*HP!$E$81^WFT.G.MTD*HP!E$76^WFT.G.DP*$A$121^WFT.G.Int*(HP!E$72/100)^WFT.G.Slope-HP!$E$81)*HP!$G$19,\"\")","v":""},{"$f":"IF(AND(HP!F$72<>\"\",HP!F$39<>\"\"),(WFT.G.Const*HP!$E$81^WFT.G.MTD*HP!F$76^WFT.G.DP*$A$121^WFT.G.Int*(HP!F$72/100)^WFT.G.Slope-HP!$E$81)*HP!$G$19,\"\")","v":""},{"$f":"IF(AND(HP!G$72<>\"\",HP!G$39<>\"\"),(WFT.G.Const*HP!$E$81^WFT.G.MTD*HP!G$76^WFT.G.DP*$A$121^WFT.G.Int*(HP!G$72/100)^WFT.G.Slope-HP!$E$81)*HP!$G$19,\"\")","v":""},{"$f":"IF(AND(HP!H$72<>\"\",HP!H$39<>\"\"),(WFT.G.Const*HP!$E$81^WFT.G.MTD*HP!H$76^WFT.G.DP*$A$121^WFT.G.Int*(HP!H$72/100)^WFT.G.Slope-HP!$E$81)*HP!$G$19,\"\")","v":""},{"$f":"IF(AND(HP!I$72<>\"\",HP!I$39<>\"\"),(WFT.G.Const*HP!$E$81^WFT.G.MTD*HP!I$76^WFT.G.DP*$A$121^WFT.G.Int*(HP!I$72/100)^WFT.G.Slope-HP!$E$81)*HP!$G$19,\"\")","v":""},{"$f":"IF(AND(HP!J$72<>\"\",HP!J$39<>\"\"),(WFT.G.Const*HP!$E$81^WFT.G.MTD*HP!J$76^WFT.G.DP*$A$121^WFT.G.Int*(HP!J$72/100)^WFT.G.Slope-HP!$E$81)*HP!$G$19,\"\")","v":""},{"$f":"IF(AND(HP!K$72<>\"\",HP!K$39<>\"\"),(WFT.G.Const*HP!$E$81^WFT.G.MTD*HP!K$76^WFT.G.DP*$A$121^WFT.G.Int*(HP!K$72/100)^WFT.G.Slope-HP!$E$81)*HP!$G$19,\"\")","v":""},{"$f":"IF(AND(HP!L$72<>\"\",HP!L$39<>\"\"),(WFT.G.Const*HP!$E$81^WFT.G.MTD*HP!L$76^WFT.G.DP*$A$121^WFT.G.Int*(HP!L$72/100)^WFT.G.Slope-HP!$E$81)*HP!$G$19,\"\")","v":""},{"$f":"IF(AND(HP!M$72<>\"\",HP!M$39<>\"\"),(WFT.G.Const*HP!$E$81^WFT.G.MTD*HP!M$76^WFT.G.DP*$A$121^WFT.G.Int*(HP!M$72/100)^WFT.G.Slope-HP!$E$81)*HP!$G$19,\"\")","v":""},{"$f":"IF(AND(HP!N$72<>\"\",HP!N$39<>\"\"),(WFT.G.Const*HP!$E$81^WFT.G.MTD*HP!N$76^WFT.G.DP*$A$121^WFT.G.Int*(HP!N$72/100)^WFT.G.Slope-HP!$E$81)*HP!$G$19,\"\")","v":""},{"$f":"IF(AND(HP!O$72<>\"\",HP!O$39<>\"\"),(WFT.G.Const*HP!$E$81^WFT.G.MTD*HP!O$76^WFT.G.DP*$A$121^WFT.G.Int*(HP!O$72/100)^WFT.G.Slope-HP!$E$81)*HP!$G$19,\"\")","v":""},null,null,null,1,{"$f":"IF(AND(HP!D$72<>\"\",HP!D$39<>\"\"),(CONVERT(WFT.N.Const*CONVERT(HP!$E$81,\"in\",\"mm\")^WFT.N.MTD*CONVERT(HP!D$76,\"ft\",\"m\")^WFT.N.DP*CONVERT(($Q$121),\"in\",\"mm\")^WFT.N.Int*(HP!D$72/100)^WFT.N.Slope,\"mm\",\"in\")-HP!$E$81)*HP!$G$19,\"\")","v":""},{"$f":"IF(AND(HP!E$72<>\"\",HP!E$39<>\"\"),(CONVERT(WFT.N.Const*CONVERT(HP!$E$81,\"in\",\"mm\")^WFT.N.MTD*CONVERT(HP!E$76,\"ft\",\"m\")^WFT.N.DP*CONVERT(($Q$121),\"in\",\"mm\")^WFT.N.Int*(HP!E$72/100)^WFT.N.Slope,\"mm\",\"in\")-HP!$E$81)*HP!$G$19,\"\")","v":""},{"$f":"IF(AND(HP!F$72<>\"\",HP!F$39<>\"\"),(CONVERT(WFT.N.Const*CONVERT(HP!$E$81,\"in\",\"mm\")^WFT.N.MTD*CONVERT(HP!F$76,\"ft\",\"m\")^WFT.N.DP*CONVERT(($Q$121),\"in\",\"mm\")^WFT.N.Int*(HP!F$72/100)^WFT.N.Slope,\"mm\",\"in\")-HP!$E$81)*HP!$G$19,\"\")","v":""},{"$f":"IF(AND(HP!G$72<>\"\",HP!G$39<>\"\"),(CONVERT(WFT.N.Const*CONVERT(HP!$E$81,\"in\",\"mm\")^WFT.N.MTD*CONVERT(HP!G$76,\"ft\",\"m\")^WFT.N.DP*CONVERT(($Q$121),\"in\",\"mm\")^WFT.N.Int*(HP!G$72/100)^WFT.N.Slope,\"mm\",\"in\")-HP!$E$81)*HP!$G$19,\"\")","v":""},{"$f":"IF(AND(HP!H$72<>\"\",HP!H$39<>\"\"),(CONVERT(WFT.N.Const*CONVERT(HP!$E$81,\"in\",\"mm\")^WFT.N.MTD*CONVERT(HP!H$76,\"ft\",\"m\")^WFT.N.DP*CONVERT(($Q$121),\"in\",\"mm\")^WFT.N.Int*(HP!H$72/100)^WFT.N.Slope,\"mm\",\"in\")-HP!$E$81)*HP!$G$19,\"\")","v":""},{"$f":"IF(AND(HP!I$72<>\"\",HP!I$39<>\"\"),(CONVERT(WFT.N.Const*CONVERT(HP!$E$81,\"in\",\"mm\")^WFT.N.MTD*CONVERT(HP!I$76,\"ft\",\"m\")^WFT.N.DP*CONVERT(($Q$121),\"in\",\"mm\")^WFT.N.Int*(HP!I$72/100)^WFT.N.Slope,\"mm\",\"in\")-HP!$E$81)*HP!$G$19,\"\")","v":""},{"$f":"IF(AND(HP!J$72<>\"\",HP!J$39<>\"\"),(CONVERT(WFT.N.Const*CONVERT(HP!$E$81,\"in\",\"mm\")^WFT.N.MTD*CONVERT(HP!J$76,\"ft\",\"m\")^WFT.N.DP*CONVERT(($Q$121),\"in\",\"mm\")^WFT.N.Int*(HP!J$72/100)^WFT.N.Slope,\"mm\",\"in\")-HP!$E$81)*HP!$G$19,\"\")","v":""},{"$f":"IF(AND(HP!K$72<>\"\",HP!K$39<>\"\"),(CONVERT(WFT.N.Const*CONVERT(HP!$E$81,\"in\",\"mm\")^WFT.N.MTD*CONVERT(HP!K$76,\"ft\",\"m\")^WFT.N.DP*CONVERT(($Q$121),\"in\",\"mm\")^WFT.N.Int*(HP!K$72/100)^WFT.N.Slope,\"mm\",\"in\")-HP!$E$81)*HP!$G$19,\"\")","v":""},{"$f":"IF(AND(HP!L$72<>\"\",HP!L$39<>\"\"),(CONVERT(WFT.N.Const*CONVERT(HP!$E$81,\"in\",\"mm\")^WFT.N.MTD*CONVERT(HP!L$76,\"ft\",\"m\")^WFT.N.DP*CONVERT(($Q$121),\"in\",\"mm\")^WFT.N.Int*(HP!L$72/100)^WFT.N.Slope,\"mm\",\"in\")-HP!$E$81)*HP!$G$19,\"\")","v":""},{"$f":"IF(AND(HP!M$72<>\"\",HP!M$39<>\"\"),(CONVERT(WFT.N.Const*CONVERT(HP!$E$81,\"in\",\"mm\")^WFT.N.MTD*CONVERT(HP!M$76,\"ft\",\"m\")^WFT.N.DP*CONVERT(($Q$121),\"in\",\"mm\")^WFT.N.Int*(HP!M$72/100)^WFT.N.Slope,\"mm\",\"in\")-HP!$E$81)*HP!$G$19,\"\")","v":""},{"$f":"IF(AND(HP!N$72<>\"\",HP!N$39<>\"\"),(CONVERT(WFT.N.Const*CONVERT(HP!$E$81,\"in\",\"mm\")^WFT.N.MTD*CONVERT(HP!N$76,\"ft\",\"m\")^WFT.N.DP*CONVERT(($Q$121),\"in\",\"mm\")^WFT.N.Int*(HP!N$72/100)^WFT.N.Slope,\"mm\",\"in\")-HP!$E$81)*HP!$G$19,\"\")","v":""},{"$f":"IF(AND(HP!O$72<>\"\",HP!O$39<>\"\"),(CONVERT(WFT.N.Const*CONVERT(HP!$E$81,\"in\",\"mm\")^WFT.N.MTD*CONVERT(HP!O$76,\"ft\",\"m\")^WFT.N.DP*CONVERT(($Q$121),\"in\",\"mm\")^WFT.N.Int*(HP!O$72/100)^WFT.N.Slope,\"mm\",\"in\")-HP!$E$81)*HP!$G$19,\"\")","v":""}]
[2,{"$f":"IF(AND(HP!D$72<>\"\",HP!D$39<>\"\"),(WFT.G.Const*HP!$E$81^WFT.G.MTD*HP!D$76^WFT.G.DP*$A$122^WFT.G.Int*(HP!D$72/100)^WFT.G.Slope-HP!$E$81)*HP!$G$19,\"\")","v":""},{"$f":"IF(AND(HP!E$72<>\"\",HP!E$39<>\"\"),(WFT.G.Const*HP!$E$81^WFT.G.MTD*HP!E$76^WFT.G.DP*$A$122^WFT.G.Int*(HP!E$72/100)^WFT.G.Slope-HP!$E$81)*HP!$G$19,\"\")","v":""},{"$f":"IF(AND(HP!F$72<>\"\",HP!F$39<>\"\"),(WFT.G.Const*HP!$E$81^WFT.G.MTD*HP!F$76^WFT.G.DP*$A$122^WFT.G.Int*(HP!F$72/100)^WFT.G.Slope-HP!$E$81)*HP!$G$19,\"\")","v":""},{"$f":"IF(AND(HP!G$72<>\"\",HP!G$39<>\"\"),(WFT.G.Const*HP!$E$81^WFT.G.MTD*HP!G$76^WFT.G.DP*$A$122^WFT.G.Int*(HP!G$72/100)^WFT.G.Slope-HP!$E$81)*HP!$G$19,\"\")","v":""},{"$f":"IF(AND(HP!H$72<>\"\",HP!H$39<>\"\"),(WFT.G.Const*HP!$E$81^WFT.G.MTD*HP!H$76^WFT.G.DP*$A$122^WFT.G.Int*(HP!H$72/100)^WFT.G.Slope-HP!$E$81)*HP!$G$19,\"\")","v":""},{"$f":"IF(AND(HP!I$72<>\"\",HP!I$39<>\"\"),(WFT.G.Const*HP!$E$81^WFT.G.MTD*HP!I$76^WFT.G.DP*$A$122^WFT.G.Int*(HP!I$72/100)^WFT.G.Slope-HP!$E$81)*HP!$G$19,\"\")","v":""},{"$f":"IF(AND(HP!J$72<>\"\",HP!J$39<>\"\"),(WFT.G.Const*HP!$E$81^WFT.G.MTD*HP!J$76^WFT.G.DP*$A$122^WFT.G.Int*(HP!J$72/100)^WFT.G.Slope-HP!$E$81)*HP!$G$19,\"\")","v":""},{"$f":"IF(AND(HP!K$72<>\"\",HP!K$39<>\"\"),(WFT.G.Const*HP!$E$81^WFT.G.MTD*HP!K$76^WFT.G.DP*$A$122^WFT.G.Int*(HP!K$72/100)^WFT.G.Slope-HP!$E$81)*HP!$G$19,\"\")","v":""},{"$f":"IF(AND(HP!L$72<>\"\",HP!L$39<>\"\"),(WFT.G.Const*HP!$E$81^WFT.G.MTD*HP!L$76^WFT.G.DP*$A$122^WFT.G.Int*(HP!L$72/100)^WFT.G.Slope-HP!$E$81)*HP!$G$19,\"\")","v":""},{"$f":"IF(AND(HP!M$72<>\"\",HP!M$39<>\"\"),(WFT.G.Const*HP!$E$81^WFT.G.MTD*HP!M$76^WFT.G.DP*$A$122^WFT.G.Int*(HP!M$72/100)^WFT.G.Slope-HP!$E$81)*HP!$G$19,\"\")","v":""},{"$f":"IF(AND(HP!N$72<>\"\",HP!N$39<>\"\"),(WFT.G.Const*HP!$E$81^WFT.G.MTD*HP!N$76^WFT.G.DP*$A$122^WFT.G.Int*(HP!N$72/100)^WFT.G.Slope-HP!$E$81)*HP!$G$19,\"\")","v":""},{"$f":"IF(AND(HP!O$72<>\"\",HP!O$39<>\"\"),(WFT.G.Const*HP!$E$81^WFT.G.MTD*HP!O$76^WFT.G.DP*$A$122^WFT.G.Int*(HP!O$72/100)^WFT.G.Slope-HP!$E$81)*HP!$G$19,\"\")","v":""},null,null,null,2,{"$f":"IF(AND(HP!D$72<>\"\",HP!D$39<>\"\"),(CONVERT(WFT.N.Const*CONVERT(HP!$E$81,\"in\",\"mm\")^WFT.N.MTD*CONVERT(HP!D$76,\"ft\",\"m\")^WFT.N.DP*CONVERT(($Q$122),\"in\",\"mm\")^WFT.N.Int*(HP!D$72/100)^WFT.N.Slope,\"mm\",\"in\")-HP!$E$81)*HP!$G$19,\"\")","v":""},{"$f":"IF(AND(HP!E$72<>\"\",HP!E$39<>\"\"),(CONVERT(WFT.N.Const*CONVERT(HP!$E$81,\"in\",\"mm\")^WFT.N.MTD*CONVERT(HP!E$76,\"ft\",\"m\")^WFT.N.DP*CONVERT(($Q$122),\"in\",\"mm\")^WFT.N.Int*(HP!E$72/100)^WFT.N.Slope,\"mm\",\"in\")-HP!$E$81)*HP!$G$19,\"\")","v":""},{"$f":"IF(AND(HP!F$72<>\"\",HP!F$39<>\"\"),(CONVERT(WFT.N.Const*CONVERT(HP!$E$81,\"in\",\"mm\")^WFT.N.MTD*CONVERT(HP!F$76,\"ft\",\"m\")^WFT.N.DP*CONVERT(($Q$122),\"in\",\"mm\")^WFT.N.Int*(HP!F$72/100)^WFT.N.Slope,\"mm\",\"in\")-HP!$E$81)*HP!$G$19,\"\")","v":""},{"$f":"IF(AND(HP!G$72<>\"\",HP!G$39<>\"\"),(CONVERT(WFT.N.Const*CONVERT(HP!$E$81,\"in\",\"mm\")^WFT.N.MTD*CONVERT(HP!G$76,\"ft\",\"m\")^WFT.N.DP*CONVERT(($Q$122),\"in\",\"mm\")^WFT.N.Int*(HP!G$72/100)^WFT.N.Slope,\"mm\",\"in\")-HP!$E$81)*HP!$G$19,\"\")","v":""},{"$f":"IF(AND(HP!H$72<>\"\",HP!H$39<>\"\"),(CONVERT(WFT.N.Const*CONVERT(HP!$E$81,\"in\",\"mm\")^WFT.N.MTD*CONVERT(HP!H$76,\"ft\",\"m\")^WFT.N.DP*CONVERT(($Q$122),\"in\",\"mm\")^WFT.N.Int*(HP!H$72/100)^WFT.N.Slope,\"mm\",\"in\")-HP!$E$81)*HP!$G$19,\"\")","v":""},{"$f":"IF(AND(HP!I$72<>\"\",HP!I$39<>\"\"),(CONVERT(WFT.N.Const*CONVERT(HP!$E$81,\"in\",\"mm\")^WFT.N.MTD*CONVERT(HP!I$76,\"ft\",\"m\")^WFT.N.DP*CONVERT(($Q$122),\"in\",\"mm\")^WFT.N.Int*(HP!I$72/100)^WFT.N.Slope,\"mm\",\"in\")-HP!$E$81)*HP!$G$19,\"\")","v":""},{"$f":"IF(AND(HP!J$72<>\"\",HP!J$39<>\"\"),(CONVERT(WFT.N.Const*CONVERT(HP!$E$81,\"in\",\"mm\")^WFT.N.MTD*CONVERT(HP!J$76,\"ft\",\"m\")^WFT.N.DP*CONVERT(($Q$122),\"in\",\"mm\")^WFT.N.Int*(HP!J$72/100)^WFT.N.Slope,\"mm\",\"in\")-HP!$E$81)*HP!$G$19,\"\")","v":""},{"$f":"IF(AND(HP!K$72<>\"\",HP!K$39<>\"\"),(CONVERT(WFT.N.Const*CONVERT(HP!$E$81,\"in\",\"mm\")^WFT.N.MTD*CONVERT(HP!K$76,\"ft\",\"m\")^WFT.N.DP*CONVERT(($Q$122),\"in\",\"mm\")^WFT.N.Int*(HP!K$72/100)^WFT.N.Slope,\"mm\",\"in\")-HP!$E$81)*HP!$G$19,\"\")","v":""},{"$f":"IF(AND(HP!L$72<>\"\",HP!L$39<>\"\"),(CONVERT(WFT.N.Const*CONVERT(HP!$E$81,\"in\",\"mm\")^WFT.N.MTD*CONVERT(HP!L$76,\"ft\",\"m\")^WFT.N.DP*CONVERT(($Q$122),\"in\",\"mm\")^WFT.N.Int*(HP!L$72/100)^WFT.N.Slope,\"mm\",\"in\")-HP!$E$81)*HP!$G$19,\"\")","v":""},{"$f":"IF(AND(HP!M$72<>\"\",HP!M$39<>\"\"),(CONVERT(WFT.N.Const*CONVERT(HP!$E$81,\"in\",\"mm\")^WFT.N.MTD*CONVERT(HP!M$76,\"ft\",\"m\")^WFT.N.DP*CONVERT(($Q$122),\"in\",\"mm\")^WFT.N.Int*(HP!M$72/100)^WFT.N.Slope,\"mm\",\"in\")-HP!$E$81)*HP!$G$19,\"\")","v":""},{"$f":"IF(AND(HP!N$72<>\"\",HP!N$39<>\"\"),(CONVERT(WFT.N.Const*CONVERT(HP!$E$81,\"in\",\"mm\")^WFT.N.MTD*CONVERT(HP!N$76,\"ft\",\"m\")^WFT.N.DP*CONVERT(($Q$122),\"in\",\"mm\")^WFT.N.Int*(HP!N$72/100)^WFT.N.Slope,\"mm\",\"in\")-HP!$E$81)*HP!$G$19,\"\")","v":""},{"$f":"IF(AND(HP!O$72<>\"\",HP!O$39<>\"\"),(CONVERT(WFT.N.Const*CONVERT(HP!$E$81,\"in\",\"mm\")^WFT.N.MTD*CONVERT(HP!O$76,\"ft\",\"m\")^WFT.N.DP*CONVERT(($Q$122),\"in\",\"mm\")^WFT.N.Int*(HP!O$72/100)^WFT.N.Slope,\"mm\",\"in\")-HP!$E$81)*HP!$G$19,\"\")","v":""}]
[3,{"$f":"IF(AND(HP!D$72<>\"\",HP!D$39<>\"\"),(WFT.G.Const*HP!$E$81^WFT.G.MTD*HP!D$76^WFT.G.DP*$A$123^WFT.G.Int*(HP!D$72/100)^WFT.G.Slope-HP!$E$81)*HP!$G$19,\"\")","v":""},{"$f":"IF(AND(HP!E$72<>\"\",HP!E$39<>\"\"),(WFT.G.Const*HP!$E$81^WFT.G.MTD*HP!E$76^WFT.G.DP*$A$123^WFT.G.Int*(HP!E$72/100)^WFT.G.Slope-HP!$E$81)*HP!$G$19,\"\")","v":""},{"$f":"IF(AND(HP!F$72<>\"\",HP!F$39<>\"\"),(WFT.G.Const*HP!$E$81^WFT.G.MTD*HP!F$76^WFT.G.DP*$A$123^WFT.G.Int*(HP!F$72/100)^WFT.G.Slope-HP!$E$81)*HP!$G$19,\"\")","v":""},{"$f":"IF(AND(HP!G$72<>\"\",HP!G$39<>\"\"),(WFT.G.Const*HP!$E$81^WFT.G.MTD*HP!G$76^WFT.G.DP*$A$123^WFT.G.Int*(HP!G$72/100)^WFT.G.Slope-HP!$E$81)*HP!$G$19,\"\")","v":""},{"$f":"IF(AND(HP!H$72<>\"\",HP!H$39<>\"\"),(WFT.G.Const*HP!$E$81^WFT.G.MTD*HP!H$76^WFT.G.DP*$A$123^WFT.G.Int*(HP!H$72/100)^WFT.G.Slope-HP!$E$81)*HP!$G$19,\"\")","v":""},{"$f":"IF(AND(HP!I$72<>\"\",HP!I$39<>\"\"),(WFT.G.Const*HP!$E$81^WFT.G.MTD*HP!I$76^WFT.G.DP*$A$123^WFT.G.Int*(HP!I$72/100)^WFT.G.Slope-HP!$E$81)*HP!$G$19,\"\")","v":""},{"$f":"IF(AND(HP!J$72<>\"\",HP!J$39<>\"\"),(WFT.G.Const*HP!$E$81^WFT.G.MTD*HP!J$76^WFT.G.DP*$A$123^WFT.G.Int*(HP!J$72/100)^WFT.G.Slope-HP!$E$81)*HP!$G$19,\"\")","v":""},{"$f":"IF(AND(HP!K$72<>\"\",HP!K$39<>\"\"),(WFT.G.Const*HP!$E$81^WFT.G.MTD*HP!K$76^WFT.G.DP*$A$123^WFT.G.Int*(HP!K$72/100)^WFT.G.Slope-HP!$E$81)*HP!$G$19,\"\")","v":""},{"$f":"IF(AND(HP!L$72<>\"\",HP!L$39<>\"\"),(WFT.G.Const*HP!$E$81^WFT.G.MTD*HP!L$76^WFT.G.DP*$A$123^WFT.G.Int*(HP!L$72/100)^WFT.G.Slope-HP!$E$81)*HP!$G$19,\"\")","v":""},{"$f":"IF(AND(HP!M$72<>\"\",HP!M$39<>\"\"),(WFT.G.Const*HP!$E$81^WFT.G.MTD*HP!M$76^WFT.G.DP*$A$123^WFT.G.Int*(HP!M$72/100)^WFT.G.Slope-HP!$E$81)*HP!$G$19,\"\")","v":""},{"$f":"IF(AND(HP!N$72<>\"\",HP!N$39<>\"\"),(WFT.G.Const*HP!$E$81^WFT.G.MTD*HP!N$76^WFT.G.DP*$A$123^WFT.G.Int*(HP!N$72/100)^WFT.G.Slope-HP!$E$81)*HP!$G$19,\"\")","v":""},{"$f":"IF(AND(HP!O$72<>\"\",HP!O$39<>\"\"),(WFT.G.Const*HP!$E$81^WFT.G.MTD*HP!O$76^WFT.G.DP*$A$123^WFT.G.Int*(HP!O$72/100)^WFT.G.Slope-HP!$E$81)*HP!$G$19,\"\")","v":""},null,null,null,3,{"$f":"IF(AND(HP!D$72<>\"\",HP!D$39<>\"\"),(CONVERT(WFT.N.Const*CONVERT(HP!$E$81,\"in\",\"mm\")^WFT.N.MTD*CONVERT(HP!D$76,\"ft\",\"m\")^WFT.N.DP*CONVERT(($Q$123),\"in\",\"mm\")^WFT.N.Int*(HP!D$72/100)^WFT.N.Slope,\"mm\",\"in\")-HP!$E$81)*HP!$G$19,\"\")","v":""},{"$f":"IF(AND(HP!E$72<>\"\",HP!E$39<>\"\"),(CONVERT(WFT.N.Const*CONVERT(HP!$E$81,\"in\",\"mm\")^WFT.N.MTD*CONVERT(HP!E$76,\"ft\",\"m\")^WFT.N.DP*CONVERT(($Q$123),\"in\",\"mm\")^WFT.N.Int*(HP!E$72/100)^WFT.N.Slope,\"mm\",\"in\")-HP!$E$81)*HP!$G$19,\"\")","v":""},{"$f":"IF(AND(HP!F$72<>\"\",HP!F$39<>\"\"),(CONVERT(WFT.N.Const*CONVERT(HP!$E$81,\"in\",\"mm\")^WFT.N.MTD*CONVERT(HP!F$76,\"ft\",\"m\")^WFT.N.DP*CONVERT(($Q$123),\"in\",\"mm\")^WFT.N.Int*(HP!F$72/100)^WFT.N.Slope,\"mm\",\"in\")-HP!$E$81)*HP!$G$19,\"\")","v":""},{"$f":"IF(AND(HP!G$72<>\"\",HP!G$39<>\"\"),(CONVERT(WFT.N.Const*CONVERT(HP!$E$81,\"in\",\"mm\")^WFT.N.MTD*CONVERT(HP!G$76,\"ft\",\"m\")^WFT.N.DP*CONVERT(($Q$123),\"in\",\"mm\")^WFT.N.Int*(HP!G$72/100)^WFT.N.Slope,\"mm\",\"in\")-HP!$E$81)*HP!$G$19,\"\")","v":""},{"$f":"IF(AND(HP!H$72<>\"\",HP!H$39<>\"\"),(CONVERT(WFT.N.Const*CONVERT(HP!$E$81,\"in\",\"mm\")^WFT.N.MTD*CONVERT(HP!H$76,\"ft\",\"m\")^WFT.N.DP*CONVERT(($Q$123),\"in\",\"mm\")^WFT.N.Int*(HP!H$72/100)^WFT.N.Slope,\"mm\",\"in\")-HP!$E$81)*HP!$G$19,\"\")","v":""},{"$f":"IF(AND(HP!I$72<>\"\",HP!I$39<>\"\"),(CONVERT(WFT.N.Const*CONVERT(HP!$E$81,\"in\",\"mm\")^WFT.N.MTD*CONVERT(HP!I$76,\"ft\",\"m\")^WFT.N.DP*CONVERT(($Q$123),\"in\",\"mm\")^WFT.N.Int*(HP!I$72/100)^WFT.N.Slope,\"mm\",\"in\")-HP!$E$81)*HP!$G$19,\"\")","v":""},{"$f":"IF(AND(HP!J$72<>\"\",HP!J$39<>\"\"),(CONVERT(WFT.N.Const*CONVERT(HP!$E$81,\"in\",\"mm\")^WFT.N.MTD*CONVERT(HP!J$76,\"ft\",\"m\")^WFT.N.DP*CONVERT(($Q$123),\"in\",\"mm\")^WFT.N.Int*(HP!J$72/100)^WFT.N.Slope,\"mm\",\"in\")-HP!$E$81)*HP!$G$19,\"\")","v":""},{"$f":"IF(AND(HP!K$72<>\"\",HP!K$39<>\"\"),(CONVERT(WFT.N.Const*CONVERT(HP!$E$81,\"in\",\"mm\")^WFT.N.MTD*CONVERT(HP!K$76,\"ft\",\"m\")^WFT.N.DP*CONVERT(($Q$123),\"in\",\"mm\")^WFT.N.Int*(HP!K$72/100)^WFT.N.Slope,\"mm\",\"in\")-HP!$E$81)*HP!$G$19,\"\")","v":""},{"$f":"IF(AND(HP!L$72<>\"\",HP!L$39<>\"\"),(CONVERT(WFT.N.Const*CONVERT(HP!$E$81,\"in\",\"mm\")^WFT.N.MTD*CONVERT(HP!L$76,\"ft\",\"m\")^WFT.N.DP*CONVERT(($Q$123),\"in\",\"mm\")^WFT.N.Int*(HP!L$72/100)^WFT.N.Slope,\"mm\",\"in\")-HP!$E$81)*HP!$G$19,\"\")","v":""},{"$f":"IF(AND(HP!M$72<>\"\",HP!M$39<>\"\"),(CONVERT(WFT.N.Const*CONVERT(HP!$E$81,\"in\",\"mm\")^WFT.N.MTD*CONVERT(HP!M$76,\"ft\",\"m\")^WFT.N.DP*CONVERT(($Q$123),\"in\",\"mm\")^WFT.N.Int*(HP!M$72/100)^WFT.N.Slope,\"mm\",\"in\")-HP!$E$81)*HP!$G$19,\"\")","v":""},{"$f":"IF(AND(HP!N$72<>\"\",HP!N$39<>\"\"),(CONVERT(WFT.N.Const*CONVERT(HP!$E$81,\"in\",\"mm\")^WFT.N.MTD*CONVERT(HP!N$76,\"ft\",\"m\")^WFT.N.DP*CONVERT(($Q$123),\"in\",\"mm\")^WFT.N.Int*(HP!N$72/100)^WFT.N.Slope,\"mm\",\"in\")-HP!$E$81)*HP!$G$19,\"\")","v":""},{"$f":"IF(AND(HP!O$72<>\"\",HP!O$39<>\"\"),(CONVERT(WFT.N.Const*CONVERT(HP!$E$81,\"in\",\"mm\")^WFT.N.MTD*CONVERT(HP!O$76,\"ft\",\"m\")^WFT.N.DP*CONVERT(($Q$123),\"in\",\"mm\")^WFT.N.Int*(HP!O$72/100)^WFT.N.Slope,\"mm\",\"in\")-HP!$E$81)*HP!$G$19,\"\")","v":""}]
[4,{"$f":"IF(AND(HP!D$72<>\"\",HP!D$39<>\"\"),(WFT.G.Const*HP!$E$81^WFT.G.MTD*HP!D$76^WFT.G.DP*$A$124^WFT.G.Int*(HP!D$72/100)^WFT.G.Slope-HP!$E$81)*HP!$G$19,\"\")","v":""},{"$f":"IF(AND(HP!E$72<>\"\",HP!E$39<>\"\"),(WFT.G.Const*HP!$E$81^WFT.G.MTD*HP!E$76^WFT.G.DP*$A$124^WFT.G.Int*(HP!E$72/100)^WFT.G.Slope-HP!$E$81)*HP!$G$19,\"\")","v":""},{"$f":"IF(AND(HP!F$72<>\"\",HP!F$39<>\"\"),(WFT.G.Const*HP!$E$81^WFT.G.MTD*HP!F$76^WFT.G.DP*$A$124^WFT.G.Int*(HP!F$72/100)^WFT.G.Slope-HP!$E$81)*HP!$G$19,\"\")","v":""},{"$f":"IF(AND(HP!G$72<>\"\",HP!G$39<>\"\"),(WFT.G.Const*HP!$E$81^WFT.G.MTD*HP!G$76^WFT.G.DP*$A$124^WFT.G.Int*(HP!G$72/100)^WFT.G.Slope-HP!$E$81)*HP!$G$19,\"\")","v":""},{"$f":"IF(AND(HP!H$72<>\"\",HP!H$39<>\"\"),(WFT.G.Const*HP!$E$81^WFT.G.MTD*HP!H$76^WFT.G.DP*$A$124^WFT.G.Int*(HP!H$72/100)^WFT.G.Slope-HP!$E$81)*HP!$G$19,\"\")","v":""},{"$f":"IF(AND(HP!I$72<>\"\",HP!I$39<>\"\"),(WFT.G.Const*HP!$E$81^WFT.G.MTD*HP!I$76^WFT.G.DP*$A$124^WFT.G.Int*(HP!I$72/100)^WFT.G.Slope-HP!$E$81)*HP!$G$19,\"\")","v":""},{"$f":"IF(AND(HP!J$72<>\"\",HP!J$39<>\"\"),(WFT.G.Const*HP!$E$81^WFT.G.MTD*HP!J$76^WFT.G.DP*$A$124^WFT.G.Int*(HP!J$72/100)^WFT.G.Slope-HP!$E$81)*HP!$G$19,\"\")","v":""},{"$f":"IF(AND(HP!K$72<>\"\",HP!K$39<>\"\"),(WFT.G.Const*HP!$E$81^WFT.G.MTD*HP!K$76^WFT.G.DP*$A$124^WFT.G.Int*(HP!K$72/100)^WFT.G.Slope-HP!$E$81)*HP!$G$19,\"\")","v":""},{"$f":"IF(AND(HP!L$72<>\"\",HP!L$39<>\"\"),(WFT.G.Const*HP!$E$81^WFT.G.MTD*HP!L$76^WFT.G.DP*$A$124^WFT.G.Int*(HP!L$72/100)^WFT.G.Slope-HP!$E$81)*HP!$G$19,\"\")","v":""},{"$f":"IF(AND(HP!M$72<>\"\",HP!M$39<>\"\"),(WFT.G.Const*HP!$E$81^WFT.G.MTD*HP!M$76^WFT.G.DP*$A$124^WFT.G.Int*(HP!M$72/100)^WFT.G.Slope-HP!$E$81)*HP!$G$19,\"\")","v":""},{"$f":"IF(AND(HP!N$72<>\"\",HP!N$39<>\"\"),(WFT.G.Const*HP!$E$81^WFT.G.MTD*HP!N$76^WFT.G.DP*$A$124^WFT.G.Int*(HP!N$72/100)^WFT.G.Slope-HP!$E$81)*HP!$G$19,\"\")","v":""},{"$f":"IF(AND(HP!O$72<>\"\",HP!O$39<>\"\"),(WFT.G.Const*HP!$E$81^WFT.G.MTD*HP!O$76^WFT.G.DP*$A$124^WFT.G.Int*(HP!O$72/100)^WFT.G.Slope-HP!$E$81)*HP!$G$19,\"\")","v":""},null,null,null,4,{"$f":"IF(AND(HP!D$72<>\"\",HP!D$39<>\"\"),(CONVERT(WFT.N.Const*CONVERT(HP!$E$81,\"in\",\"mm\")^WFT.N.MTD*CONVERT(HP!D$76,\"ft\",\"m\")^WFT.N.DP*CONVERT(($Q$124),\"in\",\"mm\")^WFT.N.Int*(HP!D$72/100)^WFT.N.Slope,\"mm\",\"in\")-HP!$E$81)*HP!$G$19,\"\")","v":""},{"$f":"IF(AND(HP!E$72<>\"\",HP!E$39<>\"\"),(CONVERT(WFT.N.Const*CONVERT(HP!$E$81,\"in\",\"mm\")^WFT.N.MTD*CONVERT(HP!E$76,\"ft\",\"m\")^WFT.N.DP*CONVERT(($Q$124),\"in\",\"mm\")^WFT.N.Int*(HP!E$72/100)^WFT.N.Slope,\"mm\",\"in\")-HP!$E$81)*HP!$G$19,\"\")","v":""},{"$f":"IF(AND(HP!F$72<>\"\",HP!F$39<>\"\"),(CONVERT(WFT.N.Const*CONVERT(HP!$E$81,\"in\",\"mm\")^WFT.N.MTD*CONVERT(HP!F$76,\"ft\",\"m\")^WFT.N.DP*CONVERT(($Q$124),\"in\",\"mm\")^WFT.N.Int*(HP!F$72/100)^WFT.N.Slope,\"mm\",\"in\")-HP!$E$81)*HP!$G$19,\"\")","v":""},{"$f":"IF(AND(HP!G$72<>\"\",HP!G$39<>\"\"),(CONVERT(WFT.N.Const*CONVERT(HP!$E$81,\"in\",\"mm\")^WFT.N.MTD*CONVERT(HP!G$76,\"ft\",\"m\")^WFT.N.DP*CONVERT(($Q$124),\"in\",\"mm\")^WFT.N.Int*(HP!G$72/100)^WFT.N.Slope,\"mm\",\"in\")-HP!$E$81)*HP!$G$19,\"\")","v":""},{"$f":"IF(AND(HP!H$72<>\"\",HP!H$39<>\"\"),(CONVERT(WFT.N.Const*CONVERT(HP!$E$81,\"in\",\"mm\")^WFT.N.MTD*CONVERT(HP!H$76,\"ft\",\"m\")^WFT.N.DP*CONVERT(($Q$124),\"in\",\"mm\")^WFT.N.Int*(HP!H$72/100)^WFT.N.Slope,\"mm\",\"in\")-HP!$E$81)*HP!$G$19,\"\")","v":""},{"$f":"IF(AND(HP!I$72<>\"\",HP!I$39<>\"\"),(CONVERT(WFT.N.Const*CONVERT(HP!$E$81,\"in\",\"mm\")^WFT.N.MTD*CONVERT(HP!I$76,\"ft\",\"m\")^WFT.N.DP*CONVERT(($Q$124),\"in\",\"mm\")^WFT.N.Int*(HP!I$72/100)^WFT.N.Slope,\"mm\",\"in\")-HP!$E$81)*HP!$G$19,\"\")","v":""},{"$f":"IF(AND(HP!J$72<>\"\",HP!J$39<>\"\"),(CONVERT(WFT.N.Const*CONVERT(HP!$E$81,\"in\",\"mm\")^WFT.N.MTD*CONVERT(HP!J$76,\"ft\",\"m\")^WFT.N.DP*CONVERT(($Q$124),\"in\",\"mm\")^WFT.N.Int*(HP!J$72/100)^WFT.N.Slope,\"mm\",\"in\")-HP!$E$81)*HP!$G$19,\"\")","v":""},{"$f":"IF(AND(HP!K$72<>\"\",HP!K$39<>\"\"),(CONVERT(WFT.N.Const*CONVERT(HP!$E$81,\"in\",\"mm\")^WFT.N.MTD*CONVERT(HP!K$76,\"ft\",\"m\")^WFT.N.DP*CONVERT(($Q$124),\"in\",\"mm\")^WFT.N.Int*(HP!K$72/100)^WFT.N.Slope,\"mm\",\"in\")-HP!$E$81)*HP!$G$19,\"\")","v":""},{"$f":"IF(AND(HP!L$72<>\"\",HP!L$39<>\"\"),(CONVERT(WFT.N.Const*CONVERT(HP!$E$81,\"in\",\"mm\")^WFT.N.MTD*CONVERT(HP!L$76,\"ft\",\"m\")^WFT.N.DP*CONVERT(($Q$124),\"in\",\"mm\")^WFT.N.Int*(HP!L$72/100)^WFT.N.Slope,\"mm\",\"in\")-HP!$E$81)*HP!$G$19,\"\")","v":""},{"$f":"IF(AND(HP!M$72<>\"\",HP!M$39<>\"\"),(CONVERT(WFT.N.Const*CONVERT(HP!$E$81,\"in\",\"mm\")^WFT.N.MTD*CONVERT(HP!M$76,\"ft\",\"m\")^WFT.N.DP*CONVERT(($Q$124),\"in\",\"mm\")^WFT.N.Int*(HP!M$72/100)^WFT.N.Slope,\"mm\",\"in\")-HP!$E$81)*HP!$G$19,\"\")","v":""},{"$f":"IF(AND(HP!N$72<>\"\",HP!N$39<>\"\"),(CONVERT(WFT.N.Const*CONVERT(HP!$E$81,\"in\",\"mm\")^WFT.N.MTD*CONVERT(HP!N$76,\"ft\",\"m\")^WFT.N.DP*CONVERT(($Q$124),\"in\",\"mm\")^WFT.N.Int*(HP!N$72/100)^WFT.N.Slope,\"mm\",\"in\")-HP!$E$81)*HP!$G$19,\"\")","v":""},{"$f":"IF(AND(HP!O$72<>\"\",HP!O$39<>\"\"),(CONVERT(WFT.N.Const*CONVERT(HP!$E$81,\"in\",\"mm\")^WFT.N.MTD*CONVERT(HP!O$76,\"ft\",\"m\")^WFT.N.DP*CONVERT(($Q$124),\"in\",\"mm\")^WFT.N.Int*(HP!O$72/100)^WFT.N.Slope,\"mm\",\"in\")-HP!$E$81)*HP!$G$19,\"\")","v":""}]
[]
[]
["UK RRL",null,null,null,null,null,null,null,null,null,null,null,null,null,null,null,"PAVDRN"]
["Plane Number",1,2,3,4,5,6,7,8,9,10,11,12,null,null,null,"Plane Number",1,2,3,4,5,6,7,8,9,10,11,12]
["Intensity (in/hr)","Shoulder","Lane 1","Lane 2","Lane 3","Lane 4","Lane 5","Lane 6","Lane 7","Lane 8","Lane 9","Lane 10","Lane 11",null,null,null,"Intensity (in/hr)","Shoulder","Lane 1","Lane 2","Lane 3","Lane 4","Lane 5","Lane 6","Lane 7","Lane 8","Lane 9","Lane 10","Lane 11"]
[0.1,{"$f":"IF(AND(HP!D$72<>\"\",HP!D$39<>\"\"),(CONVERT(WFT.U.Const*CONVERT(HP!D$76,\"ft\",\"m\")^WFT.U.DP*CONVERT(($A$130),\"in\",\"mm\")^WFT.U.Int*(HP!D$72/100)^WFT.U.Slope,\"mm\",\"in\")-HP!$E$81)*HP!$G$19,\"\")","v":""},{"$f":"IF(AND(HP!E$72<>\"\",HP!E$39<>\"\"),(CONVERT(WFT.U.Const*CONVERT(HP!E$76,\"ft\",\"m\")^WFT.U.DP*CONVERT(($A$130),\"in\",\"mm\")^WFT.U.Int*(HP!E$72/100)^WFT.U.Slope,\"mm\",\"in\")-HP!$E$81)*HP!$G$19,\"\")","v":""},{"$f":"IF(AND(HP!F$72<>\"\",HP!F$39<>\"\"),(CONVERT(WFT.U.Const*CONVERT(HP!F$76,\"ft\",\"m\")^WFT.U.DP*CONVERT(($A$130),\"in\",\"mm\")^WFT.U.Int*(HP!F$72/100)^WFT.U.Slope,\"mm\",\"in\")-HP!$E$81)*HP!$G$19,\"\")","v":""},{"$f":"IF(AND(HP!G$72<>\"\",HP!G$39<>\"\"),(CONVERT(WFT.U.Const*CONVERT(HP!G$76,\"ft\",\"m\")^WFT.U.DP*CONVERT(($A$130),\"in\",\"mm\")^WFT.U.Int*(HP!G$72/100)^WFT.U.Slope,\"mm\",\"in\")-HP!$E$81)*HP!$G$19,\"\")","v":""},{"$f":"IF(AND(HP!H$72<>\"\",HP!H$39<>\"\"),(CONVERT(WFT.U.Const*CONVERT(HP!H$76,\"ft\",\"m\")^WFT.U.DP*CONVERT(($A$130),\"in\",\"mm\")^WFT.U.Int*(HP!H$72/100)^WFT.U.Slope,\"mm\",\"in\")-HP!$E$81)*HP!$G$19,\"\")","v":""},{"$f":"IF(AND(HP!I$72<>\"\",HP!I$39<>\"\"),(CONVERT(WFT.U.Const*CONVERT(HP!I$76,\"ft\",\"m\")^WFT.U.DP*CONVERT(($A$130),\"in\",\"mm\")^WFT.U.Int*(HP!I$72/100)^WFT.U.Slope,\"mm\",\"in\")-HP!$E$81)*HP!$G$19,\"\")","v":""},{"$f":"IF(AND(HP!J$72<>\"\",HP!J$39<>\"\"),(CONVERT(WFT.U.Const*CONVERT(HP!J$76,\"ft\",\"m\")^WFT.U.DP*CONVERT(($A$130),\"in\",\"mm\")^WFT.U.Int*(HP!J$72/100)^WFT.U.Slope,\"mm\",\"in\")-HP!$E$81)*HP!$G$19,\"\")","v":""},{"$f":"IF(AND(HP!K$72<>\"\",HP!K$39<>\"\"),(CONVERT(WFT.U.Const*CONVERT(HP!K$76,\"ft\",\"m\")^WFT.U.DP*CONVERT(($A$130),\"in\",\"mm\")^WFT.U.Int*(HP!K$72/100)^WFT.U.Slope,\"mm\",\"in\")-HP!$E$81)*HP!$G$19,\"\")","v":""},{"$f":"IF(AND(HP!L$72<>\"\",HP!L$39<>\"\"),(CONVERT(WFT.U.Const*CONVERT(HP!L$76,\"ft\",\"m\")^WFT.U.DP*CONVERT(($A$130),\"in\",\"mm\")^WFT.U.Int*(HP!L$72/100)^WFT.U.Slope,\"mm\",\"in\")-HP!$E$81)*HP!$G$19,\"\")","v":""},{"$f":"IF(AND(HP!M$72<>\"\",HP!M$39<>\"\"),(CONVERT(WFT.U.Const*CONVERT(HP!M$76,\"ft\",\"m\")^WFT.U.DP*CONVERT(($A$130),\"in\",\"mm\")^WFT.U.Int*(HP!M$72/100)^WFT.U.Slope,\"mm\",\"in\")-HP!$E$81)*HP!$G$19,\"\")","v":""},{"$f":"IF(AND(HP!N$72<>\"\",HP!N$39<>\"\"),(CONVERT(WFT.U.Const*CONVERT(HP!N$76,\"ft\",\"m\")^WFT.U.DP*CONVERT(($A$130),\"in\",\"mm\")^WFT.U.Int*(HP!N$72/100)^WFT.U.Slope,\"mm\",\"in\")-HP!$E$81)*HP!$G$19,\"\")","v":""},{"$f":"IF(AND(HP!O$72<>\"\",HP!O$39<>\"\"),(CONVERT(WFT.U.Const*CONVERT(HP!O$76,\"ft\",\"m\")^WFT.U.DP*CONVERT(($A$130),\"in\",\"mm\")^WFT.U.Int*(HP!O$72/100)^WFT.U.Slope,\"mm\",\"in\")-HP!$E$81)*HP!$G$19,\"\")","v":""},null,null,null,0.1,{"$f":"IF(AND(HP!D$72<>\"\",HP!D$39<>\"\"),(CONVERT(WFT.P.Const*D98^WFT.P.Manni*CONVERT(HP!D$76,\"ft\",\"m\")^WFT.P.DP*CONVERT(($Q$130),\"in\",\"mm\")^WFT.P.Int*(HP!D$72/100)^WFT.P.Slope,\"mm\",\"in\")-HP!$E$81)*HP!$G$19,\"\")","v":""},{"$f":"IF(AND(HP!E$72<>\"\",HP!E$39<>\"\"),(CONVERT(WFT.P.Const*E98^WFT.P.Manni*CONVERT(HP!E$76,\"ft\",\"m\")^WFT.P.DP*CONVERT(($Q$130),\"in\",\"mm\")^WFT.P.Int*(HP!E$72/100)^WFT.P.Slope,\"mm\",\"in\")-HP!$E$81)*HP!$G$19,\"\")","v":""},{"$f":"IF(AND(HP!F$72<>\"\",HP!F$39<>\"\"),(CONVERT(WFT.P.Const*F98^WFT.P.Manni*CONVERT(HP!F$76,\"ft\",\"m\")^WFT.P.DP*CONVERT(($Q$130),\"in\",\"mm\")^WFT.P.Int*(HP!F$72/100)^WFT.P.Slope,\"mm\",\"in\")-HP!$E$81)*HP!$G$19,\"\")","v":""},{"$f":"IF(AND(HP!G$72<>\"\",HP!G$39<>\"\"),(CONVERT(WFT.P.Const*G98^WFT.P.Manni*CONVERT(HP!G$76,\"ft\",\"m\")^WFT.P.DP*CONVERT(($Q$130),\"in\",\"mm\")^WFT.P.Int*(HP!G$72/100)^WFT.P.Slope,\"mm\",\"in\")-HP!$E$81)*HP!$G$19,\"\")","v":""},{"$f":"IF(AND(HP!H$72<>\"\",HP!H$39<>\"\"),(CONVERT(WFT.P.Const*H98^WFT.P.Manni*CONVERT(HP!H$76,\"ft\",\"m\")^WFT.P.DP*CONVERT(($Q$130),\"in\",\"mm\")^WFT.P.Int*(HP!H$72/100)^WFT.P.Slope,\"mm\",\"in\")-HP!$E$81)*HP!$G$19,\"\")","v":""},{"$f":"IF(AND(HP!I$72<>\"\",HP!I$39<>\"\"),(CONVERT(WFT.P.Const*I98^WFT.P.Manni*CONVERT(HP!I$76,\"ft\",\"m\")^WFT.P.DP*CONVERT(($Q$130),\"in\",\"mm\")^WFT.P.Int*(HP!I$72/100)^WFT.P.Slope,\"mm\",\"in\")-HP!$E$81)*HP!$G$19,\"\")","v":""},{"$f":"IF(AND(HP!J$72<>\"\",HP!J$39<>\"\"),(CONVERT(WFT.P.Const*J98^WFT.P.Manni*CONVERT(HP!J$76,\"ft\",\"m\")^WFT.P.DP*CONVERT(($Q$130),\"in\",\"mm\")^WFT.P.Int*(HP!J$72/100)^WFT.P.Slope,\"mm\",\"in\")-HP!$E$81)*HP!$G$19,\"\")","v":""},{"$f":"IF(AND(HP!K$72<>\"\",HP!K$39<>\"\"),(CONVERT(WFT.P.Const*K98^WFT.P.Manni*CONVERT(HP!K$76,\"ft\",\"m\")^WFT.P.DP*CONVERT(($Q$130),\"in\",\"mm\")^WFT.P.Int*(HP!K$72/100)^WFT.P.Slope,\"mm\",\"in\")-HP!$E$81)*HP!$G$19,\"\")","v":""},{"$f":"IF(AND(HP!L$72<>\"\",HP!L$39<>\"\"),(CONVERT(WFT.P.Const*L98^WFT.P.Manni*CONVERT(HP!L$76,\"ft\",\"m\")^WFT.P.DP*CONVERT(($Q$130),\"in\",\"mm\")^WFT.P.Int*(HP!L$72/100)^WFT.P.Slope,\"mm\",\"in\")-HP!$E$81)*HP!$G$19,\"\")","v":""},{"$f":"IF(AND(HP!M$72<>\"\",HP!M$39<>\"\"),(CONVERT(WFT.P.Const*M98^WFT.P.Manni*CONVERT(HP!M$76,\"ft\",\"m\")^WFT.P.DP*CONVERT(($Q$130),\"in\",\"mm\")^WFT.P.Int*(HP!M$72/100)^WFT.P.Slope,\"mm\",\"in\")-HP!$E$81)*HP!$G$19,\"\")","v":""},{"$f":"IF(AND(HP!N$72<>\"\",HP!N$39<>\"\"),(CONVERT(WFT.P.Const*N98^WFT.P.Manni*CONVERT(HP!N$76,\"ft\",\"m\")^WFT.P.DP*CONVERT(($Q$130),\"in\",\"mm\")^WFT.P.Int*(HP!N$72/100)^WFT.P.Slope,\"mm\",\"in\")-HP!$E$81)*HP!$G$19,\"\")","v":""},{"$f":"IF(AND(HP!O$72<>\"\",HP!O$39<>\"\"),(CONVERT(WFT.P.Const*O98^WFT.P.Manni*CONVERT(HP!O$76,\"ft\",\"m\")^WFT.P.DP*CONVERT(($Q$130),\"in\",\"mm\")^WFT.P.Int*(HP!O$72/100)^WFT.P.Slope,\"mm\",\"in\")-HP!$E$81)*HP!$G$19,\"\")","v":""}]
[0.25,{"$f":"IF(AND(HP!D$72<>\"\",HP!D$39<>\"\"),(CONVERT(WFT.U.Const*CONVERT(HP!D$76,\"ft\",\"m\")^WFT.U.DP*CONVERT(($A$131),\"in\",\"mm\")^WFT.U.Int*(HP!D$72/100)^WFT.U.Slope,\"mm\",\"in\")-HP!$E$81)*HP!$G$19,\"\")","v":""},{"$f":"IF(AND(HP!E$72<>\"\",HP!E$39<>\"\"),(CONVERT(WFT.U.Const*CONVERT(HP!E$76,\"ft\",\"m\")^WFT.U.DP*CONVERT(($A$131),\"in\",\"mm\")^WFT.U.Int*(HP!E$72/100)^WFT.U.Slope,\"mm\",\"in\")-HP!$E$81)*HP!$G$19,\"\")","v":""},{"$f":"IF(AND(HP!F$72<>\"\",HP!F$39<>\"\"),(CONVERT(WFT.U.Const*CONVERT(HP!F$76,\"ft\",\"m\")^WFT.U.DP*CONVERT(($A$131),\"in\",\"mm\")^WFT.U.Int*(HP!F$72/100)^WFT.U.Slope,\"mm\",\"in\")-HP!$E$81)*HP!$G$19,\"\")","v":""},{"$f":"IF(AND(HP!G$72<>\"\",HP!G$39<>\"\"),(CONVERT(WFT.U.Const*CONVERT(HP!G$76,\"ft\",\"m\")^WFT.U.DP*CONVERT(($A$131),\"in\",\"mm\")^WFT.U.Int*(HP!G$72/100)^WFT.U.Slope,\"mm\",\"in\")-HP!$E$81)*HP!$G$19,\"\")","v":""},{"$f":"IF(AND(HP!H$72<>\"\",HP!H$39<>\"\"),(CONVERT(WFT.U.Const*CONVERT(HP!H$76,\"ft\",\"m\")^WFT.U.DP*CONVERT(($A$131),\"in\",\"mm\")^WFT.U.Int*(HP!H$72/100)^WFT.U.Slope,\"mm\",\"in\")-HP!$E$81)*HP!$G$19,\"\")","v":""},{"$f":"IF(AND(HP!I$72<>\"\",HP!I$39<>\"\"),(CONVERT(WFT.U.Const*CONVERT(HP!I$76,\"ft\",\"m\")^WFT.U.DP*CONVERT(($A$131),\"in\",\"mm\")^WFT.U.Int*(HP!I$72/100)^WFT.U.Slope,\"mm\",\"in\")-HP!$E$81)*HP!$G$19,\"\")","v":""},{"$f":"IF(AND(HP!J$72<>\"\",HP!J$39<>\"\"),(CONVERT(WFT.U.Const*CONVERT(HP!J$76,\"ft\",\"m\")^WFT.U.DP*CONVERT(($A$131),\"in\",\"mm\")^WFT.U.Int*(HP!J$72/100)^WFT.U.Slope,\"mm\",\"in\")-HP!$E$81)*HP!$G$19,\"\")","v":""},{"$f":"IF(AND(HP!K$72<>\"\",HP!K$39<>\"\"),(CONVERT(WFT.U.Const*CONVERT(HP!K$76,\"ft\",\"m\")^WFT.U.DP*CONVERT(($A$131),\"in\",\"mm\")^WFT.U.Int*(HP!K$72/100)^WFT.U.Slope,\"mm\",\"in\")-HP!$E$81)*HP!$G$19,\"\")","v":""},{"$f":"IF(AND(HP!L$72<>\"\",HP!L$39<>\"\"),(CONVERT(WFT.U.Const*CONVERT(HP!L$76,\"ft\",\"m\")^WFT.U.DP*CONVERT(($A$131),\"in\",\"mm\")^WFT.U.Int*(HP!L$72/100)^WFT.U.Slope,\"mm\",\"in\")-HP!$E$81)*HP!$G$19,\"\")","v":""},{"$f":"IF(AND(HP!M$72<>\"\",HP!M$39<>\"\"),(CONVERT(WFT.U.Const*CONVERT(HP!M$76,\"ft\",\"m\")^WFT.U.DP*CONVERT(($A$131),\"in\",\"mm\")^WFT.U.Int*(HP!M$72/100)^WFT.U.Slope,\"mm\",\"in\")-HP!$E$81)*HP!$G$19,\"\")","v":""},{"$f":"IF(AND(HP!N$72<>\"\",HP!N$39<>\"\"),(CONVERT(WFT.U.Const*CONVERT(HP!N$76,\"ft\",\"m\")^WFT.U.DP*CONVERT(($A$131),\"in\",\"mm\")^WFT.U.Int*(HP!N$72/100)^WFT.U.Slope,\"mm\",\"in\")-HP!$E$81)*HP!$G$19,\"\")","v":""},{"$f":"IF(AND(HP!O$72<>\"\",HP!O$39<>\"\"),(CONVERT(WFT.U.Const*CONVERT(HP!O$76,\"ft\",\"m\")^WFT.U.DP*CONVERT(($A$131),\"in\",\"mm\")^WFT.U.Int*(HP!O$72/100)^WFT.U.Slope,\"mm\",\"in\")-HP!$E$81)*HP!$G$19,\"\")","v":""},null,null,null,0.25,{"$f":"IF(AND(HP!D$72<>\"\",HP!D$39<>\"\"),(CONVERT(WFT.P.Const*HP!D100^WFT.P.Manni*CONVERT(HP!D$76,\"ft\",\"m\")^WFT.P.DP*CONVERT(($Q$131),\"in\",\"mm\")^WFT.P.Int*(HP!D$72/100)^WFT.P.Slope,\"mm\",\"in\")-HP!$E$81)*HP!$G$19,\"\")","v":""},{"$f":"IF(AND(HP!E$72<>\"\",HP!E$39<>\"\"),(CONVERT(WFT.P.Const*HP!E100^WFT.P.Manni*CONVERT(HP!E$76,\"ft\",\"m\")^WFT.P.DP*CONVERT(($Q$131),\"in\",\"mm\")^WFT.P.Int*(HP!E$72/100)^WFT.P.Slope,\"mm\",\"in\")-HP!$E$81)*HP!$G$19,\"\")","v":""},{"$f":"IF(AND(HP!F$72<>\"\",HP!F$39<>\"\"),(CONVERT(WFT.P.Const*HP!F100^WFT.P.Manni*CONVERT(HP!F$76,\"ft\",\"m\")^WFT.P.DP*CONVERT(($Q$131),\"in\",\"mm\")^WFT.P.Int*(HP!F$72/100)^WFT.P.Slope,\"mm\",\"in\")-HP!$E$81)*HP!$G$19,\"\")","v":""},{"$f":"IF(AND(HP!G$72<>\"\",HP!G$39<>\"\"),(CONVERT(WFT.P.Const*HP!G100^WFT.P.Manni*CONVERT(HP!G$76,\"ft\",\"m\")^WFT.P.DP*CONVERT(($Q$131),\"in\",\"mm\")^WFT.P.Int*(HP!G$72/100)^WFT.P.Slope,\"mm\",\"in\")-HP!$E$81)*HP!$G$19,\"\")","v":""},{"$f":"IF(AND(HP!H$72<>\"\",HP!H$39<>\"\"),(CONVERT(WFT.P.Const*HP!H100^WFT.P.Manni*CONVERT(HP!H$76,\"ft\",\"m\")^WFT.P.DP*CONVERT(($Q$131),\"in\",\"mm\")^WFT.P.Int*(HP!H$72/100)^WFT.P.Slope,\"mm\",\"in\")-HP!$E$81)*HP!$G$19,\"\")","v":""},{"$f":"IF(AND(HP!I$72<>\"\",HP!I$39<>\"\"),(CONVERT(WFT.P.Const*HP!I100^WFT.P.Manni*CONVERT(HP!I$76,\"ft\",\"m\")^WFT.P.DP*CONVERT(($Q$131),\"in\",\"mm\")^WFT.P.Int*(HP!I$72/100)^WFT.P.Slope,\"mm\",\"in\")-HP!$E$81)*HP!$G$19,\"\")","v":""},{"$f":"IF(AND(HP!J$72<>\"\",HP!J$39<>\"\"),(CONVERT(WFT.P.Const*HP!J100^WFT.P.Manni*CONVERT(HP!J$76,\"ft\",\"m\")^WFT.P.DP*CONVERT(($Q$131),\"in\",\"mm\")^WFT.P.Int*(HP!J$72/100)^WFT.P.Slope,\"mm\",\"in\")-HP!$E$81)*HP!$G$19,\"\")","v":""},{"$f":"IF(AND(HP!K$72<>\"\",HP!K$39<>\"\"),(CONVERT(WFT.P.Const*HP!K100^WFT.P.Manni*CONVERT(HP!K$76,\"ft\",\"m\")^WFT.P.DP*CONVERT(($Q$131),\"in\",\"mm\")^WFT.P.Int*(HP!K$72/100)^WFT.P.Slope,\"mm\",\"in\")-HP!$E$81)*HP!$G$19,\"\")","v":""},{"$f":"IF(AND(HP!L$72<>\"\",HP!L$39<>\"\"),(CONVERT(WFT.P.Const*HP!L100^WFT.P.Manni*CONVERT(HP!L$76,\"ft\",\"m\")^WFT.P.DP*CONVERT(($Q$131),\"in\",\"mm\")^WFT.P.Int*(HP!L$72/100)^WFT.P.Slope,\"mm\",\"in\")-HP!$E$81)*HP!$G$19,\"\")","v":""},{"$f":"IF(AND(HP!M$72<>\"\",HP!M$39<>\"\"),(CONVERT(WFT.P.Const*HP!M100^WFT.P.Manni*CONVERT(HP!M$76,\"ft\",\"m\")^WFT.P.DP*CONVERT(($Q$131),\"in\",\"mm\")^WFT.P.Int*(HP!M$72/100)^WFT.P.Slope,\"mm\",\"in\")-HP!$E$81)*HP!$G$19,\"\")","v":""},{"$f":"IF(AND(HP!N$72<>\"\",HP!N$39<>\"\"),(CONVERT(WFT.P.Const*HP!N100^WFT.P.Manni*CONVERT(HP!N$76,\"ft\",\"m\")^WFT.P.DP*CONVERT(($Q$131),\"in\",\"mm\")^WFT.P.Int*(HP!N$72/100)^WFT.P.Slope,\"mm\",\"in\")-HP!$E$81)*HP!$G$19,\"\")","v":""},{"$f":"IF(AND(HP!O$72<>\"\",HP!O$39<>\"\"),(CONVERT(WFT.P.Const*HP!O100^WFT.P.Manni*CONVERT(HP!O$76,\"ft\",\"m\")^WFT.P.DP*CONVERT(($Q$131),\"in\",\"mm\")^WFT.P.Int*(HP!O$72/100)^WFT.P.Slope,\"mm\",\"in\")-HP!$E$81)*HP!$G$19,\"\")","v":""}]
[0.5,{"$f":"IF(AND(HP!D$72<>\"\",HP!D$39<>\"\"),(CONVERT(WFT.U.Const*CONVERT(HP!D$76,\"ft\",\"m\")^WFT.U.DP*CONVERT(($A$132),\"in\",\"mm\")^WFT.U.Int*(HP!D$72/100)^WFT.U.Slope,\"mm\",\"in\")-HP!$E$81)*HP!$G$19,\"\")","v":""},{"$f":"IF(AND(HP!E$72<>\"\",HP!E$39<>\"\"),(CONVERT(WFT.U.Const*CONVERT(HP!E$76,\"ft\",\"m\")^WFT.U.DP*CONVERT(($A$132),\"in\",\"mm\")^WFT.U.Int*(HP!E$72/100)^WFT.U.Slope,\"mm\",\"in\")-HP!$E$81)*HP!$G$19,\"\")","v":""},{"$f":"IF(AND(HP!F$72<>\"\",HP!F$39<>\"\"),(CONVERT(WFT.U.Const*CONVERT(HP!F$76,\"ft\",\"m\")^WFT.U.DP*CONVERT(($A$132),\"in\",\"mm\")^WFT.U.Int*(HP!F$72/100)^WFT.U.Slope,\"mm\",\"in\")-HP!$E$81)*HP!$G$19,\"\")","v":""},{"$f":"IF(AND(HP!G$72<>\"\",HP!G$39<>\"\"),(CONVERT(WFT.U.Const*CONVERT(HP!G$76,\"ft\",\"m\")^WFT.U.DP*CONVERT(($A$132),\"in\",\"mm\")^WFT.U.Int*(HP!G$72/100)^WFT.U.Slope,\"mm\",\"in\")-HP!$E$81)*HP!$G$19,\"\")","v":""},{"$f":"IF(AND(HP!H$72<>\"\",HP!H$39<>\"\"),(CONVERT(WFT.U.Const*CONVERT(HP!H$76,\"ft\",\"m\")^WFT.U.DP*CONVERT(($A$132),\"in\",\"mm\")^WFT.U.Int*(HP!H$72/100)^WFT.U.Slope,\"mm\",\"in\")-HP!$E$81)*HP!$G$19,\"\")","v":""},{"$f":"IF(AND(HP!I$72<>\"\",HP!I$39<>\"\"),(CONVERT(WFT.U.Const*CONVERT(HP!I$76,\"ft\",\"m\")^WFT.U.DP*CONVERT(($A$132),\"in\",\"mm\")^WFT.U.Int*(HP!I$72/100)^WFT.U.Slope,\"mm\",\"in\")-HP!$E$81)*HP!$G$19,\"\")","v":""},{"$f":"IF(AND(HP!J$72<>\"\",HP!J$39<>\"\"),(CONVERT(WFT.U.Const*CONVERT(HP!J$76,\"ft\",\"m\")^WFT.U.DP*CONVERT(($A$132),\"in\",\"mm\")^WFT.U.Int*(HP!J$72/100)^WFT.U.Slope,\"mm\",\"in\")-HP!$E$81)*HP!$G$19,\"\")","v":""},{"$f":"IF(AND(HP!K$72<>\"\",HP!K$39<>\"\"),(CONVERT(WFT.U.Const*CONVERT(HP!K$76,\"ft\",\"m\")^WFT.U.DP*CONVERT(($A$132),\"in\",\"mm\")^WFT.U.Int*(HP!K$72/100)^WFT.U.Slope,\"mm\",\"in\")-HP!$E$81)*HP!$G$19,\"\")","v":""},{"$f":"IF(AND(HP!L$72<>\"\",HP!L$39<>\"\"),(CONVERT(WFT.U.Const*CONVERT(HP!L$76,\"ft\",\"m\")^WFT.U.DP*CONVERT(($A$132),\"in\",\"mm\")^WFT.U.Int*(HP!L$72/100)^WFT.U.Slope,\"mm\",\"in\")-HP!$E$81)*HP!$G$19,\"\")","v":""},{"$f":"IF(AND(HP!M$72<>\"\",HP!M$39<>\"\"),(CONVERT(WFT.U.Const*CONVERT(HP!M$76,\"ft\",\"m\")^WFT.U.DP*CONVERT(($A$132),\"in\",\"mm\")^WFT.U.Int*(HP!M$72/100)^WFT.U.Slope,\"mm\",\"in\")-HP!$E$81)*HP!$G$19,\"\")","v":""},{"$f":"IF(AND(HP!N$72<>\"\",HP!N$39<>\"\"),(CONVERT(WFT.U.Const*CONVERT(HP!N$76,\"ft\",\"m\")^WFT.U.DP*CONVERT(($A$132),\"in\",\"mm\")^WFT.U.Int*(HP!N$72/100)^WFT.U.Slope,\"mm\",\"in\")-HP!$E$81)*HP!$G$19,\"\")","v":""},{"$f":"IF(AND(HP!O$72<>\"\",HP!O$39<>\"\"),(CONVERT(WFT.U.Const*CONVERT(HP!O$76,\"ft\",\"m\")^WFT.U.DP*CONVERT(($A$132),\"in\",\"mm\")^WFT.U.Int*(HP!O$72/100)^WFT.U.Slope,\"mm\",\"in\")-HP!$E$81)*HP!$G$19,\"\")","v":""},null,null,null,0.5,{"$f":"IF(AND(HP!D$72<>\"\",HP!D$39<>\"\"),(CONVERT(WFT.P.Const*D102^WFT.P.Manni*CONVERT(HP!D$76,\"ft\",\"m\")^WFT.P.DP*CONVERT(($Q$132),\"in\",\"mm\")^WFT.P.Int*(HP!D$72/100)^WFT.P.Slope,\"mm\",\"in\")-HP!$E$81)*HP!$G$19,\"\")","v":""},{"$f":"IF(AND(HP!E$72<>\"\",HP!E$39<>\"\"),(CONVERT(WFT.P.Const*E102^WFT.P.Manni*CONVERT(HP!E$76,\"ft\",\"m\")^WFT.P.DP*CONVERT(($Q$132),\"in\",\"mm\")^WFT.P.Int*(HP!E$72/100)^WFT.P.Slope,\"mm\",\"in\")-HP!$E$81)*HP!$G$19,\"\")","v":""},{"$f":"IF(AND(HP!F$72<>\"\",HP!F$39<>\"\"),(CONVERT(WFT.P.Const*F102^WFT.P.Manni*CONVERT(HP!F$76,\"ft\",\"m\")^WFT.P.DP*CONVERT(($Q$132),\"in\",\"mm\")^WFT.P.Int*(HP!F$72/100)^WFT.P.Slope,\"mm\",\"in\")-HP!$E$81)*HP!$G$19,\"\")","v":""},{"$f":"IF(AND(HP!G$72<>\"\",HP!G$39<>\"\"),(CONVERT(WFT.P.Const*G102^WFT.P.Manni*CONVERT(HP!G$76,\"ft\",\"m\")^WFT.P.DP*CONVERT(($Q$132),\"in\",\"mm\")^WFT.P.Int*(HP!G$72/100)^WFT.P.Slope,\"mm\",\"in\")-HP!$E$81)*HP!$G$19,\"\")","v":""},{"$f":"IF(AND(HP!H$72<>\"\",HP!H$39<>\"\"),(CONVERT(WFT.P.Const*H102^WFT.P.Manni*CONVERT(HP!H$76,\"ft\",\"m\")^WFT.P.DP*CONVERT(($Q$132),\"in\",\"mm\")^WFT.P.Int*(HP!H$72/100)^WFT.P.Slope,\"mm\",\"in\")-HP!$E$81)*HP!$G$19,\"\")","v":""},{"$f":"IF(AND(HP!I$72<>\"\",HP!I$39<>\"\"),(CONVERT(WFT.P.Const*I102^WFT.P.Manni*CONVERT(HP!I$76,\"ft\",\"m\")^WFT.P.DP*CONVERT(($Q$132),\"in\",\"mm\")^WFT.P.Int*(HP!I$72/100)^WFT.P.Slope,\"mm\",\"in\")-HP!$E$81)*HP!$G$19,\"\")","v":""},{"$f":"IF(AND(HP!J$72<>\"\",HP!J$39<>\"\"),(CONVERT(WFT.P.Const*J102^WFT.P.Manni*CONVERT(HP!J$76,\"ft\",\"m\")^WFT.P.DP*CONVERT(($Q$132),\"in\",\"mm\")^WFT.P.Int*(HP!J$72/100)^WFT.P.Slope,\"mm\",\"in\")-HP!$E$81)*HP!$G$19,\"\")","v":""},{"$f":"IF(AND(HP!K$72<>\"\",HP!K$39<>\"\"),(CONVERT(WFT.P.Const*K102^WFT.P.Manni*CONVERT(HP!K$76,\"ft\",\"m\")^WFT.P.DP*CONVERT(($Q$132),\"in\",\"mm\")^WFT.P.Int*(HP!K$72/100)^WFT.P.Slope,\"mm\",\"in\")-HP!$E$81)*HP!$G$19,\"\")","v":""},{"$f":"IF(AND(HP!L$72<>\"\",HP!L$39<>\"\"),(CONVERT(WFT.P.Const*L102^WFT.P.Manni*CONVERT(HP!L$76,\"ft\",\"m\")^WFT.P.DP*CONVERT(($Q$132),\"in\",\"mm\")^WFT.P.Int*(HP!L$72/100)^WFT.P.Slope,\"mm\",\"in\")-HP!$E$81)*HP!$G$19,\"\")","v":""},{"$f":"IF(AND(HP!M$72<>\"\",HP!M$39<>\"\"),(CONVERT(WFT.P.Const*M102^WFT.P.Manni*CONVERT(HP!M$76,\"ft\",\"m\")^WFT.P.DP*CONVERT(($Q$132),\"in\",\"mm\")^WFT.P.Int*(HP!M$72/100)^WFT.P.Slope,\"mm\",\"in\")-HP!$E$81)*HP!$G$19,\"\")","v":""},{"$f":"IF(AND(HP!N$72<>\"\",HP!N$39<>\"\"),(CONVERT(WFT.P.Const*N102^WFT.P.Manni*CONVERT(HP!N$76,\"ft\",\"m\")^WFT.P.DP*CONVERT(($Q$132),\"in\",\"mm\")^WFT.P.Int*(HP!N$72/100)^WFT.P.Slope,\"mm\",\"in\")-HP!$E$81)*HP!$G$19,\"\")","v":""},{"$f":"IF(AND(HP!O$72<>\"\",HP!O$39<>\"\"),(CONVERT(WFT.P.Const*O102^WFT.P.Manni*CONVERT(HP!O$76,\"ft\",\"m\")^WFT.P.DP*CONVERT(($Q$132),\"in\",\"mm\")^WFT.P.Int*(HP!O$72/100)^WFT.P.Slope,\"mm\",\"in\")-HP!$E$81)*HP!$G$19,\"\")","v":""}]
[1,{"$f":"IF(AND(HP!D$72<>\"\",HP!D$39<>\"\"),(CONVERT(WFT.U.Const*CONVERT(HP!D$76,\"ft\",\"m\")^WFT.U.DP*CONVERT(($A$133),\"in\",\"mm\")^WFT.U.Int*(HP!D$72/100)^WFT.U.Slope,\"mm\",\"in\")-HP!$E$81)*HP!$G$19,\"\")","v":""},{"$f":"IF(AND(HP!E$72<>\"\",HP!E$39<>\"\"),(CONVERT(WFT.U.Const*CONVERT(HP!E$76,\"ft\",\"m\")^WFT.U.DP*CONVERT(($A$133),\"in\",\"mm\")^WFT.U.Int*(HP!E$72/100)^WFT.U.Slope,\"mm\",\"in\")-HP!$E$81)*HP!$G$19,\"\")","v":""},{"$f":"IF(AND(HP!F$72<>\"\",HP!F$39<>\"\"),(CONVERT(WFT.U.Const*CONVERT(HP!F$76,\"ft\",\"m\")^WFT.U.DP*CONVERT(($A$133),\"in\",\"mm\")^WFT.U.Int*(HP!F$72/100)^WFT.U.Slope,\"mm\",\"in\")-HP!$E$81)*HP!$G$19,\"\")","v":""},{"$f":"IF(AND(HP!G$72<>\"\",HP!G$39<>\"\"),(CONVERT(WFT.U.Const*CONVERT(HP!G$76,\"ft\",\"m\")^WFT.U.DP*CONVERT(($A$133),\"in\",\"mm\")^WFT.U.Int*(HP!G$72/100)^WFT.U.Slope,\"mm\",\"in\")-HP!$E$81)*HP!$G$19,\"\")","v":""},{"$f":"IF(AND(HP!H$72<>\"\",HP!H$39<>\"\"),(CONVERT(WFT.U.Const*CONVERT(HP!H$76,\"ft\",\"m\")^WFT.U.DP*CONVERT(($A$133),\"in\",\"mm\")^WFT.U.Int*(HP!H$72/100)^WFT.U.Slope,\"mm\",\"in\")-HP!$E$81)*HP!$G$19,\"\")","v":""},{"$f":"IF(AND(HP!I$72<>\"\",HP!I$39<>\"\"),(CONVERT(WFT.U.Const*CONVERT(HP!I$76,\"ft\",\"m\")^WFT.U.DP*CONVERT(($A$133),\"in\",\"mm\")^WFT.U.Int*(HP!I$72/100)^WFT.U.Slope,\"mm\",\"in\")-HP!$E$81)*HP!$G$19,\"\")","v":""},{"$f":"IF(AND(HP!J$72<>\"\",HP!J$39<>\"\"),(CONVERT(WFT.U.Const*CONVERT(HP!J$76,\"ft\",\"m\")^WFT.U.DP*CONVERT(($A$133),\"in\",\"mm\")^WFT.U.Int*(HP!J$72/100)^WFT.U.Slope,\"mm\",\"in\")-HP!$E$81)*HP!$G$19,\"\")","v":""},{"$f":"IF(AND(HP!K$72<>\"\",HP!K$39<>\"\"),(CONVERT(WFT.U.Const*CONVERT(HP!K$76,\"ft\",\"m\")^WFT.U.DP*CONVERT(($A$133),\"in\",\"mm\")^WFT.U.Int*(HP!K$72/100)^WFT.U.Slope,\"mm\",\"in\")-HP!$E$81)*HP!$G$19,\"\")","v":""},{"$f":"IF(AND(HP!L$72<>\"\",HP!L$39<>\"\"),(CONVERT(WFT.U.Const*CONVERT(HP!L$76,\"ft\",\"m\")^WFT.U.DP*CONVERT(($A$133),\"in\",\"mm\")^WFT.U.Int*(HP!L$72/100)^WFT.U.Slope,\"mm\",\"in\")-HP!$E$81)*HP!$G$19,\"\")","v":""},{"$f":"IF(AND(HP!M$72<>\"\",HP!M$39<>\"\"),(CONVERT(WFT.U.Const*CONVERT(HP!M$76,\"ft\",\"m\")^WFT.U.DP*CONVERT(($A$133),\"in\",\"mm\")^WFT.U.Int*(HP!M$72/100)^WFT.U.Slope,\"mm\",\"in\")-HP!$E$81)*HP!$G$19,\"\")","v":""},{"$f":"IF(AND(HP!N$72<>\"\",HP!N$39<>\"\"),(CONVERT(WFT.U.Const*CONVERT(HP!N$76,\"ft\",\"m\")^WFT.U.DP*CONVERT(($A$133),\"in\",\"mm\")^WFT.U.Int*(HP!N$72/100)^WFT.U.Slope,\"mm\",\"in\")-HP!$E$81)*HP!$G$19,\"\")","v":""},{"$f":"IF(AND(HP!O$72<>\"\",HP!O$39<>\"\"),(CONVERT(WFT.U.Const*CONVERT(HP!O$76,\"ft\",\"m\")^WFT.U.DP*CONVERT(($A$133),\"in\",\"mm\")^WFT.U.Int*(HP!O$72/100)^WFT.U.Slope,\"mm\",\"in\")-HP!$E$81)*HP!$G$19,\"\")","v":""},null,null,null,1,{"$f":"IF(AND(HP!D$72<>\"\",HP!D$39<>\"\"),(CONVERT(WFT.P.Const*D104^WFT.P.Manni*CONVERT(HP!D$76,\"ft\",\"m\")^WFT.P.DP*CONVERT(($Q$133),\"in\",\"mm\")^WFT.P.Int*(HP!D$72/100)^WFT.P.Slope,\"mm\",\"in\")-HP!$E$81)*HP!$G$19,\"\")","v":""},{"$f":"IF(AND(HP!E$72<>\"\",HP!E$39<>\"\"),(CONVERT(WFT.P.Const*E104^WFT.P.Manni*CONVERT(HP!E$76,\"ft\",\"m\")^WFT.P.DP*CONVERT(($Q$133),\"in\",\"mm\")^WFT.P.Int*(HP!E$72/100)^WFT.P.Slope,\"mm\",\"in\")-HP!$E$81)*HP!$G$19,\"\")","v":""},{"$f":"IF(AND(HP!F$72<>\"\",HP!F$39<>\"\"),(CONVERT(WFT.P.Const*F104^WFT.P.Manni*CONVERT(HP!F$76,\"ft\",\"m\")^WFT.P.DP*CONVERT(($Q$133),\"in\",\"mm\")^WFT.P.Int*(HP!F$72/100)^WFT.P.Slope,\"mm\",\"in\")-HP!$E$81)*HP!$G$19,\"\")","v":""},{"$f":"IF(AND(HP!G$72<>\"\",HP!G$39<>\"\"),(CONVERT(WFT.P.Const*G104^WFT.P.Manni*CONVERT(HP!G$76,\"ft\",\"m\")^WFT.P.DP*CONVERT(($Q$133),\"in\",\"mm\")^WFT.P.Int*(HP!G$72/100)^WFT.P.Slope,\"mm\",\"in\")-HP!$E$81)*HP!$G$19,\"\")","v":""},{"$f":"IF(AND(HP!H$72<>\"\",HP!H$39<>\"\"),(CONVERT(WFT.P.Const*H104^WFT.P.Manni*CONVERT(HP!H$76,\"ft\",\"m\")^WFT.P.DP*CONVERT(($Q$133),\"in\",\"mm\")^WFT.P.Int*(HP!H$72/100)^WFT.P.Slope,\"mm\",\"in\")-HP!$E$81)*HP!$G$19,\"\")","v":""},{"$f":"IF(AND(HP!I$72<>\"\",HP!I$39<>\"\"),(CONVERT(WFT.P.Const*I104^WFT.P.Manni*CONVERT(HP!I$76,\"ft\",\"m\")^WFT.P.DP*CONVERT(($Q$133),\"in\",\"mm\")^WFT.P.Int*(HP!I$72/100)^WFT.P.Slope,\"mm\",\"in\")-HP!$E$81)*HP!$G$19,\"\")","v":""},{"$f":"IF(AND(HP!J$72<>\"\",HP!J$39<>\"\"),(CONVERT(WFT.P.Const*J104^WFT.P.Manni*CONVERT(HP!J$76,\"ft\",\"m\")^WFT.P.DP*CONVERT(($Q$133),\"in\",\"mm\")^WFT.P.Int*(HP!J$72/100)^WFT.P.Slope,\"mm\",\"in\")-HP!$E$81)*HP!$G$19,\"\")","v":""},{"$f":"IF(AND(HP!K$72<>\"\",HP!K$39<>\"\"),(CONVERT(WFT.P.Const*K104^WFT.P.Manni*CONVERT(HP!K$76,\"ft\",\"m\")^WFT.P.DP*CONVERT(($Q$133),\"in\",\"mm\")^WFT.P.Int*(HP!K$72/100)^WFT.P.Slope,\"mm\",\"in\")-HP!$E$81)*HP!$G$19,\"\")","v":""},{"$f":"IF(AND(HP!L$72<>\"\",HP!L$39<>\"\"),(CONVERT(WFT.P.Const*L104^WFT.P.Manni*CONVERT(HP!L$76,\"ft\",\"m\")^WFT.P.DP*CONVERT(($Q$133),\"in\",\"mm\")^WFT.P.Int*(HP!L$72/100)^WFT.P.Slope,\"mm\",\"in\")-HP!$E$81)*HP!$G$19,\"\")","v":""},{"$f":"IF(AND(HP!M$72<>\"\",HP!M$39<>\"\"),(CONVERT(WFT.P.Const*M104^WFT.P.Manni*CONVERT(HP!M$76,\"ft\",\"m\")^WFT.P.DP*CONVERT(($Q$133),\"in\",\"mm\")^WFT.P.Int*(HP!M$72/100)^WFT.P.Slope,\"mm\",\"in\")-HP!$E$81)*HP!$G$19,\"\")","v":""},{"$f":"IF(AND(HP!N$72<>\"\",HP!N$39<>\"\"),(CONVERT(WFT.P.Const*N104^WFT.P.Manni*CONVERT(HP!N$76,\"ft\",\"m\")^WFT.P.DP*CONVERT(($Q$133),\"in\",\"mm\")^WFT.P.Int*(HP!N$72/100)^WFT.P.Slope,\"mm\",\"in\")-HP!$E$81)*HP!$G$19,\"\")","v":""},{"$f":"IF(AND(HP!O$72<>\"\",HP!O$39<>\"\"),(CONVERT(WFT.P.Const*O104^WFT.P.Manni*CONVERT(HP!O$76,\"ft\",\"m\")^WFT.P.DP*CONVERT(($Q$133),\"in\",\"mm\")^WFT.P.Int*(HP!O$72/100)^WFT.P.Slope,\"mm\",\"in\")-HP!$E$81)*HP!$G$19,\"\")","v":""}]
[2,{"$f":"IF(AND(HP!D$72<>\"\",HP!D$39<>\"\"),(CONVERT(WFT.U.Const*CONVERT(HP!D$76,\"ft\",\"m\")^WFT.U.DP*CONVERT(($A$134),\"in\",\"mm\")^WFT.U.Int*(HP!D$72/100)^WFT.U.Slope,\"mm\",\"in\")-HP!$E$81)*HP!$G$19,\"\")","v":""},{"$f":"IF(AND(HP!E$72<>\"\",HP!E$39<>\"\"),(CONVERT(WFT.U.Const*CONVERT(HP!E$76,\"ft\",\"m\")^WFT.U.DP*CONVERT(($A$134),\"in\",\"mm\")^WFT.U.Int*(HP!E$72/100)^WFT.U.Slope,\"mm\",\"in\")-HP!$E$81)*HP!$G$19,\"\")","v":""},{"$f":"IF(AND(HP!F$72<>\"\",HP!F$39<>\"\"),(CONVERT(WFT.U.Const*CONVERT(HP!F$76,\"ft\",\"m\")^WFT.U.DP*CONVERT(($A$134),\"in\",\"mm\")^WFT.U.Int*(HP!F$72/100)^WFT.U.Slope,\"mm\",\"in\")-HP!$E$81)*HP!$G$19,\"\")","v":""},{"$f":"IF(AND(HP!G$72<>\"\",HP!G$39<>\"\"),(CONVERT(WFT.U.Const*CONVERT(HP!G$76,\"ft\",\"m\")^WFT.U.DP*CONVERT(($A$134),\"in\",\"mm\")^WFT.U.Int*(HP!G$72/100)^WFT.U.Slope,\"mm\",\"in\")-HP!$E$81)*HP!$G$19,\"\")","v":""},{"$f":"IF(AND(HP!H$72<>\"\",HP!H$39<>\"\"),(CONVERT(WFT.U.Const*CONVERT(HP!H$76,\"ft\",\"m\")^WFT.U.DP*CONVERT(($A$134),\"in\",\"mm\")^WFT.U.Int*(HP!H$72/100)^WFT.U.Slope,\"mm\",\"in\")-HP!$E$81)*HP!$G$19,\"\")","v":""},{"$f":"IF(AND(HP!I$72<>\"\",HP!I$39<>\"\"),(CONVERT(WFT.U.Const*CONVERT(HP!I$76,\"ft\",\"m\")^WFT.U.DP*CONVERT(($A$134),\"in\",\"mm\")^WFT.U.Int*(HP!I$72/100)^WFT.U.Slope,\"mm\",\"in\")-HP!$E$81)*HP!$G$19,\"\")","v":""},{"$f":"IF(AND(HP!J$72<>\"\",HP!J$39<>\"\"),(CONVERT(WFT.U.Const*CONVERT(HP!J$76,\"ft\",\"m\")^WFT.U.DP*CONVERT(($A$134),\"in\",\"mm\")^WFT.U.Int*(HP!J$72/100)^WFT.U.Slope,\"mm\",\"in\")-HP!$E$81)*HP!$G$19,\"\")","v":""},{"$f":"IF(AND(HP!K$72<>\"\",HP!K$39<>\"\"),(CONVERT(WFT.U.Const*CONVERT(HP!K$76,\"ft\",\"m\")^WFT.U.DP*CONVERT(($A$134),\"in\",\"mm\")^WFT.U.Int*(HP!K$72/100)^WFT.U.Slope,\"mm\",\"in\")-HP!$E$81)*HP!$G$19,\"\")","v":""},{"$f":"IF(AND(HP!L$72<>\"\",HP!L$39<>\"\"),(CONVERT(WFT.U.Const*CONVERT(HP!L$76,\"ft\",\"m\")^WFT.U.DP*CONVERT(($A$134),\"in\",\"mm\")^WFT.U.Int*(HP!L$72/100)^WFT.U.Slope,\"mm\",\"in\")-HP!$E$81)*HP!$G$19,\"\")","v":""},{"$f":"IF(AND(HP!M$72<>\"\",HP!M$39<>\"\"),(CONVERT(WFT.U.Const*CONVERT(HP!M$76,\"ft\",\"m\")^WFT.U.DP*CONVERT(($A$134),\"in\",\"mm\")^WFT.U.Int*(HP!M$72/100)^WFT.U.Slope,\"mm\",\"in\")-HP!$E$81)*HP!$G$19,\"\")","v":""},{"$f":"IF(AND(HP!N$72<>\"\",HP!N$39<>\"\"),(CONVERT(WFT.U.Const*CONVERT(HP!N$76,\"ft\",\"m\")^WFT.U.DP*CONVERT(($A$134),\"in\",\"mm\")^WFT.U.Int*(HP!N$72/100)^WFT.U.Slope,\"mm\",\"in\")-HP!$E$81)*HP!$G$19,\"\")","v":""},{"$f":"IF(AND(HP!O$72<>\"\",HP!O$39<>\"\"),(CONVERT(WFT.U.Const*CONVERT(HP!O$76,\"ft\",\"m\")^WFT.U.DP*CONVERT(($A$134),\"in\",\"mm\")^WFT.U.Int*(HP!O$72/100)^WFT.U.Slope,\"mm\",\"in\")-HP!$E$81)*HP!$G$19,\"\")","v":""},null,null,null,2,{"$f":"IF(AND(HP!D$72<>\"\",HP!D$39<>\"\"),(CONVERT(WFT.P.Const*D106^WFT.P.Manni*CONVERT(HP!D$76,\"ft\",\"m\")^WFT.P.DP*CONVERT(($Q$134),\"in\",\"mm\")^WFT.P.Int*(HP!D$72/100)^WFT.P.Slope,\"mm\",\"in\")-HP!$E$81)*HP!$G$19,\"\")","v":""},{"$f":"IF(AND(HP!E$72<>\"\",HP!E$39<>\"\"),(CONVERT(WFT.P.Const*E106^WFT.P.Manni*CONVERT(HP!E$76,\"ft\",\"m\")^WFT.P.DP*CONVERT(($Q$134),\"in\",\"mm\")^WFT.P.Int*(HP!E$72/100)^WFT.P.Slope,\"mm\",\"in\")-HP!$E$81)*HP!$G$19,\"\")","v":""},{"$f":"IF(AND(HP!F$72<>\"\",HP!F$39<>\"\"),(CONVERT(WFT.P.Const*F106^WFT.P.Manni*CONVERT(HP!F$76,\"ft\",\"m\")^WFT.P.DP*CONVERT(($Q$134),\"in\",\"mm\")^WFT.P.Int*(HP!F$72/100)^WFT.P.Slope,\"mm\",\"in\")-HP!$E$81)*HP!$G$19,\"\")","v":""},{"$f":"IF(AND(HP!G$72<>\"\",HP!G$39<>\"\"),(CONVERT(WFT.P.Const*G106^WFT.P.Manni*CONVERT(HP!G$76,\"ft\",\"m\")^WFT.P.DP*CONVERT(($Q$134),\"in\",\"mm\")^WFT.P.Int*(HP!G$72/100)^WFT.P.Slope,\"mm\",\"in\")-HP!$E$81)*HP!$G$19,\"\")","v":""},{"$f":"IF(AND(HP!H$72<>\"\",HP!H$39<>\"\"),(CONVERT(WFT.P.Const*H106^WFT.P.Manni*CONVERT(HP!H$76,\"ft\",\"m\")^WFT.P.DP*CONVERT(($Q$134),\"in\",\"mm\")^WFT.P.Int*(HP!H$72/100)^WFT.P.Slope,\"mm\",\"in\")-HP!$E$81)*HP!$G$19,\"\")","v":""},{"$f":"IF(AND(HP!I$72<>\"\",HP!I$39<>\"\"),(CONVERT(WFT.P.Const*I106^WFT.P.Manni*CONVERT(HP!I$76,\"ft\",\"m\")^WFT.P.DP*CONVERT(($Q$134),\"in\",\"mm\")^WFT.P.Int*(HP!I$72/100)^WFT.P.Slope,\"mm\",\"in\")-HP!$E$81)*HP!$G$19,\"\")","v":""},{"$f":"IF(AND(HP!J$72<>\"\",HP!J$39<>\"\"),(CONVERT(WFT.P.Const*J106^WFT.P.Manni*CONVERT(HP!J$76,\"ft\",\"m\")^WFT.P.DP*CONVERT(($Q$134),\"in\",\"mm\")^WFT.P.Int*(HP!J$72/100)^WFT.P.Slope,\"mm\",\"in\")-HP!$E$81)*HP!$G$19,\"\")","v":""},{"$f":"IF(AND(HP!K$72<>\"\",HP!K$39<>\"\"),(CONVERT(WFT.P.Const*K106^WFT.P.Manni*CONVERT(HP!K$76,\"ft\",\"m\")^WFT.P.DP*CONVERT(($Q$134),\"in\",\"mm\")^WFT.P.Int*(HP!K$72/100)^WFT.P.Slope,\"mm\",\"in\")-HP!$E$81)*HP!$G$19,\"\")","v":""},{"$f":"IF(AND(HP!L$72<>\"\",HP!L$39<>\"\"),(CONVERT(WFT.P.Const*L106^WFT.P.Manni*CONVERT(HP!L$76,\"ft\",\"m\")^WFT.P.DP*CONVERT(($Q$134),\"in\",\"mm\")^WFT.P.Int*(HP!L$72/100)^WFT.P.Slope,\"mm\",\"in\")-HP!$E$81)*HP!$G$19,\"\")","v":""},{"$f":"IF(AND(HP!M$72<>\"\",HP!M$39<>\"\"),(CONVERT(WFT.P.Const*M106^WFT.P.Manni*CONVERT(HP!M$76,\"ft\",\"m\")^WFT.P.DP*CONVERT(($Q$134),\"in\",\"mm\")^WFT.P.Int*(HP!M$72/100)^WFT.P.Slope,\"mm\",\"in\")-HP!$E$81)*HP!$G$19,\"\")","v":""},{"$f":"IF(AND(HP!N$72<>\"\",HP!N$39<>\"\"),(CONVERT(WFT.P.Const*N106^WFT.P.Manni*CONVERT(HP!N$76,\"ft\",\"m\")^WFT.P.DP*CONVERT(($Q$134),\"in\",\"mm\")^WFT.P.Int*(HP!N$72/100)^WFT.P.Slope,\"mm\",\"in\")-HP!$E$81)*HP!$G$19,\"\")","v":""},{"$f":"IF(AND(HP!O$72<>\"\",HP!O$39<>\"\"),(CONVERT(WFT.P.Const*O106^WFT.P.Manni*CONVERT(HP!O$76,\"ft\",\"m\")^WFT.P.DP*CONVERT(($Q$134),\"in\",\"mm\")^WFT.P.Int*(HP!O$72/100)^WFT.P.Slope,\"mm\",\"in\")-HP!$E$81)*HP!$G$19,\"\")","v":""}]
[3,{"$f":"IF(AND(HP!D$72<>\"\",HP!D$39<>\"\"),(CONVERT(WFT.U.Const*CONVERT(HP!D$76,\"ft\",\"m\")^WFT.U.DP*CONVERT(($A$135),\"in\",\"mm\")^WFT.U.Int*(HP!D$72/100)^WFT.U.Slope,\"mm\",\"in\")-HP!$E$81)*HP!$G$19,\"\")","v":""},{"$f":"IF(AND(HP!E$72<>\"\",HP!E$39<>\"\"),(CONVERT(WFT.U.Const*CONVERT(HP!E$76,\"ft\",\"m\")^WFT.U.DP*CONVERT(($A$135),\"in\",\"mm\")^WFT.U.Int*(HP!E$72/100)^WFT.U.Slope,\"mm\",\"in\")-HP!$E$81)*HP!$G$19,\"\")","v":""},{"$f":"IF(AND(HP!F$72<>\"\",HP!F$39<>\"\"),(CONVERT(WFT.U.Const*CONVERT(HP!F$76,\"ft\",\"m\")^WFT.U.DP*CONVERT(($A$135),\"in\",\"mm\")^WFT.U.Int*(HP!F$72/100)^WFT.U.Slope,\"mm\",\"in\")-HP!$E$81)*HP!$G$19,\"\")","v":""},{"$f":"IF(AND(HP!G$72<>\"\",HP!G$39<>\"\"),(CONVERT(WFT.U.Const*CONVERT(HP!G$76,\"ft\",\"m\")^WFT.U.DP*CONVERT(($A$135),\"in\",\"mm\")^WFT.U.Int*(HP!G$72/100)^WFT.U.Slope,\"mm\",\"in\")-HP!$E$81)*HP!$G$19,\"\")","v":""},{"$f":"IF(AND(HP!H$72<>\"\",HP!H$39<>\"\"),(CONVERT(WFT.U.Const*CONVERT(HP!H$76,\"ft\",\"m\")^WFT.U.DP*CONVERT(($A$135),\"in\",\"mm\")^WFT.U.Int*(HP!H$72/100)^WFT.U.Slope,\"mm\",\"in\")-HP!$E$81)*HP!$G$19,\"\")","v":""},{"$f":"IF(AND(HP!I$72<>\"\",HP!I$39<>\"\"),(CONVERT(WFT.U.Const*CONVERT(HP!I$76,\"ft\",\"m\")^WFT.U.DP*CONVERT(($A$135),\"in\",\"mm\")^WFT.U.Int*(HP!I$72/100)^WFT.U.Slope,\"mm\",\"in\")-HP!$E$81)*HP!$G$19,\"\")","v":""},{"$f":"IF(AND(HP!J$72<>\"\",HP!J$39<>\"\"),(CONVERT(WFT.U.Const*CONVERT(HP!J$76,\"ft\",\"m\")^WFT.U.DP*CONVERT(($A$135),\"in\",\"mm\")^WFT.U.Int*(HP!J$72/100)^WFT.U.Slope,\"mm\",\"in\")-HP!$E$81)*HP!$G$19,\"\")","v":""},{"$f":"IF(AND(HP!K$72<>\"\",HP!K$39<>\"\"),(CONVERT(WFT.U.Const*CONVERT(HP!K$76,\"ft\",\"m\")^WFT.U.DP*CONVERT(($A$135),\"in\",\"mm\")^WFT.U.Int*(HP!K$72/100)^WFT.U.Slope,\"mm\",\"in\")-HP!$E$81)*HP!$G$19,\"\")","v":""},{"$f":"IF(AND(HP!L$72<>\"\",HP!L$39<>\"\"),(CONVERT(WFT.U.Const*CONVERT(HP!L$76,\"ft\",\"m\")^WFT.U.DP*CONVERT(($A$135),\"in\",\"mm\")^WFT.U.Int*(HP!L$72/100)^WFT.U.Slope,\"mm\",\"in\")-HP!$E$81)*HP!$G$19,\"\")","v":""},{"$f":"IF(AND(HP!M$72<>\"\",HP!M$39<>\"\"),(CONVERT(WFT.U.Const*CONVERT(HP!M$76,\"ft\",\"m\")^WFT.U.DP*CONVERT(($A$135),\"in\",\"mm\")^WFT.U.Int*(HP!M$72/100)^WFT.U.Slope,\"mm\",\"in\")-HP!$E$81)*HP!$G$19,\"\")","v":""},{"$f":"IF(AND(HP!N$72<>\"\",HP!N$39<>\"\"),(CONVERT(WFT.U.Const*CONVERT(HP!N$76,\"ft\",\"m\")^WFT.U.DP*CONVERT(($A$135),\"in\",\"mm\")^WFT.U.Int*(HP!N$72/100)^WFT.U.Slope,\"mm\",\"in\")-HP!$E$81)*HP!$G$19,\"\")","v":""},{"$f":"IF(AND(HP!O$72<>\"\",HP!O$39<>\"\"),(CONVERT(WFT.U.Const*CONVERT(HP!O$76,\"ft\",\"m\")^WFT.U.DP*CONVERT(($A$135),\"in\",\"mm\")^WFT.U.Int*(HP!O$72/100)^WFT.U.Slope,\"mm\",\"in\")-HP!$E$81)*HP!$G$19,\"\")","v":""},null,null,null,3,{"$f":"IF(AND(HP!D$72<>\"\",HP!D$39<>\"\"),(CONVERT(WFT.P.Const*D108^WFT.P.Manni*CONVERT(HP!D$76,\"ft\",\"m\")^WFT.P.DP*CONVERT(($Q$135),\"in\",\"mm\")^WFT.P.Int*(HP!D$72/100)^WFT.P.Slope,\"mm\",\"in\")-HP!$E$81)*HP!$G$19,\"\")","v":""},{"$f":"IF(AND(HP!E$72<>\"\",HP!E$39<>\"\"),(CONVERT(WFT.P.Const*E108^WFT.P.Manni*CONVERT(HP!E$76,\"ft\",\"m\")^WFT.P.DP*CONVERT(($Q$135),\"in\",\"mm\")^WFT.P.Int*(HP!E$72/100)^WFT.P.Slope,\"mm\",\"in\")-HP!$E$81)*HP!$G$19,\"\")","v":""},{"$f":"IF(AND(HP!F$72<>\"\",HP!F$39<>\"\"),(CONVERT(WFT.P.Const*F108^WFT.P.Manni*CONVERT(HP!F$76,\"ft\",\"m\")^WFT.P.DP*CONVERT(($Q$135),\"in\",\"mm\")^WFT.P.Int*(HP!F$72/100)^WFT.P.Slope,\"mm\",\"in\")-HP!$E$81)*HP!$G$19,\"\")","v":""},{"$f":"IF(AND(HP!G$72<>\"\",HP!G$39<>\"\"),(CONVERT(WFT.P.Const*G108^WFT.P.Manni*CONVERT(HP!G$76,\"ft\",\"m\")^WFT.P.DP*CONVERT(($Q$135),\"in\",\"mm\")^WFT.P.Int*(HP!G$72/100)^WFT.P.Slope,\"mm\",\"in\")-HP!$E$81)*HP!$G$19,\"\")","v":""},{"$f":"IF(AND(HP!H$72<>\"\",HP!H$39<>\"\"),(CONVERT(WFT.P.Const*H108^WFT.P.Manni*CONVERT(HP!H$76,\"ft\",\"m\")^WFT.P.DP*CONVERT(($Q$135),\"in\",\"mm\")^WFT.P.Int*(HP!H$72/100)^WFT.P.Slope,\"mm\",\"in\")-HP!$E$81)*HP!$G$19,\"\")","v":""},{"$f":"IF(AND(HP!I$72<>\"\",HP!I$39<>\"\"),(CONVERT(WFT.P.Const*I108^WFT.P.Manni*CONVERT(HP!I$76,\"ft\",\"m\")^WFT.P.DP*CONVERT(($Q$135),\"in\",\"mm\")^WFT.P.Int*(HP!I$72/100)^WFT.P.Slope,\"mm\",\"in\")-HP!$E$81)*HP!$G$19,\"\")","v":""},{"$f":"IF(AND(HP!J$72<>\"\",HP!J$39<>\"\"),(CONVERT(WFT.P.Const*J108^WFT.P.Manni*CONVERT(HP!J$76,\"ft\",\"m\")^WFT.P.DP*CONVERT(($Q$135),\"in\",\"mm\")^WFT.P.Int*(HP!J$72/100)^WFT.P.Slope,\"mm\",\"in\")-HP!$E$81)*HP!$G$19,\"\")","v":""},{"$f":"IF(AND(HP!K$72<>\"\",HP!K$39<>\"\"),(CONVERT(WFT.P.Const*K108^WFT.P.Manni*CONVERT(HP!K$76,\"ft\",\"m\")^WFT.P.DP*CONVERT(($Q$135),\"in\",\"mm\")^WFT.P.Int*(HP!K$72/100)^WFT.P.Slope,\"mm\",\"in\")-HP!$E$81)*HP!$G$19,\"\")","v":""},{"$f":"IF(AND(HP!L$72<>\"\",HP!L$39<>\"\"),(CONVERT(WFT.P.Const*L108^WFT.P.Manni*CONVERT(HP!L$76,\"ft\",\"m\")^WFT.P.DP*CONVERT(($Q$135),\"in\",\"mm\")^WFT.P.Int*(HP!L$72/100)^WFT.P.Slope,\"mm\",\"in\")-HP!$E$81)*HP!$G$19,\"\")","v":""},{"$f":"IF(AND(HP!M$72<>\"\",HP!M$39<>\"\"),(CONVERT(WFT.P.Const*M108^WFT.P.Manni*CONVERT(HP!M$76,\"ft\",\"m\")^WFT.P.DP*CONVERT(($Q$135),\"in\",\"mm\")^WFT.P.Int*(HP!M$72/100)^WFT.P.Slope,\"mm\",\"in\")-HP!$E$81)*HP!$G$19,\"\")","v":""},{"$f":"IF(AND(HP!N$72<>\"\",HP!N$39<>\"\"),(CONVERT(WFT.P.Const*N108^WFT.P.Manni*CONVERT(HP!N$76,\"ft\",\"m\")^WFT.P.DP*CONVERT(($Q$135),\"in\",\"mm\")^WFT.P.Int*(HP!N$72/100)^WFT.P.Slope,\"mm\",\"in\")-HP!$E$81)*HP!$G$19,\"\")","v":""},{"$f":"IF(AND(HP!O$72<>\"\",HP!O$39<>\"\"),(CONVERT(WFT.P.Const*O108^WFT.P.Manni*CONVERT(HP!O$76,\"ft\",\"m\")^WFT.P.DP*CONVERT(($Q$135),\"in\",\"mm\")^WFT.P.Int*(HP!O$72/100)^WFT.P.Slope,\"mm\",\"in\")-HP!$E$81)*HP!$G$19,\"\")","v":""}]
[4,{"$f":"IF(AND(HP!D$72<>\"\",HP!D$39<>\"\"),(CONVERT(WFT.U.Const*CONVERT(HP!D$76,\"ft\",\"m\")^WFT.U.DP*CONVERT(($A$136),\"in\",\"mm\")^WFT.U.Int*(HP!D$72/100)^WFT.U.Slope,\"mm\",\"in\")-HP!$E$81)*HP!$G$19,\"\")","v":""},{"$f":"IF(AND(HP!E$72<>\"\",HP!E$39<>\"\"),(CONVERT(WFT.U.Const*CONVERT(HP!E$76,\"ft\",\"m\")^WFT.U.DP*CONVERT(($A$136),\"in\",\"mm\")^WFT.U.Int*(HP!E$72/100)^WFT.U.Slope,\"mm\",\"in\")-HP!$E$81)*HP!$G$19,\"\")","v":""},{"$f":"IF(AND(HP!F$72<>\"\",HP!F$39<>\"\"),(CONVERT(WFT.U.Const*CONVERT(HP!F$76,\"ft\",\"m\")^WFT.U.DP*CONVERT(($A$136),\"in\",\"mm\")^WFT.U.Int*(HP!F$72/100)^WFT.U.Slope,\"mm\",\"in\")-HP!$E$81)*HP!$G$19,\"\")","v":""},{"$f":"IF(AND(HP!G$72<>\"\",HP!G$39<>\"\"),(CONVERT(WFT.U.Const*CONVERT(HP!G$76,\"ft\",\"m\")^WFT.U.DP*CONVERT(($A$136),\"in\",\"mm\")^WFT.U.Int*(HP!G$72/100)^WFT.U.Slope,\"mm\",\"in\")-HP!$E$81)*HP!$G$19,\"\")","v":""},{"$f":"IF(AND(HP!H$72<>\"\",HP!H$39<>\"\"),(CONVERT(WFT.U.Const*CONVERT(HP!H$76,\"ft\",\"m\")^WFT.U.DP*CONVERT(($A$136),\"in\",\"mm\")^WFT.U.Int*(HP!H$72/100)^WFT.U.Slope,\"mm\",\"in\")-HP!$E$81)*HP!$G$19,\"\")","v":""},{"$f":"IF(AND(HP!I$72<>\"\",HP!I$39<>\"\"),(CONVERT(WFT.U.Const*CONVERT(HP!I$76,\"ft\",\"m\")^WFT.U.DP*CONVERT(($A$136),\"in\",\"mm\")^WFT.U.Int*(HP!I$72/100)^WFT.U.Slope,\"mm\",\"in\")-HP!$E$81)*HP!$G$19,\"\")","v":""},{"$f":"IF(AND(HP!J$72<>\"\",HP!J$39<>\"\"),(CONVERT(WFT.U.Const*CONVERT(HP!J$76,\"ft\",\"m\")^WFT.U.DP*CONVERT(($A$136),\"in\",\"mm\")^WFT.U.Int*(HP!J$72/100)^WFT.U.Slope,\"mm\",\"in\")-HP!$E$81)*HP!$G$19,\"\")","v":""},{"$f":"IF(AND(HP!K$72<>\"\",HP!K$39<>\"\"),(CONVERT(WFT.U.Const*CONVERT(HP!K$76,\"ft\",\"m\")^WFT.U.DP*CONVERT(($A$136),\"in\",\"mm\")^WFT.U.Int*(HP!K$72/100)^WFT.U.Slope,\"mm\",\"in\")-HP!$E$81)*HP!$G$19,\"\")","v":""},{"$f":"IF(AND(HP!L$72<>\"\",HP!L$39<>\"\"),(CONVERT(WFT.U.Const*CONVERT(HP!L$76,\"ft\",\"m\")^WFT.U.DP*CONVERT(($A$136),\"in\",\"mm\")^WFT.U.Int*(HP!L$72/100)^WFT.U.Slope,\"mm\",\"in\")-HP!$E$81)*HP!$G$19,\"\")","v":""},{"$f":"IF(AND(HP!M$72<>\"\",HP!M$39<>\"\"),(CONVERT(WFT.U.Const*CONVERT(HP!M$76,\"ft\",\"m\")^WFT.U.DP*CONVERT(($A$136),\"in\",\"mm\")^WFT.U.Int*(HP!M$72/100)^WFT.U.Slope,\"mm\",\"in\")-HP!$E$81)*HP!$G$19,\"\")","v":""},{"$f":"IF(AND(HP!N$72<>\"\",HP!N$39<>\"\"),(CONVERT(WFT.U.Const*CONVERT(HP!N$76,\"ft\",\"m\")^WFT.U.DP*CONVERT(($A$136),\"in\",\"mm\")^WFT.U.Int*(HP!N$72/100)^WFT.U.Slope,\"mm\",\"in\")-HP!$E$81)*HP!$G$19,\"\")","v":""},{"$f":"IF(AND(HP!O$72<>\"\",HP!O$39<>\"\"),(CONVERT(WFT.U.Const*CONVERT(HP!O$76,\"ft\",\"m\")^WFT.U.DP*CONVERT(($A$136),\"in\",\"mm\")^WFT.U.Int*(HP!O$72/100)^WFT.U.Slope,\"mm\",\"in\")-HP!$E$81)*HP!$G$19,\"\")","v":""},null,null,null,4,{"$f":"IF(AND(HP!D$72<>\"\",HP!D$39<>\"\"),(CONVERT(WFT.P.Const*D110^WFT.P.Manni*CONVERT(HP!D$76,\"ft\",\"m\")^WFT.P.DP*CONVERT(($Q$136),\"in\",\"mm\")^WFT.P.Int*(HP!D$72/100)^WFT.P.Slope,\"mm\",\"in\")-HP!$E$81)*HP!$G$19,\"\")","v":""},{"$f":"IF(AND(HP!E$72<>\"\",HP!E$39<>\"\"),(CONVERT(WFT.P.Const*E110^WFT.P.Manni*CONVERT(HP!E$76,\"ft\",\"m\")^WFT.P.DP*CONVERT(($Q$136),\"in\",\"mm\")^WFT.P.Int*(HP!E$72/100)^WFT.P.Slope,\"mm\",\"in\")-HP!$E$81)*HP!$G$19,\"\")","v":""},{"$f":"IF(AND(HP!F$72<>\"\",HP!F$39<>\"\"),(CONVERT(WFT.P.Const*F110^WFT.P.Manni*CONVERT(HP!F$76,\"ft\",\"m\")^WFT.P.DP*CONVERT(($Q$136),\"in\",\"mm\")^WFT.P.Int*(HP!F$72/100)^WFT.P.Slope,\"mm\",\"in\")-HP!$E$81)*HP!$G$19,\"\")","v":""},{"$f":"IF(AND(HP!G$72<>\"\",HP!G$39<>\"\"),(CONVERT(WFT.P.Const*G110^WFT.P.Manni*CONVERT(HP!G$76,\"ft\",\"m\")^WFT.P.DP*CONVERT(($Q$136),\"in\",\"mm\")^WFT.P.Int*(HP!G$72/100)^WFT.P.Slope,\"mm\",\"in\")-HP!$E$81)*HP!$G$19,\"\")","v":""},{"$f":"IF(AND(HP!H$72<>\"\",HP!H$39<>\"\"),(CONVERT(WFT.P.Const*H110^WFT.P.Manni*CONVERT(HP!H$76,\"ft\",\"m\")^WFT.P.DP*CONVERT(($Q$136),\"in\",\"mm\")^WFT.P.Int*(HP!H$72/100)^WFT.P.Slope,\"mm\",\"in\")-HP!$E$81)*HP!$G$19,\"\")","v":""},{"$f":"IF(AND(HP!I$72<>\"\",HP!I$39<>\"\"),(CONVERT(WFT.P.Const*I110^WFT.P.Manni*CONVERT(HP!I$76,\"ft\",\"m\")^WFT.P.DP*CONVERT(($Q$136),\"in\",\"mm\")^WFT.P.Int*(HP!I$72/100)^WFT.P.Slope,\"mm\",\"in\")-HP!$E$81)*HP!$G$19,\"\")","v":""},{"$f":"IF(AND(HP!J$72<>\"\",HP!J$39<>\"\"),(CONVERT(WFT.P.Const*J110^WFT.P.Manni*CONVERT(HP!J$76,\"ft\",\"m\")^WFT.P.DP*CONVERT(($Q$136),\"in\",\"mm\")^WFT.P.Int*(HP!J$72/100)^WFT.P.Slope,\"mm\",\"in\")-HP!$E$81)*HP!$G$19,\"\")","v":""},{"$f":"IF(AND(HP!K$72<>\"\",HP!K$39<>\"\"),(CONVERT(WFT.P.Const*K110^WFT.P.Manni*CONVERT(HP!K$76,\"ft\",\"m\")^WFT.P.DP*CONVERT(($Q$136),\"in\",\"mm\")^WFT.P.Int*(HP!K$72/100)^WFT.P.Slope,\"mm\",\"in\")-HP!$E$81)*HP!$G$19,\"\")","v":""},{"$f":"IF(AND(HP!L$72<>\"\",HP!L$39<>\"\"),(CONVERT(WFT.P.Const*L110^WFT.P.Manni*CONVERT(HP!L$76,\"ft\",\"m\")^WFT.P.DP*CONVERT(($Q$136),\"in\",\"mm\")^WFT.P.Int*(HP!L$72/100)^WFT.P.Slope,\"mm\",\"in\")-HP!$E$81)*HP!$G$19,\"\")","v":""},{"$f":"IF(AND(HP!M$72<>\"\",HP!M$39<>\"\"),(CONVERT(WFT.P.Const*M110^WFT.P.Manni*CONVERT(HP!M$76,\"ft\",\"m\")^WFT.P.DP*CONVERT(($Q$136),\"in\",\"mm\")^WFT.P.Int*(HP!M$72/100)^WFT.P.Slope,\"mm\",\"in\")-HP!$E$81)*HP!$G$19,\"\")","v":""},{"$f":"IF(AND(HP!N$72<>\"\",HP!N$39<>\"\"),(CONVERT(WFT.P.Const*N110^WFT.P.Manni*CONVERT(HP!N$76,\"ft\",\"m\")^WFT.P.DP*CONVERT(($Q$136),\"in\",\"mm\")^WFT.P.Int*(HP!N$72/100)^WFT.P.Slope,\"mm\",\"in\")-HP!$E$81)*HP!$G$19,\"\")","v":""},{"$f":"IF(AND(HP!O$72<>\"\",HP!O$39<>\"\"),(CONVERT(WFT.P.Const*O110^WFT.P.Manni*CONVERT(HP!O$76,\"ft\",\"m\")^WFT.P.DP*CONVERT(($Q$136),\"in\",\"mm\")^WFT.P.Int*(HP!O$72/100)^WFT.P.Slope,\"mm\",\"in\")-HP!$E$81)*HP!$G$19,\"\")","v":""}]
[]
[]
[]
[]
["Speed Difference (mph)","Predicted Hydroplaning Speed (mph","Lane","Design Speed","Cross Slope","Lane Width","Total Width","WFT Avg (in)","Predicted Driver Speed (mph)","Pavement Type","Intensity"]
[{"$f":"IFERROR(IF(B142=\"\",-999,D251),\"\")","v":-999},{"$f":"D255","v":""},{"$f":"D38","v":0},{"$f":"D39","v":0},{"$f":"D40","v":0},{"$f":"D41","v":0},{"$f":"IF(D41<>\"\",F142,\"\")","v":""},{"$f":"D253","v":""},{"$f":"D254","v":""},null,{"$f":"D252","v":""}]
[{"$f":"IFERROR(IF(B143=\"\",-999,F251),\"\")","v":-999},{"$f":"F255","v":""},{"$f":"E38","v":0},{"$f":"E39","v":0},{"$f":"E40","v":0},{"$f":"E41","v":0},{"$f":"IF(E41<>\"\",IF(E142*E143>0,G142+F143,F143),\"\")","v":""},{"$f":"F253","v":""},{"$f":"F254","v":""},null,{"$f":"F252","v":""}]
[{"$f":"IFERROR(IF(B144=\"\",-999,H251),\"\")","v":-999},{"$f":"H255","v":""},{"$f":"F38","v":0},{"$f":"F39","v":0},{"$f":"F40","v":0},{"$f":"F41","v":0},{"$f":"IF(F41<>\"\",IF(E143*E144>0,G143+F144,F144),\"\")","v":""},{"$f":"H253","v":""},{"$f":"H254","v":""},null,{"$f":"H252","v":""}]
[{"$f":"IFERROR(IF(B145=\"\",-999,J251),\"\")","v":-999},{"$f":"J255","v":""},{"$f":"G38","v":0},{"$f":"G39","v":0},{"$f":"G40","v":0},{"$f":"G41","v":0},{"$f":"IF(G41<>\"\",IF(E144*E145>0,G144+F145,F145),\"\")","v":""},{"$f":"J253","v":""},{"$f":"J254","v":""},null,{"$f":"J252","v":""}]
[{"$f":"IFERROR(IF(B146=\"\",-999,L251),\"\")","v":-999},{"$f":"L255","v":""},{"$f":"H38","v":0},{"$f":"H39","v":0},{"$f":"H40","v":0},{"$f":"H41","v":0},{"$f":"IF(H41<>\"\",IF(E145*E146>0,G145+F146,F146),\"\")","v":""},{"$f":"L253","v":""},{"$f":"L254","v":""},null,{"$f":"L252","v":""}]
[{"$f":"IFERROR(IF(B147=\"\",-999,N251),\"\")","v":-999},{"$f":"N255","v":""},{"$f":"I38","v":0},{"$f":"I39","v":0},{"$f":"I40","v":0},{"$f":"I41","v":0},{"$f":"IF(I41<>\"\",IF(E146*E147>0,G146+F147,F147),\"\")","v":""},{"$f":"N253","v":""},{"$f":"N254","v":""},null,{"$f":"N252","v":""}]
[{"$f":"IFERROR(IF(B148=\"\",-999,P251),\"\")","v":-999},{"$f":"P255","v":""},{"$f":"J38","v":0},{"$f":"J39","v":0},{"$f":"J40","v":0},{"$f":"J41","v":0},{"$f":"IF(J41<>\"\",IF(E147*E148>0,G147+F148,F148),\"\")","v":""},{"$f":"P253","v":""},{"$f":"P254","v":""},null,{"$f":"P252","v":""}]
[{"$f":"IFERROR(IF(B149=\"\",-999,R251),\"\")","v":-999},{"$f":"R255","v":""},{"$f":"K38","v":0},{"$f":"K39","v":0},{"$f":"K40","v":0},{"$f":"K41","v":0},{"$f":"IF(K41<>\"\",IF(E148*E149>0,G148+F149,F149),\"\")","v":""},{"$f":"R253","v":""},{"$f":"R254","v":""},null,{"$f":"R252","v":""}]
[{"$f":"IFERROR(IF(B150=\"\",-999,T251),\"\")","v":-999},{"$f":"T255","v":""},{"$f":"L38","v":0},{"$f":"L39","v":0},{"$f":"L40","v":0},{"$f":"L41","v":0},{"$f":"IF(L41<>\"\",IF(E149*E150>0,G149+F150,F150),\"\")","v":""},{"$f":"T253","v":""},{"$f":"T254","v":""},null,{"$f":"T252","v":""}]
[{"$f":"IFERROR(IF(B151=\"\",-999,V251),\"\")","v":-999},{"$f":"V255","v":""},{"$f":"M38","v":0},{"$f":"M39","v":0},{"$f":"M40","v":0},{"$f":"M41","v":0},{"$f":"IF(L41<>\"\",IF(E150*E151>0,G150+F151,F151),\"\")","v":""},{"$f":"V253","v":""},{"$f":"V254","v":""},null,{"$f":"V252","v":""}]
[{"$f":"IFERROR(IF(B152=\"\",-999,X251),\"\")","v":-999},{"$f":"X255","v":""},{"$f":"N38","v":0},{"$f":"N39","v":0},{"$f":"N40","v":0},{"$f":"N41","v":0},{"$f":"IF(M41<>\"\",IF(E151*E152>0,G151+F152,F152),\"\")","v":""},{"$f":"X253","v":""},{"$f":"X254","v":""},null,{"$f":"X252","v":""}]
[{"$f":"IFERROR(IF(B153=\"\",-999,Z251),\"\")","v":-999},{"$f":"Z255","v":""},{"$f":"O38","v":0},{"$f":"O39","v":0},{"$f":"O40","v":0},{"$f":"O41","v":0},{"$f":"IF(N41<>\"\",IF(E152*E153>0,G152+F153,F153),\"\")","v":""},{"$f":"Z253","v":""},{"$f":"Z254","v":""},null,{"$f":"Z252","v":""}]
[]
[]
[]
[]
[]
[]
[]
[null,"Preliminary",3,4,5,6,7,8,9,10,11,12,13,14,15,16,17,18,19,20,21]
[null,"Typical Section","Analysis Type","Align","Sta.","Direction","Lane","Design Speed (mph)","Rainfall Intensity \n(I, in./hr)","Long.Slope\n(%)","Cross Slope \n(ft/ft)","Pavement Width \n(ft.)","Pavement Surf. Mat. (DGAC, OGFC, or PCC)"," Hydroplaning Avg WFT  (mm)"," Hydroplaning Avg WFT    (in)"," PAVDRN Hydroplaning Speed Using Avg WFT (mph)","PAVDRN Hydroplaning Speed Adjusted for Modern Tires (+5mph)","Predicted\nDriver\nSpeed (mph)","Speed delta (max)","Pavement Notes","Design Notes"]
[null,{"$f":"Area.Concern","v":0},{"$f":"AnalysisType","v":0},{"$f":"Roadway.Section","v":0},{"$f":"Station","v":0},{"$f":"Roadway.Direction","v":0},{"$f":"IFERROR(VLOOKUP($Q$163,$B$142:$K$153,2,FALSE),\"\")","v":0},{"$f":"IFERROR(VLOOKUP($Q$163,$B$142:$K$153,3,FALSE),\"\")","v":0},{"$f":"IFERROR(VLOOKUP($Q$163,$B$142:$K$153,10,FALSE),\"\")","v":""},{"$f":"$E$31","v":0},{"$f":"IFERROR(VLOOKUP($Q$163,$B$142:$K$153,4,FALSE),\"\")","v":0},{"$f":"IFERROR(VLOOKUP($Q$163,$B$142:$K$153,6,FALSE),\"\")","v":""},{"$f":"IF(OR(Deterministic.Surf.Type=\"Dense Graded Asphalt (DGAC)\",Deterministic.Surf.Type=\"User Defined Dense Graded Asphalt (DGAC)\"),\"DGAC\",IF(OR(Deterministic.Surf.Type=\"Open Graded Friction Course (OGFC)\",Deterministic.Surf.Type=\"User Defined Open Graded Friction Course (OGFC)\"),\"OGFC\",IF(OR(Deterministic.Surf.Type=\"Concrete Pavement (PCC)\",Deterministic.Surf.Type=\"User Defined Concrete Pavement (PCC)\"),\"PCC\",IF(Deterministic.Surf.Type=\"Ultra-Thin Bonded Wearing Course\",\"UTBWC\", IF(Deterministic.Surf.Type=\"User-Defined\",\"User-Defined\",\"\")))))","v":""},{"$f":"IF(AND(AnalysisType=\"Superelevation Transition\",No.Lanes=\"\"),\"\",IF(LongGrade=\"\",\"\",IF(Deterministic.Surf.Type=\"\",\"\",IF(Deterministic.Texture=\"\",\"\",$O$163*25.4))))","v":""},{"$f":"IF(LongGrade=\"\",\"\",IF(Deterministic.Surf.Type=\"\",\"\",IF(Deterministic.Texture=\"\",\"\",VLOOKUP($Q$163,$B$142:$J$153,7,FALSE))))","v":""},{"$f":"IF(AND(AnalysisType=\"Superelevation Transition\",No.Lanes=\"\"),\"\",IF(LongGrade=\"\",\"\",IF(Deterministic.Surf.Type=\"\",\"\",IF(Deterministic.Texture=\"\",\"\",$Q$163-5))))","v":""},{"$f":"IFERROR(VLOOKUP($S$163,$A$142:$J$153,2,FALSE),\"\")","v":""},{"$f":"IFERROR((VLOOKUP($Q$163,$B$142:$K$153,8,FALSE)),\"\")","v":""},{"$f":"IFERROR(MAX(A142:A153),\"\")","v":-999},{"$f":"IF(Deterministic.Surf.Type=\"User-Defined\",User.Defined.Name,\"\")","v":""},{"$f":"IF(D21=\"\",\"\",D21)","v":""}]
[]
[]
[null,"Final",null,null,null,null,null,null,null,null,null,null,null,null,null,null,null,null,null,20,21]
[null,"Areas of Concern","Analysis Type","Alignment","Sta.","Direction","Lane","Posted Speed (mph)","Rainfall Intensity \n(I, in./hr)","Long.Slope\n(%)","Cross Slope \n(ft/ft)","Pavement Width \n(ft.)","Pavement Surf. Mat. (DGAC, OGFC, or PCC)"," Hydroplaning Avg WFT  (mm)"," Hydroplaning Avg WFT    (in)"," PAVDRN Hydroplaning Speed Using Avg WFT (mph)","PAVDRN Hydroplaning Speed Adjusted for Modern Tires (+5mph)","Predicted\nDriver\nSpeed (mph)","Speed delta (max)","Pavement Notes","Design Notes"]
[null,{"$f":"Area.Concern","v":0},{"$f":"AnalysisType","v":0},{"$f":"Roadway.Section","v":0},{"$f":"Station","v":0},{"$f":"Roadway.Direction","v":0},{"$f":"IFERROR(VLOOKUP($Q$168,$B$142:$I$153,2,FALSE),\"\")","v":0},{"$f":"IFERROR(VLOOKUP($Q$168,$B$142:$I$153,3,FALSE),\"\")","v":0},{"$f":"IFERROR(VLOOKUP($Q$168,$B$142:$K$153,10,FALSE),\"\")","v":""},{"$f":"$E$31","v":0},{"$f":"IFERROR(VLOOKUP($Q$168,$B$142:$I$153,4,FALSE),\"\")","v":0},{"$f":"IFERROR(VLOOKUP($Q$168,$B$142:$I$153,6,FALSE),\"\")","v":""},{"$f":"IF(OR(Deterministic.Surf.Type=\"Dense Graded Asphalt (DGAC)\",Deterministic.Surf.Type=\"User Defined Dense Graded Asphalt (DGAC)\"),\"DGAC\",IF(OR(Deterministic.Surf.Type=\"Open Graded Friction Course (OGFC)\",Deterministic.Surf.Type=\"User Defined Open Graded Friction Course (OGFC)\"),\"OGFC\",IF(OR(Deterministic.Surf.Type=\"Concrete Pavement (PCC)\",Deterministic.Surf.Type=\"User Defined Concrete Pavement (PCC)\"),\"PCC\",IF(Deterministic.Surf.Type=\"Ultra-Thin Bonded Wearing Course\",\"UTBWC\",IF(Deterministic.Surf.Type=\"User-Defined\",\"User-Defined\",\"\")))))","v":""},{"$f":"IF(AND(AnalysisType=\"Superelevation Transition\",No.Lanes=\"\"),\"\",IF(LongGrade=\"\",\"\",IF(Deterministic.Surf.Type=\"\",\"\",IF(Deterministic.Texture=\"\",\"\",$O$168*25.4))))","v":""},{"$f":"IF(LongGrade=\"\",\"\",IF(Deterministic.Surf.Type=\"\",\"\",IF(Deterministic.Texture=\"\",\"\",VLOOKUP($Q$163,$B$142:$J$153,7,FALSE))))","v":""},{"$f":"IF(AND(AnalysisType=\"Superelevation Transition\",No.Lanes=\"\"),\"\",IF(LongGrade=\"\",\"\",IF(Deterministic.Surf.Type=\"\",\"\",IF(Deterministic.Texture=\"\",\"\",$Q$168-5))))","v":""},{"$f":"IFERROR(VLOOKUP($S$168,$A$142:$J$153,2,FALSE),\"\")","v":""},{"$f":"IFERROR((VLOOKUP($Q$168,$B$142:$I$153,8,FALSE)),\"\")","v":""},{"$f":"IFERROR(MAX($A$142:$A$153),\"\")","v":-999},{"$f":"IF(Deterministic.Surf.Type=\"User-Defined\",User.Defined.Name,\"\")","v":""},{"$f":"IF(D21=\"\",\"\",D21)","v":""}]
[]
[]
[]
[null,"Risk Analysis Results "]
[null,"Based on AVERAGE WFT, PAVDRN HPS Model, and a worst-case scenario rainfall intensity (in/hr)"]
[]
[null,"Description",null,{"$f":"IF(D38=\"\",\"\",D38)","v":""},"","","","","","","","","","",""]
[null,"Rainfall Intensity (in/hr)",null,{"$f":"IF(AND(AnalysisType=\"Superelevation Transition\",No.Lanes=\"\"),\"\",IF(LongGrade=\"\",\"\",IF(Deterministic.Surf.Type=\"\",\"\",IF(AND(Deterministic.Texture=\"\",User.Defined.Texture=\"\"),\"\",IF(D205=\"\",\"\",D252)))))","v":""},{"$f":"IF(AND(AnalysisType=\"Superelevation Transition\",No.Lanes=\"\"),\"\",IF(LongGrade=\"\",\"\",IF(Deterministic.Surf.Type=\"\",\"\",IF(AND(Deterministic.Texture=\"\",User.Defined.Texture=\"\"),\"\",IF(E205=\"\",\"\",F252)))))","v":""},{"$f":"IF(AND(AnalysisType=\"Superelevation Transition\",No.Lanes=\"\"),\"\",IF(LongGrade=\"\",\"\",IF(Deterministic.Surf.Type=\"\",\"\",IF(AND(Deterministic.Texture=\"\",User.Defined.Texture=\"\"),\"\",IF(F205=\"\",\"\",H252)))))","v":""},{"$f":"IF(AND(AnalysisType=\"Superelevation Transition\",No.Lanes=\"\"),\"\",IF(LongGrade=\"\",\"\",IF(Deterministic.Surf.Type=\"\",\"\",IF(AND(Deterministic.Texture=\"\",User.Defined.Texture=\"\"),\"\",IF(G205=\"\",\"\",J252)))))","v":""},{"$f":"IF(AND(AnalysisType=\"Superelevation Transition\",No.Lanes=\"\"),\"\",IF(LongGrade=\"\",\"\",IF(Deterministic.Surf.Type=\"\",\"\",IF(AND(Deterministic.Texture=\"\",User.Defined.Texture=\"\"),\"\",IF(H205=\"\",\"\",L252)))))","v":""},{"$f":"IF(AND(AnalysisType=\"Superelevation Transition\",No.Lanes=\"\"),\"\",IF(LongGrade=\"\",\"\",IF(Deterministic.Surf.Type=\"\",\"\",IF(AND(Deterministic.Texture=\"\",User.Defined.Texture=\"\"),\"\",IF(I205=\"\",\"\",N252)))))","v":""},{"$f":"IF(AND(AnalysisType=\"Superelevation Transition\",No.Lanes=\"\"),\"\",IF(LongGrade=\"\",\"\",IF(Deterministic.Surf.Type=\"\",\"\",IF(AND(Deterministic.Texture=\"\",User.Defined.Texture=\"\"),\"\",IF(J205=\"\",\"\",P252)))))","v":""},{"$f":"IF(AND(AnalysisType=\"Superelevation Transition\",No.Lanes=\"\"),\"\",IF(LongGrade=\"\",\"\",IF(Deterministic.Surf.Type=\"\",\"\",IF(AND(Deterministic.Texture=\"\",User.Defined.Texture=\"\"),\"\",IF(K205=\"\",\"\",R252)))))","v":""},{"$f":"IF(AND(AnalysisType=\"Superelevation Transition\",No.Lanes=\"\"),\"\",IF(LongGrade=\"\",\"\",IF(Deterministic.Surf.Type=\"\",\"\",IF(AND(Deterministic.Texture=\"\",User.Defined.Texture=\"\"),\"\",IF(L205=\"\",\"\",T252)))))","v":""},{"$f":"IF(AND(AnalysisType=\"Superelevation Transition\",No.Lanes=\"\"),\"\",IF(LongGrade=\"\",\"\",IF(Deterministic.Surf.Type=\"\",\"\",IF(AND(Deterministic.Texture=\"\",User.Defined.Texture=\"\"),\"\",IF(M205=\"\",\"\",V252)))))","v":""},{"$f":"IF(AND(AnalysisType=\"Superelevation Transition\",No.Lanes=\"\"),\"\",IF(LongGrade=\"\",\"\",IF(Deterministic.Surf.Type=\"\",\"\",IF(AND(Deterministic.Texture=\"\",User.Defined.Texture=\"\"),\"\",IF(N205=\"\",\"\",X252)))))","v":""},{"$f":"IF(AND(AnalysisType=\"Superelevation Transition\",No.Lanes=\"\"),\"\",IF(LongGrade=\"\",\"\",IF(Deterministic.Surf.Type=\"\",\"\",IF(AND(Deterministic.Texture=\"\",User.Defined.Texture=\"\"),\"\",IF(O205=\"\",\"\",Z252)))))","v":""}]
[null,"Water Film Thickness (in)",null,{"$f":"IF(AND(AnalysisType=\"Superelevation Transition\",No.Lanes=\"\"),\"\",IF(LongGrade=\"\",\"\",IF(Deterministic.Surf.Type=\"\",\"\",IF(AND(Deterministic.Texture=\"\",User.Defined.Texture=\"\"),\"\",IF(D205=\"\",\"\",IF(D253<0,0,D253))))))","v":""},{"$f":"IF(AND(AnalysisType=\"Superelevation Transition\",No.Lanes=\"\"),\"\",IF(LongGrade=\"\",\"\",IF(Deterministic.Surf.Type=\"\",\"\",IF(AND(Deterministic.Texture=\"\",User.Defined.Texture=\"\"),\"\",IF(E205=\"\",\"\",IF(F253<0,0,F253))))))","v":""},{"$f":"IF(AND(AnalysisType=\"Superelevation Transition\",No.Lanes=\"\"),\"\",IF(LongGrade=\"\",\"\",IF(Deterministic.Surf.Type=\"\",\"\",IF(AND(Deterministic.Texture=\"\",User.Defined.Texture=\"\"),\"\",IF(F205=\"\",\"\",IF(H253<0,0,H253))))))","v":""},{"$f":"IF(AND(AnalysisType=\"Superelevation Transition\",No.Lanes=\"\"),\"\",IF(LongGrade=\"\",\"\",IF(Deterministic.Surf.Type=\"\",\"\",IF(AND(Deterministic.Texture=\"\",User.Defined.Texture=\"\"),\"\",IF(G205=\"\",\"\",IF(J253<0,0,J253))))))","v":""},{"$f":"IF(AND(AnalysisType=\"Superelevation Transition\",No.Lanes=\"\"),\"\",IF(LongGrade=\"\",\"\",IF(Deterministic.Surf.Type=\"\",\"\",IF(AND(Deterministic.Texture=\"\",User.Defined.Texture=\"\"),\"\",IF(H205=\"\",\"\",IF(L253<0,0,L253))))))","v":""},{"$f":"IF(AND(AnalysisType=\"Superelevation Transition\",No.Lanes=\"\"),\"\",IF(LongGrade=\"\",\"\",IF(Deterministic.Surf.Type=\"\",\"\",IF(AND(Deterministic.Texture=\"\",User.Defined.Texture=\"\"),\"\",IF(I205=\"\",\"\",IF(N253<0,0,N253))))))","v":""},{"$f":"IF(AND(AnalysisType=\"Superelevation Transition\",No.Lanes=\"\"),\"\",IF(LongGrade=\"\",\"\",IF(Deterministic.Surf.Type=\"\",\"\",IF(AND(Deterministic.Texture=\"\",User.Defined.Texture=\"\"),\"\",IF(J205=\"\",\"\",IF(P253<0,0,P253))))))","v":""},{"$f":"IF(AND(AnalysisType=\"Superelevation Transition\",No.Lanes=\"\"),\"\",IF(LongGrade=\"\",\"\",IF(Deterministic.Surf.Type=\"\",\"\",IF(AND(Deterministic.Texture=\"\",User.Defined.Texture=\"\"),\"\",IF(K205=\"\",\"\",IF(R253<0,0,R253))))))","v":""},{"$f":"IF(AND(AnalysisType=\"Superelevation Transition\",No.Lanes=\"\"),\"\",IF(LongGrade=\"\",\"\",IF(Deterministic.Surf.Type=\"\",\"\",IF(AND(Deterministic.Texture=\"\",User.Defined.Texture=\"\"),\"\",IF(L205=\"\",\"\",IF(T253<0,0,T253))))))","v":""},{"$f":"IF(AND(AnalysisType=\"Superelevation Transition\",No.Lanes=\"\"),\"\",IF(LongGrade=\"\",\"\",IF(Deterministic.Surf.Type=\"\",\"\",IF(AND(Deterministic.Texture=\"\",User.Defined.Texture=\"\"),\"\",IF(M205=\"\",\"\",IF(V253<0,0,V253))))))","v":""},{"$f":"IF(AND(AnalysisType=\"Superelevation Transition\",No.Lanes=\"\"),\"\",IF(LongGrade=\"\",\"\",IF(Deterministic.Surf.Type=\"\",\"\",IF(AND(Deterministic.Texture=\"\",User.Defined.Texture=\"\"),\"\",IF(N205=\"\",\"\",IF(X253<0,0,X253))))))","v":""},{"$f":"IF(AND(AnalysisType=\"Superelevation Transition\",No.Lanes=\"\"),\"\",IF(LongGrade=\"\",\"\",IF(Deterministic.Surf.Type=\"\",\"\",IF(AND(Deterministic.Texture=\"\",User.Defined.Texture=\"\"),\"\",IF(O205=\"\",\"\",IF(Z253<0,0,Z253))))))","v":""}]
[null,"Driver Speed (mph)",null,{"$f":"IF(LongGrade=\"\",\"\",IF(Deterministic.Surf.Type=\"\",\"\",IF(D216=\"\",\"\",IF(D253<0,\"NA\",D254))))","v":""},{"$f":"IF(LongGrade=\"\",\"\",IF(Deterministic.Surf.Type=\"\",\"\",IF(E216=\"\",\"\",IF(F253<0,\"NA\",F254))))","v":""},{"$f":"IF(LongGrade=\"\",\"\",IF(Deterministic.Surf.Type=\"\",\"\",IF(F216=\"\",\"\",IF(H253<0,\"NA\",H254))))","v":""},{"$f":"IF(LongGrade=\"\",\"\",IF(Deterministic.Surf.Type=\"\",\"\",IF(G216=\"\",\"\",IF(J253<0,\"NA\",J254))))","v":""},{"$f":"IF(LongGrade=\"\",\"\",IF(Deterministic.Surf.Type=\"\",\"\",IF(H216=\"\",\"\",IF(L253<0,\"NA\",L254))))","v":""},{"$f":"IF(LongGrade=\"\",\"\",IF(Deterministic.Surf.Type=\"\",\"\",IF(I216=\"\",\"\",IF(N253<0,\"NA\",N254))))","v":""},{"$f":"IF(LongGrade=\"\",\"\",IF(Deterministic.Surf.Type=\"\",\"\",IF(J216=\"\",\"\",IF(P253<0,\"NA\",P254))))","v":""},{"$f":"IF(LongGrade=\"\",\"\",IF(Deterministic.Surf.Type=\"\",\"\",IF(K216=\"\",\"\",IF(R253<0,\"NA\",R254))))","v":""},{"$f":"IF(LongGrade=\"\",\"\",IF(Deterministic.Surf.Type=\"\",\"\",IF(L216=\"\",\"\",IF(T253<0,\"NA\",T254))))","v":""},{"$f":"IF(LongGrade=\"\",\"\",IF(Deterministic.Surf.Type=\"\",\"\",IF(M216=\"\",\"\",IF(V253<0,\"NA\",V254))))","v":""},{"$f":"IF(LongGrade=\"\",\"\",IF(Deterministic.Surf.Type=\"\",\"\",IF(N216=\"\",\"\",IF(X253<0,\"NA\",X254))))","v":""},{"$f":"IF(LongGrade=\"\",\"\",IF(Deterministic.Surf.Type=\"\",\"\",IF(O216=\"\",\"\",IF(Z253<0,\"NA\",Z254))))","v":""}]
[null,"Hydroplaning Speed* (mph)",null,{"$f":"IF(AND(AnalysisType=\"Superelevation Transition\",No.Lanes=\"\"),\"\",IF(LongGrade=\"\",\"\",IF(Deterministic.Surf.Type=\"\",\"\",IF(AND(Deterministic.Texture=\"\",User.Defined.Texture=\"\"),\"\",IF(D228=\"\",\"\",IF(D255=999,\"NA\",D255))))))","v":""},{"$f":"IF(AND(AnalysisType=\"Superelevation Transition\",No.Lanes=\"\"),\"\",IF(LongGrade=\"\",\"\",IF(Deterministic.Surf.Type=\"\",\"\",IF(AND(Deterministic.Texture=\"\",User.Defined.Texture=\"\"),\"\",IF(E228=\"\",\"\",IF(F255=999,\"NA\",F255))))))","v":""},{"$f":"IF(AND(AnalysisType=\"Superelevation Transition\",No.Lanes=\"\"),\"\",IF(LongGrade=\"\",\"\",IF(Deterministic.Surf.Type=\"\",\"\",IF(AND(Deterministic.Texture=\"\",User.Defined.Texture=\"\"),\"\",IF(F228=\"\",\"\",IF(H255=999,\"NA\",H255))))))","v":""},{"$f":"IF(AND(AnalysisType=\"Superelevation Transition\",No.Lanes=\"\"),\"\",IF(LongGrade=\"\",\"\",IF(Deterministic.Surf.Type=\"\",\"\",IF(AND(Deterministic.Texture=\"\",User.Defined.Texture=\"\"),\"\",IF(G228=\"\",\"\",IF(J255=999,\"NA\",J255))))))","v":""},{"$f":"IF(AND(AnalysisType=\"Superelevation Transition\",No.Lanes=\"\"),\"\",IF(LongGrade=\"\",\"\",IF(Deterministic.Surf.Type=\"\",\"\",IF(AND(Deterministic.Texture=\"\",User.Defined.Texture=\"\"),\"\",IF(H228=\"\",\"\",IF(L255=999, \"NA\",L255))))))","v":""},{"$f":"IF(AND(AnalysisType=\"Superelevation Transition\",No.Lanes=\"\"),\"\",IF(LongGrade=\"\",\"\",IF(Deterministic.Surf.Type=\"\",\"\",IF(AND(Deterministic.Texture=\"\",User.Defined.Texture=\"\"),\"\",IF(I228=\"\",\"\",IF(N255=999,\"NA\",N255))))))","v":""},{"$f":"IF(AND(AnalysisType=\"Superelevation Transition\",No.Lanes=\"\"),\"\",IF(LongGrade=\"\",\"\",IF(Deterministic.Surf.Type=\"\",\"\",IF(AND(Deterministic.Texture=\"\",User.Defined.Texture=\"\"),\"\",IF(J228=\"\",\"\",IF(P255=999,\"NA\",P255))))))","v":""},{"$f":"IF(AND(AnalysisType=\"Superelevation Transition\",No.Lanes=\"\"),\"\",IF(LongGrade=\"\",\"\",IF(Deterministic.Surf.Type=\"\",\"\",IF(AND(Deterministic.Texture=\"\",User.Defined.Texture=\"\"),\"\",IF(K228=\"\",\"\",IF(R255=999,\"NA\",R255))))))","v":""},{"$f":"IF(AND(AnalysisType=\"Superelevation Transition\",No.Lanes=\"\"),\"\",IF(LongGrade=\"\",\"\",IF(Deterministic.Surf.Type=\"\",\"\",IF(AND(Deterministic.Texture=\"\",User.Defined.Texture=\"\"),\"\",IF(L228=\"\",\"\",IF(T255=999,\"NA\",T255))))))","v":""},{"$f":"IF(AND(AnalysisType=\"Superelevation Transition\",No.Lanes=\"\"),\"\",IF(LongGrade=\"\",\"\",IF(Deterministic.Surf.Type=\"\",\"\",IF(AND(Deterministic.Texture=\"\",User.Defined.Texture=\"\"),\"\",IF(M228=\"\",\"\",IF(V255=999,\"NA\",V255))))))","v":""},{"$f":"IF(AND(AnalysisType=\"Superelevation Transition\",No.Lanes=\"\"),\"\",IF(LongGrade=\"\",\"\",IF(Deterministic.Surf.Type=\"\",\"\",IF(AND(Deterministic.Texture=\"\",User.Defined.Texture=\"\"),\"\",IF(N228=\"\",\"\",IF(X255=999,\"NA\",X255))))))","v":""},{"$f":"IF(AND(AnalysisType=\"Superelevation Transition\",No.Lanes=\"\"),\"\",IF(LongGrade=\"\",\"\",IF(Deterministic.Surf.Type=\"\",\"\",IF(AND(Deterministic.Texture=\"\",User.Defined.Texture=\"\"),\"\",IF(O228=\"\",\"\",IF(Z255=999,\"NA\",Z255))))))","v":""}]
[null,"* The speed has been adjusted up +5 mph to account for Modern Tires."]
[]
[null,"Max WFT Condition within the SE Rollover"]
[null,"Rainfall Intensity (in/hr)",null,{"$f":"IF(AND(AnalysisType=\"Superelevation Transition\",No.Lanes=\"\"),\"\",IF(LongGrade=\"\",\"\",IF(Deterministic.Surf.Type=\"\",\"\",IF(AND(Deterministic.Texture=\"\",User.Defined.Texture=\"\"),\"\",IF(D205=\"\",\"\",I163)))))","v":""}]
[null,"Water Film Thickness (in)",null,{"$f":"IF(AND(AnalysisType=\"Superelevation Transition\",No.Lanes=\"\"),\"\",IF(LongGrade=\"\",\"\",IF(Deterministic.Surf.Type=\"\",\"\",IF(AND(Deterministic.Texture=\"\",User.Defined.Texture=\"\"),\"\",IF(D205=\"\",\"\",IF(O163<0,0,O163))))))","v":""}]
[null,"Driver Speed (mph)",null,{"$f":"IF(LongGrade=\"\",\"\",IF(Deterministic.Surf.Type=\"\",\"\",IF(D216=\"\",\"\",IF(O163<0,\"NA\",R163))))","v":""}]
[null,"Hydroplaning Speed* (mph)",null,{"$f":"IF(AND(AnalysisType=\"Superelevation Transition\",No.Lanes=\"\"),\"\",IF(LongGrade=\"\",\"\",IF(Deterministic.Surf.Type=\"\",\"\",IF(AND(Deterministic.Texture=\"\",User.Defined.Texture=\"\"),\"\",IF(D228=\"\",\"\",Q163)))))","v":""}]
[null,"* The speed has been adjusted up +5 mph to account for Modern Tires."]
[]
[null,"Possible Hydroplane Conditions"]
[null,"High ",null,null,"Low",null,null,null,null,"None"]
[]
[]
[null,"High: HPS is ≥ 4 mph Below the Predicted Driver Speed. Mitigation methods required."]
[null,"Low: HPS is ≥ 2 mph Below The Predicted Driver Speed. More potential for adverse conditions. Evaluate Mitigation methods needed and provide engineering justification if none are required which may include driver responsibility. "]
[]
[null,"None: HPS is greater than Predicted Driver Speed"]
[]
[]
[null,"Risk Analysis Results "]
[null,"(Based on AVERAGE WFT and PAVDRN HPS Models)"]
[null,"Predicted Water Film Thickness (in.)"]
[]
[null,"Plane Number",null,1,2,3,4,5,6,7,8,9,10,11,12]
[null,"Intensity (in/hr)",null,{"$f":"IF(D38<>\"\",D38,\"\")","v":""},"","","","","","","","","","",""]
[null,{"$f":"ModelParameters!A45","v":0.1},null,{"$f":"IF($B$118=\"\",\"\",AVERAGE($B$118,$R$118,$B$130,$R$130))","v":""},{"$f":"IF($C$118=\"\",\"\",AVERAGE($C$118,$S$118,$C$130,$S$130))","v":""},{"$f":"IF($D$118=\"\",\"\",AVERAGE($D$118,$T$118,$D$130,$T$130))","v":""},{"$f":"IF($E$118=\"\",\"\",AVERAGE($E$118,$U$118,$E$130,$U$130))","v":""},{"$f":"IF($F$118=\"\",\"\",AVERAGE($F$118,$V$118,$F$130,$V$130))","v":""},{"$f":"IF($G$118=\"\",\"\",AVERAGE($G$118,$W$118,$G$130,$W$130))","v":""},{"$f":"IF($H$118=\"\",\"\",AVERAGE($H$118,$X$118,$H$130,$X$130))","v":""},{"$f":"IF($I$118=\"\",\"\",AVERAGE($I$118,$Y$118,$I$130,$Y$130))","v":""},{"$f":"IF($J$118=\"\",\"\",AVERAGE($J$118,$Z$118,$J$130,$Z$130))","v":""},{"$f":"IF($K$118=\"\",\"\",AVERAGE($K$118,$AA$118,$K$130,$AA$130))","v":""},{"$f":"IF($L$118=\"\",\"\",AVERAGE($L$118,$AB$118,$L$130,$AB$130))","v":""},{"$f":"IF($M$118=\"\",\"\",AVERAGE($M$118,$AC$118,$M$130,$AC$130))","v":""}]
[null,{"$f":"ModelParameters!A46","v":0.25},null,{"$f":"IF($B$119=\"\",\"\",AVERAGE($B$119,$R$119,$B$131,$R$131))","v":""},{"$f":"IF($C$119=\"\",\"\",AVERAGE($C$119,$S$119,$C$131,$S$131))","v":""},{"$f":"IF($D$119=\"\",\"\",AVERAGE($D$119,$T$119,$D$131,$T$131))","v":""},{"$f":"IF($E$119=\"\",\"\",AVERAGE($E$119,$U$119,$E$131,$U$131))","v":""},{"$f":"IF($F$119=\"\",\"\",AVERAGE($F$119,$V$119,$F$131,$V$131))","v":""},{"$f":"IF($G$119=\"\",\"\",AVERAGE($G$119,$W$119,$G$131,$W$131))","v":""},{"$f":"IF($H$119=\"\",\"\",AVERAGE($H$119,$X$119,$H$131,$X$131))","v":""},{"$f":"IF($I$119=\"\",\"\",AVERAGE($I$119,$Y$119,$I$131,$Y$131))","v":""},{"$f":"IF($J$119=\"\",\"\",AVERAGE($J$119,$Z$119,$J$131,$Z$131))","v":""},{"$f":"IF($K$119=\"\",\"\",AVERAGE($K$119,$AA$119,$K$131,$AA$131))","v":""},{"$f":"IF($L$119=\"\",\"\",AVERAGE($L$119,$AB$119,$L$131,$AB$131))","v":""},{"$f":"IF($M$119=\"\",\"\",AVERAGE($M$119,$AC$119,$M$131,$AC$131))","v":""}]
[null,{"$f":"ModelParameters!A47","v":0.5},null,{"$f":"IF($B$120=\"\",\"\",AVERAGE($B$120,$R$120,$B$132,$R$132))","v":""},{"$f":"IF($C$120=\"\",\"\",AVERAGE($C$120,$S$120,$C$132,$S$132))","v":""},{"$f":"IF($D$120=\"\",\"\",AVERAGE($D$120,$T$120,$D$132,$T$132))","v":""},{"$f":"IF($E$120=\"\",\"\",AVERAGE($E$120,$U$120,$E$132,$U$132))","v":""},{"$f":"IF($F$120=\"\",\"\",AVERAGE($F$120,$V$120,$F$132,$V$132))","v":""},{"$f":"IF($G$120=\"\",\"\",AVERAGE($G$120,$W$120,$G$132,$W$132))","v":""},{"$f":"IF($H$120=\"\",\"\",AVERAGE($H$120,$X$120,$H$132,$X$132))","v":""},{"$f":"IF($I$120=\"\",\"\",AVERAGE($I$120,$Y$120,$I$132,$Y$132))","v":""},{"$f":"IF($J$120=\"\",\"\",AVERAGE($J$120,$Z$120,$J$132,$Z$132))","v":""},{"$f":"IF($K$120=\"\",\"\",AVERAGE($K$120,$AA$120,$K$132,$AA$132))","v":""},{"$f":"IF($L$120=\"\",\"\",AVERAGE($L$120,$AB$120,$L$132,$AB$132))","v":""},{"$f":"IF($M$120=\"\",\"\",AVERAGE($M$120,$AC$120,$M$132,$AC$132))","v":""}]
[null,{"$f":"ModelParameters!A48","v":1},null,{"$f":"IF($B$121=\"\",\"\",AVERAGE($B$121,$R$121,$B$133,$R$133))","v":""},{"$f":"IF($C$121=\"\",\"\",AVERAGE($C$121,$S$121,$C$133,$S$133))","v":""},{"$f":"IF($D$121=\"\",\"\",AVERAGE($D$121,$T$121,$D$133,$T$133))","v":""},{"$f":"IF($E$121=\"\",\"\",AVERAGE($E$121,$U$121,$E$133,$U$133))","v":""},{"$f":"IF($F$121=\"\",\"\",AVERAGE($F$121,$V$121,$F$133,$V$133))","v":""},{"$f":"IF($G$121=\"\",\"\",AVERAGE($G$121,$W$121,$G$133,$W$133))","v":""},{"$f":"IF($H$121=\"\",\"\",AVERAGE($H$121,$X$121,$H$133,$X$133))","v":""},{"$f":"IF($I$121=\"\",\"\",AVERAGE($I$121,$Y$121,$I$133,$Y$133))","v":""},{"$f":"IF($J$121=\"\",\"\",AVERAGE($J$121,$Z$121,$J$133,$Z$133))","v":""},{"$f":"IF($K$121=\"\",\"\",AVERAGE($K$121,$AA$121,$K$133,$AA$133))","v":""},{"$f":"IF($L$121=\"\",\"\",AVERAGE($L$121,$AB$121,$L$133,$AB$133))","v":""},{"$f":"IF($M$121=\"\",\"\",AVERAGE($M$121,$AC$121,$M$133,$AC$133))","v":""}]
[null,{"$f":"ModelParameters!A49","v":2},null,{"$f":"IF($B$122=\"\",\"\",AVERAGE($B$122,$R$122,$B$134,$R$134))","v":""},{"$f":"IF($C$122=\"\",\"\",AVERAGE($C$122,$S$122,$C$134,$S$134))","v":""},{"$f":"IF($D$122=\"\",\"\",AVERAGE($D$122,$T$122,$D$134,$T$134))","v":""},{"$f":"IF($E$122=\"\",\"\",AVERAGE($E$122,$U$122,$E$134,$U$134))","v":""},{"$f":"IF($F$122=\"\",\"\",AVERAGE($F$122,$V$122,$F$134,$V$134))","v":""},{"$f":"IF($G$122=\"\",\"\",AVERAGE($G$122,$W$122,$G$134,$W$134))","v":""},{"$f":"IF($H$122=\"\",\"\",AVERAGE($H$122,$X$122,$H$134,$X$134))","v":""},{"$f":"IF($I$122=\"\",\"\",AVERAGE($I$122,$Y$122,$I$134,$Y$134))","v":""},{"$f":"IF($J$122=\"\",\"\",AVERAGE($J$122,$Z$122,$J$134,$Z$134))","v":""},{"$f":"IF($K$122=\"\",\"\",AVERAGE($K$122,$AA$122,$K$134,$AA$134))","v":""},{"$f":"IF($L$122=\"\",\"\",AVERAGE($L$122,$AB$122,$L$134,$AB$134))","v":""},{"$f":"IF($M$122=\"\",\"\",AVERAGE($M$122,$AC$122,$M$134,$AC$134))","v":""}]
[null,{"$f":"ModelParameters!A50","v":3},null,{"$f":"IF($B$123=\"\",\"\",AVERAGE($B$123,$R$123,$B$135,$R$135))","v":""},{"$f":"IF($C$123=\"\",\"\",AVERAGE($C$123,$S$123,$C$135,$S$135))","v":""},{"$f":"IF($D$123=\"\",\"\",AVERAGE($D$123,$T$123,$D$135,$T$135))","v":""},{"$f":"IF($E$123=\"\",\"\",AVERAGE($E$123,$U$123,$E$135,$U$135))","v":""},{"$f":"IF($F$123=\"\",\"\",AVERAGE($F$123,$V$123,$F$135,$V$135))","v":""},{"$f":"IF($G$123=\"\",\"\",AVERAGE($G$123,$W$123,$G$135,$W$135))","v":""},{"$f":"IF($H$123=\"\",\"\",AVERAGE($H$123,$X$123,$H$135,$X$135))","v":""},{"$f":"IF($I$123=\"\",\"\",AVERAGE($I$123,$Y$123,$I$135,$Y$135))","v":""},{"$f":"IF($J$123=\"\",\"\",AVERAGE($J$123,$Z$123,$J$135,$Z$135))","v":""},{"$f":"IF($K$123=\"\",\"\",AVERAGE($K$123,$AA$123,$K$135,$AA$135))","v":""},{"$f":"IF($L$123=\"\",\"\",AVERAGE($L$123,$AB$123,$L$135,$AB$135))","v":""},{"$f":"IF($M$123=\"\",\"\",AVERAGE($M$123,$AC$123,$M$135,$AC$135))","v":""}]
[null,{"$f":"ModelParameters!A51","v":4},null,{"$f":"IF($B$124=\"\",\"\",AVERAGE($B$124,$R$124,$B$136,$R$136))","v":""},{"$f":"IF($C$124=\"\",\"\",AVERAGE($C$124,$S$124,$C$136,$S$136))","v":""},{"$f":"IF($D$124=\"\",\"\",AVERAGE($D$124,$T$124,$D$136,$T$136))","v":""},{"$f":"IF($E$124=\"\",\"\",AVERAGE($E$124,$U$124,$E$136,$U$136))","v":""},{"$f":"IF($F$124=\"\",\"\",AVERAGE($F$124,$V$124,$F$136,$V$136))","v":""},{"$f":"IF($G$124=\"\",\"\",AVERAGE($G$124,$W$124,$G$136,$W$136))","v":""},{"$f":"IF($H$124=\"\",\"\",AVERAGE($H$124,$X$124,$H$136,$X$136))","v":""},{"$f":"IF($I$124=\"\",\"\",AVERAGE($I$124,$Y$124,$I$136,$Y$136))","v":""},{"$f":"IF($J$124=\"\",\"\",AVERAGE($J$124,$Z$124,$J$136,$Z$136))","v":""},{"$f":"IF($K$124=\"\",\"\",AVERAGE($K$124,$AA$124,$K$136,$AA$136))","v":""},{"$f":"IF($L$124=\"\",\"\",AVERAGE($L$124,$AB$124,$L$136,$AB$136))","v":""},{"$f":"IF($M$124=\"\",\"\",AVERAGE($M$124,$AC$124,$M$136,$AC$136))","v":""}]
[]
[null,"Predicted Driver Speed (mph)"]
[null,"Plane Number",null,1,2,3,4,5,6,7,8,9,10,11,12]
[null,"Intensity (in/hr)",null,{"$f":"IF(D38<>\"\",D38,\"\")","v":""},"","","","","","","","","","",""]
[null,{"$f":"ModelParameters!A45","v":0.1},null,{"$f":"IF(D$39<>\"\",MAX(D$39-ModelParameters!$B45,45),\"\")","v":""},{"$f":"IF(E$39<>\"\",MAX(E$39-ModelParameters!$B45,45),\"\")","v":""},{"$f":"IF(F$39<>\"\",MAX(F$39-ModelParameters!$B45,45),\"\")","v":""},{"$f":"IF(G$39<>\"\",MAX(G$39-ModelParameters!$B45,45),\"\")","v":""},{"$f":"IF(H$39<>\"\",MAX(H$39-ModelParameters!$B45,45),\"\")","v":""},{"$f":"IF(I$39<>\"\",MAX(I$39-ModelParameters!$B45,45),\"\")","v":""},{"$f":"IF(J$39<>\"\",MAX(J$39-ModelParameters!$B45,45),\"\")","v":""},{"$f":"IF(K$39<>\"\",MAX(K$39-ModelParameters!$B45,45),\"\")","v":""},{"$f":"IF(L$39<>\"\",MAX(L$39-ModelParameters!$B45,45),\"\")","v":""},{"$f":"IF(M$39<>\"\",MAX(M$39-ModelParameters!$B45,45),\"\")","v":""},{"$f":"IF(N$39<>\"\",MAX(N$39-ModelParameters!$B45,45),\"\")","v":""},{"$f":"IF(O$39<>\"\",MAX(O$39-ModelParameters!$B45,45),\"\")","v":""}]
[null,{"$f":"ModelParameters!A46","v":0.25},null,{"$f":"IF(D$39<>\"\",MAX(D$39-ModelParameters!$B46,45),\"\")","v":""},{"$f":"IF(E$39<>\"\",MAX(E$39-ModelParameters!$B46,45),\"\")","v":""},{"$f":"IF(F$39<>\"\",MAX(F$39-ModelParameters!$B46,45),\"\")","v":""},{"$f":"IF(G$39<>\"\",MAX(G$39-ModelParameters!$B46,45),\"\")","v":""},{"$f":"IF(H$39<>\"\",MAX(H$39-ModelParameters!$B46,45),\"\")","v":""},{"$f":"IF(I$39<>\"\",MAX(I$39-ModelParameters!$B46,45),\"\")","v":""},{"$f":"IF(J$39<>\"\",MAX(J$39-ModelParameters!$B46,45),\"\")","v":""},{"$f":"IF(K$39<>\"\",MAX(K$39-ModelParameters!$B46,45),\"\")","v":""},{"$f":"IF(L$39<>\"\",MAX(L$39-ModelParameters!$B46,45),\"\")","v":""},{"$f":"IF(M$39<>\"\",MAX(M$39-ModelParameters!$B46,45),\"\")","v":""},{"$f":"IF(N$39<>\"\",MAX(N$39-ModelParameters!$B46,45),\"\")","v":""},{"$f":"IF(O$39<>\"\",MAX(O$39-ModelParameters!$B46,45),\"\")","v":""}]
[null,{"$f":"ModelParameters!A47","v":0.5},null,{"$f":"IF(D$39<>\"\",MAX(D$39-ModelParameters!$B47,45),\"\")","v":""},{"$f":"IF(E$39<>\"\",MAX(E$39-ModelParameters!$B47,45),\"\")","v":""},{"$f":"IF(F$39<>\"\",MAX(F$39-ModelParameters!$B47,45),\"\")","v":""},{"$f":"IF(G$39<>\"\",MAX(G$39-ModelParameters!$B47,45),\"\")","v":""},{"$f":"IF(H$39<>\"\",MAX(H$39-ModelParameters!$B47,45),\"\")","v":""},{"$f":"IF(I$39<>\"\",MAX(I$39-ModelParameters!$B47,45),\"\")","v":""},{"$f":"IF(J$39<>\"\",MAX(J$39-ModelParameters!$B47,45),\"\")","v":""},{"$f":"IF(K$39<>\"\",MAX(K$39-ModelParameters!$B47,45),\"\")","v":""},{"$f":"IF(L$39<>\"\",MAX(L$39-ModelParameters!$B47,45),\"\")","v":""},{"$f":"IF(M$39<>\"\",MAX(M$39-ModelParameters!$B47,45),\"\")","v":""},{"$f":"IF(N$39<>\"\",MAX(N$39-ModelParameters!$B47,45),\"\")","v":""},{"$f":"IF(O$39<>\"\",MAX(O$39-ModelParameters!$B47,45),\"\")","v":""}]
[null,{"$f":"ModelParameters!A48","v":1},null,{"$f":"IF(D$39<>\"\",MAX(D$39-ModelParameters!$B48,45),\"\")","v":""},{"$f":"IF(E$39<>\"\",MAX(E$39-ModelParameters!$B48,45),\"\")","v":""},{"$f":"IF(F$39<>\"\",MAX(F$39-ModelParameters!$B48,45),\"\")","v":""},{"$f":"IF(G$39<>\"\",MAX(G$39-ModelParameters!$B48,45),\"\")","v":""},{"$f":"IF(H$39<>\"\",MAX(H$39-ModelParameters!$B48,45),\"\")","v":""},{"$f":"IF(I$39<>\"\",MAX(I$39-ModelParameters!$B48,45),\"\")","v":""},{"$f":"IF(J$39<>\"\",MAX(J$39-ModelParameters!$B48,45),\"\")","v":""},{"$f":"IF(K$39<>\"\",MAX(K$39-ModelParameters!$B48,45),\"\")","v":""},{"$f":"IF(L$39<>\"\",MAX(L$39-ModelParameters!$B48,45),\"\")","v":""},{"$f":"IF(M$39<>\"\",MAX(M$39-ModelParameters!$B48,45),\"\")","v":""},{"$f":"IF(N$39<>\"\",MAX(N$39-ModelParameters!$B48,45),\"\")","v":""},{"$f":"IF(O$39<>\"\",MAX(O$39-ModelParameters!$B48,45),\"\")","v":""}]
[null,{"$f":"ModelParameters!A49","v":2},null,{"$f":"IF(D$39<>\"\",MAX(D$39-ModelParameters!$B49,45),\"\")","v":""},{"$f":"IF(E$39<>\"\",MAX(E$39-ModelParameters!$B49,45),\"\")","v":""},{"$f":"IF(F$39<>\"\",MAX(F$39-ModelParameters!$B49,45),\"\")","v":""},{"$f":"IF(G$39<>\"\",MAX(G$39-ModelParameters!$B49,45),\"\")","v":""},{"$f":"IF(H$39<>\"\",MAX(H$39-ModelParameters!$B49,45),\"\")","v":""},{"$f":"IF(I$39<>\"\",MAX(I$39-ModelParameters!$B49,45),\"\")","v":""},{"$f":"IF(J$39<>\"\",MAX(J$39-ModelParameters!$B49,45),\"\")","v":""},{"$f":"IF(K$39<>\"\",MAX(K$39-ModelParameters!$B49,45),\"\")","v":""},{"$f":"IF(L$39<>\"\",MAX(L$39-ModelParameters!$B49,45),\"\")","v":""},{"$f":"IF(M$39<>\"\",MAX(M$39-ModelParameters!$B49,45),\"\")","v":""},{"$f":"IF(N$39<>\"\",MAX(N$39-ModelParameters!$B49,45),\"\")","v":""},{"$f":"IF(O$39<>\"\",MAX(O$39-ModelParameters!$B49,45),\"\")","v":""}]
[null,{"$f":"ModelParameters!A50","v":3},null,{"$f":"IF(D$39=\"\",\"\",ModelParameters!$C50)","v":""},{"$f":"IF(E$39=\"\",\"\",ModelParameters!$C50)","v":""},{"$f":"IF(F$39=\"\",\"\",ModelParameters!$C50)","v":""},{"$f":"IF(G$39=\"\",\"\",ModelParameters!$C50)","v":""},{"$f":"IF(H$39=\"\",\"\",ModelParameters!$C50)","v":""},{"$f":"IF(I$39=\"\",\"\",ModelParameters!$C50)","v":""},{"$f":"IF(J$39=\"\",\"\",ModelParameters!$C50)","v":""},{"$f":"IF(K$39=\"\",\"\",ModelParameters!$C50)","v":""},{"$f":"IF(L$39=\"\",\"\",ModelParameters!$C50)","v":""},{"$f":"IF(M$39=\"\",\"\",ModelParameters!$C50)","v":""},{"$f":"IF(N$39=\"\",\"\",ModelParameters!$C50)","v":""},{"$f":"IF(O$39=\"\",\"\",ModelParameters!$C50)","v":""}]
[null,{"$f":"ModelParameters!A51","v":4},null,{"$f":"IF(D$39=\"\",\"\",ModelParameters!$C51)","v":""},{"$f":"IF(E$39=\"\",\"\",ModelParameters!$C51)","v":""},{"$f":"IF(F$39=\"\",\"\",ModelParameters!$C51)","v":""},{"$f":"IF(G$39=\"\",\"\",ModelParameters!$C51)","v":""},{"$f":"IF(H$39=\"\",\"\",ModelParameters!$C51)","v":""},{"$f":"IF(I$39=\"\",\"\",ModelParameters!$C51)","v":""},{"$f":"IF(J$39=\"\",\"\",ModelParameters!$C51)","v":""},{"$f":"IF(K$39=\"\",\"\",ModelParameters!$C51)","v":""},{"$f":"IF(L$39=\"\",\"\",ModelParameters!$C51)","v":""},{"$f":"IF(M$39=\"\",\"\",ModelParameters!$C51)","v":""},{"$f":"IF(N$39=\"\",\"\",ModelParameters!$C51)","v":""},{"$f":"IF(O$39=\"\",\"\",ModelParameters!$C51)","v":""}]
[]
[null,"Predicted Hydroplaning Speed (mph)"]
[null,"“These speeds are increased by 5MPH to account for Gunaratne research.” "]
[null,"Plane Number",null,1,2,3,4,5,6,7,8,9,10,11,12]
[null,"Intensity (in/hr)",null,{"$f":"IF(D38<>\"\",D38,\"\")","v":""},"","","","","","","","","","",""]
[null,{"$f":"ModelParameters!A45","v":0.1},null,{"$f":"IF(D205=\"\",\"\",IF(D205<0,999,MAX(HP.P.WFT.lt.24.Const*D205^HP.P.WFT.lt.24.WFT, HP.P.WFT.gt.24.Const*MAX(A1.a*D205^A1.WFT+A1.b,(A2.a*D205^A2.WFT+A2.b)*$E$81^A2.MTD))+5))","v":""},{"$f":"IF(E205=\"\",\"\",IF(E205<0,999,MAX(HP.P.WFT.lt.24.Const*E205^HP.P.WFT.lt.24.WFT, HP.P.WFT.gt.24.Const*MAX(A1.a*E205^A1.WFT+A1.b,(A2.a*E205^A2.WFT+A2.b)*$E$81^A2.MTD))+5))","v":""},"","","","","","","","","",""]
[null,{"$f":"ModelParameters!A46","v":0.25},null,{"$f":"IF(D206=\"\",\"\",IF(D206<0,999,MAX(HP.P.WFT.lt.24.Const*D206^HP.P.WFT.lt.24.WFT, HP.P.WFT.gt.24.Const*MAX(A1.a*D206^A1.WFT+A1.b,(A2.a*D206^A2.WFT+A2.b)*$E$81^A2.MTD))+5))","v":""},{"$f":"IF(E206=\"\",\"\",IF(E206<0,999,MAX(HP.P.WFT.lt.24.Const*E206^HP.P.WFT.lt.24.WFT, HP.P.WFT.gt.24.Const*MAX(A1.a*E206^A1.WFT+A1.b,(A2.a*E206^A2.WFT+A2.b)*$E$81^A2.MTD))+5))","v":""},"","","","","","","","","",""]
[null,{"$f":"ModelParameters!A47","v":0.5},null,{"$f":"IF(D207=\"\",\"\",IF(D207<0,999,MAX(HP.P.WFT.lt.24.Const*D207^HP.P.WFT.lt.24.WFT, HP.P.WFT.gt.24.Const*MAX(A1.a*D207^A1.WFT+A1.b,(A2.a*D207^A2.WFT+A2.b)*$E$81^A2.MTD))+5))","v":""},{"$f":"IF(E207=\"\",\"\",IF(E207<0,999,MAX(HP.P.WFT.lt.24.Const*E207^HP.P.WFT.lt.24.WFT, HP.P.WFT.gt.24.Const*MAX(A1.a*E207^A1.WFT+A1.b,(A2.a*E207^A2.WFT+A2.b)*$E$81^A2.MTD))+5))","v":""},"","","","","","","","","",""]
[null,{"$f":"ModelParameters!A48","v":1},null,{"$f":"IF(D208=\"\",\"\",IF(D208<0,999,MAX(HP.P.WFT.lt.24.Const*D208^HP.P.WFT.lt.24.WFT, HP.P.WFT.gt.24.Const*MAX(A1.a*D208^A1.WFT+A1.b,(A2.a*D208^A2.WFT+A2.b)*$E$81^A2.MTD))+5))","v":""},"","","","","","","","","","",""]
[null,{"$f":"ModelParameters!A49","v":2},null,{"$f":"IF(D209=\"\",\"\",IF(D209<0,999,MAX(HP.P.WFT.lt.24.Const*D209^HP.P.WFT.lt.24.WFT, HP.P.WFT.gt.24.Const*MAX(A1.a*D209^A1.WFT+A1.b,(A2.a*D209^A2.WFT+A2.b)*$E$81^A2.MTD))+5))","v":""},"","","","","","","","","","",""]
[null,{"$f":"ModelParameters!A50","v":3},null,{"$f":"IF(D210=\"\",\"\",IF(D210<0,999,MAX(HP.P.WFT.lt.24.Const*D210^HP.P.WFT.lt.24.WFT, HP.P.WFT.gt.24.Const*MAX(A1.a*D210^A1.WFT+A1.b,(A2.a*D210^A2.WFT+A2.b)*$E$81^A2.MTD))+5))","v":""},"","","","","","","","","","",""]
[null,{"$f":"ModelParameters!A51","v":4},null,{"$f":"IF(D211=\"\",\"\",IF(D211<0,999,MAX(HP.P.WFT.lt.24.Const*D211^HP.P.WFT.lt.24.WFT, HP.P.WFT.gt.24.Const*MAX(A1.a*D211^A1.WFT+A1.b,(A2.a*D211^A2.WFT+A2.b)*$E$81^A2.MTD))+5))","v":""},"","","","","","","","","","",""]
[]
[]
[]
[]
[]
[null,"Speed delta (mph)"]
[]
[null,"Plane Number",null,1,null,2,null,3,null,4,null,5,null,6,null,7,null,8,null,9,null,10,null,11,null,12]
[null,"Intensity (in/hr)",null,{"$f":"IF(D38<>\"\",D38,\"\")","v":""},"Intensity (in/hr)",{"$f":"IF(E38<>\"\",E38,\"\")","v":""},"Intensity (in/hr)",{"$f":"IF(F38<>\"\",F38,\"\")","v":""},"Intensity (in/hr)",{"$f":"IF(G38<>\"\",G38,\"\")","v":""},"Intensity (in/hr)",{"$f":"IF(H38<>\"\",H38,\"\")","v":""},"Intensity (in/hr)",{"$f":"IF(I38<>\"\",I38,\"\")","v":""},"Intensity (in/hr)",{"$f":"IF(J38<>\"\",J38,\"\")","v":""},"Intensity (in/hr)",{"$f":"IF(K38<>\"\",K38,\"\")","v":""},"Intensity (in/hr)",{"$f":"IF(L38<>\"\",L38,\"\")","v":""},"Intensity (in/hr)",{"$f":"IF(M38<>\"\",M38,\"\")","v":""},"Intensity (in/hr)",{"$f":"IF(N38<>\"\",N38,\"\")","v":""},"Intensity (in/hr)",{"$f":"IF(O38<>\"\",O38,\"\")","v":""},"Intensity (in/hr)"]
[null,{"$f":"ModelParameters!A45","v":0.1},null,{"$f":"IFERROR(D216-D228,\"\")","v":""},0.1,{"$f":"IFERROR(E216-E228,\"\")","v":""},0.1,{"$f":"IFERROR(F216-F228,\"\")","v":""},0.1,{"$f":"IFERROR(G216-G228,\"\")","v":""},0.1,{"$f":"IFERROR(H216-H228,\"\")","v":""},0.1,{"$f":"IFERROR(I216-I228,\"\")","v":""},0.1,{"$f":"IFERROR(J216-J228,\"\")","v":""},0.1,{"$f":"IFERROR(K216-K228,\"\")","v":""},0.1,{"$f":"IFERROR(L216-L228,\"\")","v":""},0.1,{"$f":"IFERROR(M216-M228,\"\")","v":""},0.1,{"$f":"IFERROR(N216-N228,\"\")","v":""},0.1,{"$f":"IFERROR(O216-O228,\"\")","v":""},0.1]
[null,{"$f":"ModelParameters!A46","v":0.25},null,{"$f":"IFERROR(D217-D229,\"\")","v":""},0.25,{"$f":"IFERROR(E217-E229,\"\")","v":""},0.25,{"$f":"IFERROR(F217-F229,\"\")","v":""},0.25,{"$f":"IFERROR(G217-G229,\"\")","v":""},0.25,{"$f":"IFERROR(H217-H229,\"\")","v":""},0.25,{"$f":"IFERROR(I217-I229,\"\")","v":""},0.25,{"$f":"IFERROR(J217-J229,\"\")","v":""},0.25,{"$f":"IFERROR(K217-K229,\"\")","v":""},0.25,{"$f":"IFERROR(L217-L229,\"\")","v":""},0.25,{"$f":"IFERROR(M217-M229,\"\")","v":""},0.25,{"$f":"IFERROR(N217-N229,\"\")","v":""},0.25,{"$f":"IFERROR(O217-O229,\"\")","v":""},0.25]
[null,{"$f":"ModelParameters!A47","v":0.5},null,"",0.5,"",0.5,"",0.5,"",0.5,"",0.5,"",0.5,"",0.5,"",0.5,"",0.5,"",0.5,"",0.5,"",0.5]
[null,{"$f":"ModelParameters!A48","v":1},null,"",1,"",1,"",1,"",1,"",1,"",1,"",1,"",1,"",1,"",1,"",1,"",1]
[null,{"$f":"ModelParameters!A49","v":2},null,"",2,"",2,"",2,"",2,"",2,"",2,"",2,"",2,"",2,"",2,"",2,"",2]
[null,{"$f":"ModelParameters!A50","v":3},null,{"$f":"IFERROR(D221-D233,\"\")","v":""},3,"",3,"",3,"",3,"",3,"",3,"",3,"",3,"",3,"",3,"",3,"",3]
[null,{"$f":"ModelParameters!A51","v":4},null,"",4,"",4,"",4,"",4,"",4,"",4,"",4,"",4,"",4,"",4,"",4,"",4]
[null,"Max Delta",null,{"$f":"IFERROR(MAX(D244:D250),\"\")","v":0},null,{"$f":"IFERROR(MAX(F244:F250),\"\")","v":0},null,{"$f":"IFERROR(MAX(H244:H250),\"\")","v":0},null,0,null,0,null,0,null,0,null,0,null,0,null,0,null,0,null,0]
[null,"Max Delta Intensity",null,{"$f":"IFERROR(VLOOKUP(D251,D244:E250,2,FALSE),\"\")","v":""},null,{"$f":"IFERROR(VLOOKUP(F251,F244:G250,2,FALSE),\"\")","v":""},null,{"$f":"IFERROR(VLOOKUP(H251,H244:I250,2,FALSE),\"\")","v":""},null,{"$f":"IFERROR(VLOOKUP(J251,J244:K250,2,FALSE),\"\")","v":""},null,{"$f":"IFERROR(VLOOKUP(L251,L244:M250,2,FALSE),\"\")","v":""},null,{"$f":"IFERROR(VLOOKUP(N251,N244:O250,2,FALSE),\"\")","v":""},null,{"$f":"IFERROR(VLOOKUP(P251,P244:Q250,2,FALSE),\"\")","v":""},null,{"$f":"IFERROR(VLOOKUP(R251,R244:S250,2,FALSE),\"\")","v":""},null,{"$f":"IFERROR(VLOOKUP(T251,T244:U250,2,FALSE),\"\")","v":""},null,{"$f":"IFERROR(VLOOKUP(V251,V244:W250,2,FALSE),\"\")","v":""},null,{"$f":"IFERROR(VLOOKUP(X251,X244:Y250,2,FALSE),\"\")","v":""},null,{"$f":"IFERROR(VLOOKUP(Z251,Z244:AA250,2,FALSE),\"\")","v":""}]
[null,"Max Delta WFT",null,{"$f":"IFERROR(VLOOKUP(D252,B205:O211,3,TRUE),\"\")","v":""},null,{"$f":"IFERROR(VLOOKUP(F252,B205:O211,4,TRUE),\"\")","v":""},null,{"$f":"IFERROR(VLOOKUP(H252,B205:O211,5,TRUE),\"\")","v":""},null,{"$f":"IFERROR(VLOOKUP(J252,B205:O211,6,TRUE),\"\")","v":""},null,{"$f":"IFERROR(VLOOKUP(L252,B205:O211,7,TRUE),\"\")","v":""},null,{"$f":"IFERROR(VLOOKUP(N252,B205:O211,8,TRUE),\"\")","v":""},null,{"$f":"IFERROR(VLOOKUP(P252,B205:O211,9,TRUE),\"\")","v":""},null,{"$f":"IFERROR(VLOOKUP(R252,B205:O211,10,TRUE),\"\")","v":""},null,{"$f":"IFERROR(VLOOKUP(T252,B205:O211,11,TRUE),\"\")","v":""},null,{"$f":"IFERROR(VLOOKUP(V252,B205:O211,12,TRUE),\"\")","v":""},null,{"$f":"IFERROR(VLOOKUP(X252,B205:O211,13,TRUE),\"\")","v":""},null,{"$f":"IFERROR(VLOOKUP(Z252,B205:O211,14,TRUE),\"\")","v":""}]
[null,"Max Delta Driver Speed",null,{"$f":"IFERROR(VLOOKUP(D252,B216:O222,3,TRUE),\"\")","v":""},null,{"$f":"IFERROR(VLOOKUP(F252,B216:O222,4,TRUE),\"\")","v":""},null,{"$f":"IFERROR(VLOOKUP(H252,B216:O222,5,TRUE),\"\")","v":""},null,{"$f":"IFERROR(VLOOKUP(J252,B216:O222,6,TRUE),\"\")","v":""},null,{"$f":"IFERROR(VLOOKUP(L252,B216:O222,7,TRUE),\"\")","v":""},null,{"$f":"IFERROR(VLOOKUP(N252,B216:O222,8,TRUE),\"\")","v":""},null,{"$f":"IFERROR(VLOOKUP(P252,B216:O222,9,TRUE),\"\")","v":""},null,{"$f":"IFERROR(VLOOKUP(R252,B216:O222,10,TRUE),\"\")","v":""},null,{"$f":"IFERROR(VLOOKUP(T252,B216:O222,11,TRUE),\"\")","v":""},null,{"$f":"IFERROR(VLOOKUP(V252,B216:O222,12,TRUE),\"\")","v":""},null,{"$f":"IFERROR(VLOOKUP(X252,B216:O222,13,TRUE),\"\")","v":""},null,{"$f":"IFERROR(VLOOKUP(Z252,B216:O222,14,TRUE),\"\")","v":""}]
[null,"Max Delta HPS",null,{"$f":"IFERROR(VLOOKUP(D252,B228:O234,3,TRUE),\"\")","v":""},null,{"$f":"IFERROR(VLOOKUP(F252,B228:O234,4,TRUE),\"\")","v":""},null,{"$f":"IFERROR(VLOOKUP(H252,B228:O234,5,TRUE),\"\")","v":""},null,{"$f":"IFERROR(VLOOKUP(J252,B228:O234,6,TRUE),\"\")","v":""},null,{"$f":"IFERROR(VLOOKUP(L252,B228:O234,7,TRUE),\"\")","v":""},null,{"$f":"IFERROR(VLOOKUP(N252,B228:O234,8,TRUE),\"\")","v":""},null,{"$f":"IFERROR(VLOOKUP(P252,B228:O234,9,TRUE),\"\")","v":""},null,{"$f":"IFERROR(VLOOKUP(R252,B228:O234,10,TRUE),\"\")","v":""},null,{"$f":"IFERROR(VLOOKUP(T252,B228:O234,11,TRUE),\"\")","v":""},null,{"$f":"IFERROR(VLOOKUP(V252,B228:O234,12,TRUE),\"\")","v":""},null,{"$f":"IFERROR(VLOOKUP(X252,B228:O234,13,TRUE),\"\")","v":""},null,{"$f":"IFERROR(VLOOKUP(Z252,B228:O234,14,TRUE),\"\")","v":""}]

{"sheet":"Prelim Assessment Table","index":4,"n_rows":130,"n_cols":17,"rows_kept":130,"cut":false,"hidden":false,"merged":[[1,1,1,2],[34,1,34,6],[35,1,36,6],[37,1,37,6],[2,1,2,2],[3,1,3,2],[4,1,4,2],[2,4,3,13]]}
[]
["Hydraulics Designer:"]
["Reviewer:",null,null,null,"Preliminary Hydroplaning Assessment of Typical Sections "]
["Date:"]
["Project TIP #:"]
[]
["Typical Section","Analysis Description","Alignment","Station","Direction","Lane","Design \nSpeed \n(mph)","Rainfall \nIntensity\n(I, in/hr)","Long. \nSlope\n(%)","Cross \nSlope \n(ft/ft)","Pavement \nWidth \n(ft)","Pavement \nSurface Material","Hydroplaning\nAverage \nWFT                     \n(in)","PAVDRN \nHydroplaning \nSpeed \n(mph)","Predicted\nDriver\nSpeed                      \n(mph)","Analysis Notes","User-Defined \nPavement \nNotes"]
[]
[]
[]
[]
[]
[]
[]
[]
[]
[]
[]
[]
[]
[]
[]
[]
[]
[]
[]
[]
[]
[]
[]
[null,"Possible Hydroplane Conditions"]
[null,"High ",null,"Low ",null,null,"None"]
[]
[]
[null,"High: HPS is ≥ 4 mph Below the Predicted Driver Speed. Mitigation methods required."]
[null,"Low: HPS is ≥ 2 mph Below The Predicted Driver Speed. More potential for adverse conditions. Evaluate Mitigation methods needed and provide engineering justification if none are required which may include driver responsibility. "]
[]
[null,"None: HPS is greater than Predicted Driver Speed"]
[]
[]
[]
[]
[]
[]
[]
[]
[]
[]
[]
[]
[]
[]
[]
[]
[]
[]
[]
[]
[]
[]
[]
[]
[]
[]
[]
[]
[]
[]
[]
[]
[]
[]
[]
[]
[]
[]
[]
[]
[]
[]
[]
[]
[]
[]
[]
[]
[]
[]
[]
[]
[]
[]
[]
[]
[]
[]
[]
[]
[]
[]
[]
[]
[]
[]
[]
[]
[]
[]
[]
[]
[]
[]
[]
[]
[]
[null,null,null,null,null,null,null,null,null,{"$f":"IF(E116=\"\",\"\", E116-12)","v":""}]
[null,null,null,null,null,null,null,null,null,""]
[null,null,null,null,null,null,null,null,null,""]
[null,null,null,null,null,null,null,null,null,""]
[null,null,null,null,null,null,null,null,null,""]
[null,null,null,null,null,null,null,null,null,""]
[null,null,null,null,null,null,null,null,null,""]
[null,null,null,null,null,null,null,null,null,""]
[null,null,null,null,null,null,null,null,null,""]
[null,null,null,null,null,null,null,null,null,""]
[null,null,null,null,null,null,null,null,null,""]
[null,null,null,null,null,null,null,null,null,""]
[null,null,null,null,null,null,null,null,null,""]
[null,null,null,null,null,null,null,null,null,""]
[null,null,null,null,null,null,null,null,null,""]

{"sheet":"ModelParameters","index":5,"n_rows":101,"n_cols":21,"rows_kept":101,"cut":false,"hidden":true,"merged":[[6,0,11,0],[6,1,9,1],[85,242,85,253],[33,0,34,0],[85,230,85,241],[85,206,85,217],[85,218,85,229],[85,194,85,205],[85,169,85,180],[85,181,85,192]]}
["Intermediate Parameters",null,null,null,null,null,null,"Pavement Types",null,null,null,null,null,null,null,null,null,null,null,"Counties","Division"]
[null,null,null,null,null,null,null,"Dense Graded Asphalt (DGAC)",null,null,null,null,"Directions",null,null,"Preliminary","Final",null,null,"Alamance","Division 7"]
["Parameter","v0","a","b","c",null,null,"Open Graded Friction Course (OGFC)",null,null,"North ",null,"Northbound",null,null,"Greater than 36 ft. of Impervious Pavement","Greater than 36 ft. of Impervious Pavement",null,null,"Alexander","Division 12"]
["K. Viscosity",1.792,2.4430000000000001,-14.146000000000001,11.701000000000001,null,null,"Concrete Pavement (PCC)",null,null,"Northeast",null,"Eastbound",null,null,"Superelevation Transition","Superelevation Transition",null,null,"Alleghany","Division 11"]
[null,null,null,null,null,null,null,"Ultra-Thin Bonded Wearing Course",null,null,"East",null,"Southbound",null,null,"Other Areas of Concern","Other Areas of Concern",null,null,"Anson","Division 10"]
["Parameter","Surf. Type","Condition","Const.","NR Exponent","Slope Exponent",null,"User-Defined",null,null,"Southeast",null,"Westbound",null,null,"Mitigation","Mitigation",null,null,"Ashe","Division 11"]
["Manning's N","PCC","NR  < 240",0.38800000000000001,-0.53500000000000003,0,null,null,null,null,"South",null,null,null,null,"Superelevation Mitigation","Superelevation Mitigation",null,null,"Avery","Division 11"]
[null,null,"NR < 500",0.34499999999999997,-0.502,0,null,null,null,null,"Southwest",null,null,null,null,null,null,null,null,"Beaufort","Division 2"]
[null,null,"NR < 1000",0.31900000000000001,-0.48,0,null,null,null,null,"West",null,null,null,null,null,null,null,null,"Bertie","Division 1"]
[null,null,"NR ≥ 1000",1.7000000000000001E-2,0,0,null,null,null,null,"Northwest",null,null,null,null,null,null,null,null,"Bladen","Division 6"]
[null,"DGFC","N/A",8.2299999999999998E-2,-0.17399999999999999,0,null,null,null,null,null,null,null,null,null,null,null,null,null,"Brunswick","Division 3"]
[null,"OGFC","N/A",1.49,-0.42399999999999999,0.30599999999999999,null,null,null,null,null,null,null,null,null,null,null,null,null,"Buncombe","Division 13"]
[null,null,null,null,null,null,null,null,null,null,null,null,null,null,null,null,null,null,null,"Burke","Division 13"]
["Parameter","a","b","WFT Exponent","MTD Exponent",null,null,null,null,null,null,null,null,null,null,null,null,null,null,"Cabarrus","Division 10"]
["A1",10.409000000000001,3.5070000000000001,-0.06,0,null,null,null,null,null,null,null,null,null,null,null,null,null,null,"Caldwell","Division 11"]
["A2",28.952000000000002,-7.8170000000000002,-0.06,0.14000000000000001,null,null,null,null,null,null,null,null,null,null,null,null,null,null,"Camden","Division 1"]
[null,null,null,null,null,null,null,null,null,null,null,null,"Intensity",null,null,null,null,null,null,"Carteret","Division 2"]
["MPD to MTD Conversion",null,null,null,null,null,null,null,null,null,null,null,0.1,null,null,null,null,null,null,"Caswell","Division 7"]
["Surface Type","a","b",null,null,null,null,null,null,null,null,null,0.25,null,null,null,null,null,null,"Catawba","Division 12"]
["DGFC",0.8,0.2,"ASTM E184-5","B in mm (E176 converted to in)",null,null,null,null,null,null,null,0.5,null,null,null,null,null,null,"Chatham","Division 8"]
["OGFC",0.84099999999999997,2.5000000000000001E-2,null,null,null,null,null,null,null,null,null,1,null,null,null,null,null,null,"Cherokee","Division 14"]
["PCC (LGD)",0.98199999999999998,3.0000000000000001E-3,null,null,null,null,null,null,null,null,null,2,null,null,null,null,null,null,"Chowan","Division 1"]
[null,null,null,null,null,null,null,null,null,null,null,null,3,null,null,null,null,null,null,"Clay","Division 14"]
[null,null,null,null,null,null,null,null,null,null,null,null,4,null,null,null,null,null,null,"Cleveland","Division 12"]
["Water Film Thickness Models",null,null,null,null,null,null,null,null,null,null,null,null,null,null,null,null,null,null,"Columbus","Division 6"]
["Model","Const.","MTD Exponent","Drainage Path Exponent","Intensity Exponent","Slope Exponent","Manning's Exponent","Unit",null,null,null,null,null,null,null,null,null,null,null,"Craven","Division 2"]
["Gallaway",3.7260000000000001E-3,0.125,0.51900000000000002,0.56200000000000006,-0.36399999999999999,0,"Eng.",null,null,null,null,null,null,null,null,null,null,null,"Cumberland","Division 6"]
["UK RRL",4.5999999999999999E-2,0,0.5,0.5,-0.2,0,"SI",null,null,null,null,null,null,null,null,null,null,null,"Currituck","Division 1"]
["NZ Mod.",1.485E-2,0.11,0.43,0.59,-0.42,0,"SI",null,null,null,null,null,null,null,null,null,null,null,"Dare","Division 1"]
["PAVDRN",{"$f":"(1/36.1)^0.6","v":0.11627749815668614},0,0.6,0.6,{"$f":"-0.5*0.6","v":-0.3},0.6,"SI",null,null,null,null,null,null,null,null,null,null,null,"Davidson","Division 9"]
[null,null,null,null,null,null,null,null,null,null,null,null,null,null,null,null,null,null,null,"Davie","Division 9"]
["Hydroplaning Speed Models",null,null,null,null,null,null,null,null,null,null,null,null,null,null,null,null,null,null,"Duplin","Division 3"]
["Model","Criteria","Const.","WFT Exponent",null,null,null,null,null,null,null,null,null,null,null,null,null,null,null,"Durham","Division 5"]
["PAVDRN","WFT < 2.4 mm",26.04,-0.25900000000000001,null,null,null,null,null,null,null,null,null,null,null,null,null,null,null,"Edgecombe","Division 4"]
[null,"WFT ≥ 2.4 mm",3.09,0,null,null,null,null,null,null,null,null,null,null,null,null,null,null,null,"Forsyth","Division 9"]
[null,null,null,null,null,null,null,null,null,null,null,null,null,null,null,null,null,null,null,"Franklin","Division 5"]
[null,null,null,null,null,null,null,null,null,null,null,null,null,null,null,null,null,null,null,"Gaston","Division 12"]
[null,null,null,null,null,null,null,null,null,null,null,null,null,null,null,null,null,null,null,"Gates","Division 1"]
[null,null,null,null,null,null,null,null,null,null,null,null,null,null,null,null,null,null,null,"Graham","Division 14"]
[null,null,null,null,null,null,null,null,null,null,null,null,null,null,null,null,null,null,null,"Granville","Division 5"]
[null,null,null,null,null,null,null,null,null,null,null,null,null,null,null,null,null,null,null,"Greene","Division 2"]
[null,null,null,null,null,null,null,null,null,null,null,null,null,null,null,null,null,null,null,"Guilford","Division 7"]
["Predicted Speed Reductions (for Risk Analysis)",null,null,null,null,null,null,null,null,null,null,null,null,null,null,null,null,null,null,"Halifax","Division 4"]
["Intensity (in/hr)","Predicted Speed Reduction (mph)","Predicted Driver Speed (mph) ",null,null,null,null,null,null,null,null,null,null,null,null,null,null,null,null,"Harnett","Division 6"]
[0.1,0,null,null,null,null,null,null,null,null,null,null,null,null,null,null,null,null,null,"Haywood","Division 14"]
[0.25,0,null,null,null,null,null,null,null,null,null,null,null,null,null,null,null,null,null,"Henderson","Division 14"]
[0.5,6,null,null,null,null,null,null,null,null,null,null,null,null,null,null,null,null,null,"Hertford","Division 1"]
[1,8,null,null,null,null,null,null,null,null,null,null,null,null,null,null,null,null,null,"Hoke","Division 8"]
[2,12,null,null,null,null,null,null,null,null,null,null,null,null,null,null,null,null,null,"Hyde","Division 1"]
[3," - -",45,null,null,null,null,null,null,null,null,null,null,null,null,null,null,null,null,"Iredell","Division 12"]
[4," - -",45,null,null,null,null,null,null,null,null,null,null,null,null,null,null,null,null,"Jackson","Division 14"]
[null,null,null,null,null,null,null,null,null,null,null,null,null,null,null,null,null,null,null,"Johnston","Division 4"]
[null,null,null,null,null,null,null,null,null,null,null,null,null,null,null,null,null,null,null,"Jones","Division 2"]
[null,null,null,null,null,null,null,null,null,null,null,null,null,null,null,null,null,null,null,"Lee","Division 8"]
[null,null,null,null,null,null,null,null,null,null,null,null,null,null,null,null,null,null,null,"Lenoir","Division 2"]
[null,null,null,null,null,null,null,null,null,null,null,null,null,null,null,null,null,null,null,"Lincoln","Division 12"]
[null,null,null,null,null,null,null,null,null,null,null,null,null,null,null,null,null,null,null,"Macon","Division 14"]
[null,null,null,null,null,null,null,null,null,null,null,null,null,null,null,null,null,null,null,"Madison","Division 13"]
[null,null,null,null,null,null,null,null,null,null,null,null,null,null,null,null,null,null,null,"Martin","Division 1"]
[null,null,null,null,null,null,null,null,null,null,null,null,null,null,null,null,null,null,null,"McDowell","Division 13"]
[null,null,null,null,null,null,null,null,null,null,null,null,null,null,null,null,null,null,null,"Mecklenburg","Division 10"]
[null,null,null,null,null,null,null,null,null,null,null,null,null,null,null,null,null,null,null,"Mitchell","Division 13"]
[null,null,null,null,null,null,null,null,null,null,null,null,null,null,null,null,null,null,null,"Montgomery","Division 8"]
[null,null,null,null,null,null,null,null,null,null,null,null,null,null,null,null,null,null,null,"Moore","Division 8"]
[null,null,null,null,null,null,null,null,null,null,null,null,null,null,null,null,null,null,null,"Nash","Division 4"]
[null,null,null,null,null,null,null,null,null,null,null,null,null,null,null,null,null,null,null,"New Hanover","Division 3"]
[null,null,null,null,null,null,null,null,null,null,null,null,null,null,null,null,null,null,null,"Northampton","Division 1"]
[null,null,null,null,null,null,null,null,null,null,null,null,null,null,null,null,null,null,null,"Onslow","Division 3"]
[null,null,null,null,null,null,null,null,null,null,null,null,null,null,null,null,null,null,null,"Orange","Division 7"]
[null,null,null,null,null,null,null,null,null,null,null,null,null,null,null,null,null,null,null,"Pamlico","Division 2"]
[null,null,null,null,null,null,null,null,null,null,null,null,null,null,null,null,null,null,null,"Pasquotank","Division 1"]
[null,null,null,null,null,null,null,null,null,null,null,null,null,null,null,null,null,null,null,"Pender","Division 3"]
[null,null,null,null,null,null,null,null,null,null,null,null,null,null,null,null,null,null,null,"Perquimans","Division 1"]
[null,null,null,null,null,null,null,null,null,null,null,null,null,null,null,null,null,null,null,"Person","Division 5"]
[null,null,null,null,null,null,null,null,null,null,null,null,null,null,null,null,null,null,null,"Pitt","Division 2"]
[null,null,null,null,null,null,null,null,null,null,null,null,null,null,null,null,null,null,null,"Polk","Division 14"]
[null,null,null,null,null,null,null,null,null,null,null,null,null,null,null,null,null,null,null,"Randolph","Division 8"]
[null,null,null,null,null,null,null,null,null,null,null,null,null,null,null,null,null,null,null,"Richmond","Division 8"]
[null,null,null,null,null,null,null,null,null,null,null,null,null,null,null,null,null,null,null,"Robeson","Division 6"]
[null,null,null,null,null,null,null,null,null,null,null,null,null,null,null,null,null,null,null,"Rockingham","Division 7"]
[null,null,null,null,null,null,null,null,null,null,null,null,null,null,null,null,null,null,null,"Rowan","Division 9"]
[null,null,null,null,null,null,null,null,null,null,null,null,null,null,null,null,null,null,null,"Rutherford","Division 13"]
[null,null,null,null,null,null,null,null,null,null,null,null,null,null,null,null,null,null,null,"Sampson","Division 3"]
[null,null,null,null,null,null,null,null,null,null,null,null,null,null,null,null,null,null,null,"Scotland","Division 8"]
[null,null,null,null,null,null,null,null,null,null,null,null,null,null,null,null,null,null,null,"Stanly","Division 10"]
[null,null,null,null,null,null,null,null,null,null,null,null,null,null,null,null,null,null,null,"Stokes","Division 9"]
[null,null,null,null,null,null,null,null,null,null,null,null,null,null,null,null,null,null,null,"Surry","Division 11"]
[null,null,null,null,null,null,null,null,null,null,null,null,null,null,null,null,null,null,null,"Swain","Division 14"]
[null,null,null,null,null,null,null,null,null,null,null,null,null,null,null,null,null,null,null,"Transylvania","Division 14"]
[null,null,null,null,null,null,null,null,null,null,null,null,null,null,null,null,null,null,null,"Tyrrell","Division 1"]
[null,null,null,null,null,null,null,null,null,null,null,null,null,null,null,null,null,null,null,"Union","Division 10"]
[null,null,null,null,null,null,null,null,null,null,null,null,null,null,null,null,null,null,null,"Vance","Division 5"]
[null,null,null,null,null,null,null,null,null,null,null,null,null,null,null,null,null,null,null,"Wake","Division 5"]
[null,null,null,null,null,null,null,null,null,null,null,null,null,null,null,null,null,null,null,"Warren","Division 5"]
[null,null,null,null,null,null,null,null,null,null,null,null,null,null,null,null,null,null,null,"Washington","Division 1"]
[null,null,null,null,null,null,null,null,null,null,null,null,null,null,null,null,null,null,null,"Watauga","Division 11"]
[null,null,null,null,null,null,null,null,null,null,null,null,null,null,null,null,null,null,null,"Wayne","Division 4"]
[null,null,null,null,null,null,null,null,null,null,null,null,null,null,null,null,null,null,null,"Wilkes","Division 11"]
[null,null,null,null,null,null,null,null,null,null,null,null,null,null,null,null,null,null,null,"Wilson","Division 4"]
[null,null,null,null,null,null,null,null,null,null,null,null,null,null,null,null,null,null,null,"Yadkin","Division 11"]
[null,null,null,null,null,null,null,null,null,null,null,null,null,null,null,null,null,null,null,"Yancey","Division 13"]